Workbook

Sheet (AT)2C User Manual
F1: NCHRP 20-70/Task 414 - Benefits of Adaptive Traffic Control Deployments - A Review of Evaluation Studies
A4: Assessment Tool for Adaptive Traffic Control - (AT)2C - User Manual
B8: Welcome to User Manual of Assessment Tool for Adaptive Traffic Control - (AT)2C. The (AT)2C is designed in such a way to provide user-specific analyses of both environments under which ATCSs are deployed and benefits resulting from such deployments. The analyses are performed by filtering (basic or advanced) of main categories defined for each ATCS deployment/evaluation. In the case where user can get the basic information about ATCS deployments we refer to the tool as (AT)2C - Dashboard. In the second case, where a user can filter out any of the evaluation results, we refer to the tool as (AT)2C - Filtering tool. Navigation through the (AT)2C tool is enabled through the buttons (see Figure 1) - e.g. by selecting a button user is directed to that specific part of the tool.
H21: Figure 1. (AT)2C - Buttons
F26: (AT)2C - Dashboard | R26: (AT)2C - Filtering tool
L38: Figure 3 (AT)2C - Filtering tool buttons
A40: Figure 2. (AT)2C - Dashboard buttons
A57: Figure 4. Slicers | L57: Figure 5. Timeline slicers
B62: One should note that by making every additional selection, a number of filtered instances decreases. A user may find useful to play with filtering options (e.g. by clearing filters) to find out which of the filtering options are more important (affecting more data entries) than the others. The (AT)2C relies on a relatively robust database structure and it should be noted that some of the filtering processes may require several seconds before the filtering results are updated on the charts and tables.
B71: This software is offered as is, without warranty or promise of support of any kind either expressed or implied. Under no circumstance will the National Academy of Sciences or the Transportation Research Board (collectively “TRB”) be liable for any loss or damage caused by the installation or operation of this product. TRB makes no representation or warranty of any kind, expressed or implied, in fact or in law, including without limitation, the warranty of merchantability or the warranty of fitness for a particular purpose, and shall not in any case be liable for any consequential or special damages.

Sheet Basic Agency Info
E1: NCHRP 20-70/Task 414 - Benefits of Adaptive Traffic Control Deployments - A Review of Evaluation Studies
A4: Assessment Tool for Adaptive Traffic Control (AT)2C
B7: Number of agencies | F7: 60 | I7: Deployed ATCSs | L7: 140 | O7: Agencies with one deployment | U7: 38 | W7: Decommissioned deployments | AB7: 4
B8: Agencies with deployed ATCS | F8: 54 | I8: ATCSs evaluated | L8: 85 | O8: Agencies with more than one deployment | U8: =F8-U7 -> 16 | W8: Deployments under evaluation | AB8: 9

Sheet Operational Conditions
E1: NCHRP 20-70/Task 414 - Benefits of Adaptive Traffic Control Deployments - A Review of Evaluation Studies
A4: Assessment Tool for Adaptive Traffic Control (AT)2C
B7: Number of agencies | F7: 60 | I7: Deployed ATCSs | L7: 140 | O7: Agencies with one deployment | U7: 38 | W7: Decommissioned deployments | AB7: 4
B8: Agencies with deployed ATCS | F8: 54 | I8: ATCSs evaluated | L8: 85 | O8: Agencies with more than one deployment | U8: =F8-U7 -> 16 | W8: Deployments under evaluation | AB8: 9

Sheet Infrastruture & Costs
E1: NCHRP 20-70/Task 414 - Benefits of Adaptive Traffic Control Deployments - A Review of Evaluation Studies
A4: Assessment Tool for Adaptive Traffic Control (AT)2C
B7: Number of agencies | F7: 60 | I7: Deployed ATCSs | L7: 140 | O7: Agencies with one deployment | U7: 38 | W7: Decommissioned deployments | AB7: 4
B8: Agencies with deployed ATCS | F8: 54 | I8: ATCSs evaluated | L8: 85 | O8: Agencies with more than one deployment | U8: =F8-U7 -> 16 | W8: Deployments under evaluation | AB8: 9

Sheet Evaluation Details
E1: NCHRP 20-70/Task 414 - Benefits of Adaptive Traffic Control Deployments - A Review of Evaluation Studies
A4: Assessment Tool for Adaptive Traffic Control (AT)2C
B7: Number of agencies | F7: 60 | I7: Deployed ATCSs | L7: 140 | O7: Agencies with one deployment | U7: 38 | W7: Decommissioned deployments | AB7: 4
B8: Agencies with deployed ATCS | F8: 54 | I8: ATCSs evaluated | L8: 85 | O8: Agencies with more than one deployment | U8: =F8-U7 -> 16 | W8: Deployments under evaluation | AB8: 9

Sheet Basic Results
E1: NCHRP 20-70/Task 414 - Benefits of Adaptive Traffic Control Deployments - A Review of Evaluation Studies
A4: Assessment Tool for Adaptive Traffic Control (AT)2C
B7: Number of agencies | F7: 60 | H7: Agencies with deployed ATCS | N7: 54 | P7: Deployed ATCSs | T7: 140 | V7: ATCSs evaluated | Z7: 85 | AB7: Agencies with one deployment | AH7: 38 | AJ7: Agencies with more than one deployment | AS7: =N7-AH7 -> 16 | AU7: Decommissioned deployments | BA7: 4 | BB7: Deployments under evaluation | BJ7: 9
B20: Performance measures reduction [%] - AM Peak Hour | V20: Performance measures reduction [%] - Midday Peak Hour | AQ20: Performance measures reduction [%] - PM Peak Hour
C21: Efficiency impact | K21: Environmental impact | W21: Efficiency impact | AE21: Environmental impact | AR21: Efficiency impact | BA21: Environmental impact
B22: Ev. study | C22: Travel time | E22: Delay | G22: Number of Stops | I22: Side Street Delay | J22: Tranist Travel time | K22: Number of conflicts | L22: Fuel Consumption | N22: Emissions - HC | P22: Emissions - CO | R22: Emissions - NOx | T22: Emissions - All Polutants | V22: Ev. study | W22: Travel time | Y22: Delay | AA22: Number of stops | AC22: Side street delay | AD22: Tranist travel time | AE22: Number of crashes | AF22: Number of conflicts | AG22: Fuel consumption | AI22: Emissions - HC | AK22: Emissions - CO | AM22: Emissions - NOx | AO22: Emissions - All polutants | AQ22: Ev. study | AR22: Travel time | AT22: Delay | AV22: Number of stops | AX22: Side street delay | AY22: Queue length | AZ22: Tranist travel time | BA22: Number of crashes | BB22: Number of conflicts | BC22: Fuel consumption | BE22: Emissions - HC | BG22: Emissions - CO | BI22: Emissions - NOx
C23: Routes Based | D23: Network level | E23: Routes Based | F23: Network level | G23: Routes Based | H23: Network level | I23: Routes Based | J23: Network level | K23: Network level | L23: Routes Based | M23: Network level | N23: Routes Based | O23: Network level | P23: Routes Based | Q23: Network level | R23: Routes Based | S23: Network level | T23: Network level | W23: Routes based | X23: Network level | Y23: Routes based | Z23: Network level | AA23: Routes based | AB23: Network level | AC23: Routes based | AD23: Network level | AE23: Network level | AF23: Network level | AG23: Routes based | AH23: Network level | AI23: Routes based | AJ23: Network level | AK23: Routes based | AL23: Network level | AM23: Routes based | AN23: Network level | AO23: Network level | AR23: Routes Based | AS23: Network level | AT23: Routes Based | AU23: Network level | AV23: Routes Based | AW23: Network level | AX23: Routes Based | AY23: Routes Based | AZ23: Network level | BA23: Network level | BB23: Network level | BC23: Routes Based | BD23: Network level | BE23: Routes Based | BF23: Network level | BG23: Routes Based | BH23: Network level | BI23: Routes Based | BJ23: Network level
B24: Row Labels | C24: Average of 6.1 Difference Travel time 1234 [%] | D24: Average of 7. Diff Network Tt [%] | E24: Average of 6.1 Difference Delay 1234 [%] | F24: Average of 7. Diff Network delay [%] | G24: Average of 6.1 Diff Number of stops Dir 1234 [#]2 | H24: Average of 7. Diff Network delay [%]2 | I24: Average of 3. Diff Side Street Delay 12 [%] | J24: Average of 1. Diff Network Transit Travel Time [%] | K24: Average of 3. Diff Total number of conflicts [%] | L24: Average of 6.1 Diff Fuel consumption Dir 1234 [%] | M24: Average of 7. Diff Fuel consumption Network [%] | N24: Average of 6.1 Diff Emissions - HC - Dir 1234 [%] | O24: Average of 7. Diff Network Emissions - HC [%] | P24: Average of 6.1 Diff Emissions - CO - Dir 1234 [%] | Q24: Average of 7. Diff Network Emissions - CO [%] | R24: Average of 6.1 Diff Emissions - NOx - Dir 1234 [%] | S24: Average of 7. Diff Network Emissions - NOx [%] | T24: Average of 1. Diff Total Network Emissions [%] | V24: Row Labels | W24: Average of 6.1 Difference Travel time 1234 [%]2 | X24: Average of 7. Diff Network Tt [%]15 | Y24: Average of 6.1 Difference Delay 1234 [%]2 | Z24: Average of 7. Diff Network delay [%]15 | AA24: Average of 6.1 Diff Number of stops Dir 1234 [%] | AB24: Average of 7. Diff Network Numb of stops [%]15 | AC24: Average of 3. Diff Side Street Delay 12 [%]7 | AD24: Average of 1. Diff Network Transit Travel Time [%]3 | AE24: Average of 1. Diff Number of crashes - Total number [%]7 | AF24: Average of 3. Diff Total number of conflicts [%]15 | AG24: Average of 6.1 Diff Fuel consumption Dir 1234 [%]2 | AH24: Average of 7. Diff Fuel consumption Network [%]15 | AI24: Average of 6.1 Diff Emissions - HC - Dir 1234 [%]2 | AJ24: Average of 7. Diff Network Emissions - HC [%]15 | AK24: Average of 6.1 Diff Emissions - CO - Dir 1234 [%]2 | AL24: Average of 7. Diff Network Emissions - CO [%]15 | AM24: Average of 6.1 Diff Emissions - NOx - Dir 1234 [%]2 | AN24: Average of 7. Diff Network Emissions - NOx [%]15 | AO24: Average of 1. Diff Total Network Emissions [%]2 | AQ24: Row Labels | AR24: Average of 6.1 Difference Travel time 1234 [%]3 | AS24: Average of 7. Diff Network Tt [%]16 | AT24: Average of 6.1 Difference Delay 1234 [%]3 | AU24: Average of 7. Diff Network delay [%]16 | AV24: Average of 6.1 Diff Number of stops Dir 1234 [%]2 | AW24: Average of 7. Diff Network Numb of stops [%]16 | AX24: Average of 3. Diff Side Street Delay 12 [%]8 | AY24: Average of 3. Diff Queue lenghts 12 [%]8 | AZ24: Average of 1. Diff Network Transit Travel Time [%]33 | BA24: Average of 1. Diff Number of crashes - Total number [%]8 | BB24: Average of 3. Diff Total number of conflicts [%]16 | BC24: Average of 6.1 Diff Fuel consumption Dir 1234 [%]3 | BD24: Average of 7. Diff Fuel consumption Network [%]16 | BE24: Average of 6.1 Diff Emissions - HC - Dir 1234 [%]3 | BF24: Average of 7. Diff Network Emissions - HC [%]16 | BG24: Average of 6.1 Diff Emissions - CO - Dir 1234 [%]3 | BH24: Average of 7. Diff Network Emissions - CO [%]16 | BI24: Average of 6.1 Diff Emissions - NOx - Dir 1234 [%]3 | BJ24: Average of 7. Diff Network Emissions - NOx [%]16
B25: 4 | E25: 17 | V25: 4 | Y25: -1.4 | AQ25: 4 | AT25: -17.6
B26: 5 | F26: -5.5 | V26: 5 | Z26: -5.8 | AQ26: 5 | AU26: -2.5
B27: 6 | E27: 2.5 | I27: 6 | V27: 6 | Y27: -12.3 | AQ27: 6 | AT27: -12.4
B28: 35 | C28: -32.42815713 | E28: -74.57142857 | G28: -66.17647059 | V28: 8 | X28: -8 | AQ28: 8 | AS28: -4
B29: 43 | C29: -25.08896797 | E29: -64.48598131 | G29: -25.92592593 | V29: 10 | W29: -28.93982808 | AQ29: 10 | AR29: -18.55345912 | AY29: -15.4 | BA29: -13.2
B30: 44 | C30: -31.0626703 | E30: -71.61290323 | G30: -71.42857143 | V30: 11 | W30: -24.07407407 | AQ30: 11 | AR30: -6.934306569
B31: 63 | C31: -11.6209564 | E31: 31.79005375 | G31: -22 | I31: 56.56087683 | L31: -0.3016503657 | V31: 11.1 | W31: -1.654135338 | Y31: -11.4 | AA31: -27.27272727 | AE31: -22.28947368 | AG31: -2.752293578 | AI31: -5.6 | AK31: -2.2 | AM31: -7.9 | AQ31: 11.1 | AR31: -6.686243506 | AT31: -19.05063291 | AV31: -26.42642643 | BC31: -6.52173913 | BE31: -7.619047619 | BG31: -7.379231647 | BI31: -8.157099698
B32: 8 | D32: -4 | V32: 19 | W32: -3.1 | AA32: -51 | AQ32: 19 | AR32: 2.5 | AV32: 0
B33: 11 | C33: -14.45466491 | V33: 20 | W33: -9.1 | AA33: -30.3 | AQ33: 20 | AR33: -9.7 | AV33: -40.6
B34: 19 | C34: -4.6 | G34: -34.6 | V34: 21 | W34: 13.2 | AA34: 29 | AQ34: 21 | AR34: 6.4 | AV34: -5.8
B35: 46 | C35: -3.766478343 | E35: -8.325074331 | G35: 3.3 | V35: 22 | W35: -21.7 | AA35: -54.3 | AQ35: 22 | AR35: -33.4 | AV35: -67.9
B36: 82 | C36: -18.225 | E36: -31.225 | G36: 1.275 | V36: 23 | W36: -1.1 | AA36: -28.6 | AQ36: 23 | AR36: -3.5 | AV36: 6.5
B37: 10 | C37: -17.99660441 | V37: 24 | W37: -13 | AA37: -32.3 | AQ37: 24 | AR37: -21.4 | AV37: -43.2
B38: 20 | C38: 10.3 | G38: -9.3 | V38: 25 | W38: -11.8 | AA38: -27.2 | AQ38: 25 | AR38: -15.4 | AV38: -31.2
B39: 21 | C39: 15.6 | G39: 28.3 | V39: 26 | W39: -7 | AA39: -31.5 | AQ39: 26 | AR39: 3 | AV39: 0
B40: 22 | C40: -36.6 | G40: -63 | V40: 27 | W40: -26.3 | AA40: -65.2 | AQ40: 27 | AR40: -20.7 | AV40: -60.4
B41: 23 | C41: -1.4 | G41: -14.3 | V41: 28 | W41: -9 | AA41: -31 | AQ41: 28 | AR41: -11.4 | AV41: -47.6
B42: 24 | C42: -13.1 | G42: -34.8 | V42: 29 | W42: -15.2 | AA42: -9.1 | AQ42: 29 | AR42: -19.1 | AV42: -35.5
B43: 25 | C43: -16.1 | G43: -43.6 | V43: 30 | W43: -19.5 | AA43: -50.5 | AQ43: 30 | AR43: -21.2 | AV43: -59
B44: 26 | C44: -0.5 | G44: -7.5 | V44: 31 | W44: -23.5 | AA44: -61.5 | AQ44: 31 | AR44: -27 | AV44: -53.5
B45: 27 | C45: -9.2 | G45: -54.1 | V45: 37 | AJ45: -9.93 | AL45: -5.86 | AN45: -9.34 | AQ45: 35 | AR45: -42.3917657 | AT45: -79.13418137 | AV45: -82.65306122
B46: 28 | C46: -6.5 | G46: -27.1 | V46: 39 | W46: -0.7556675063 | AQ46: 35.1 | AR46: -16.38370119 | AT46: -26.63110382 | AV46: -39.79591837
B47: 29 | C47: -4.9 | G47: -16.1 | V47: 40 | X47: -17.1875 | AQ47: 35.2 | AR47: -37.73344652 | AT47: -82.60155929 | AV47: -53.06122449
B48: 30 | C48: -16.6 | G48: -46 | V48: 43 | W48: -15.55555556 | Y48: -50.5 | AA48: -10 | AQ48: 35.3 | AR48: -21.53013582 | AT48: -39.12597456 | AV48: -44.89795918
B49: 31 | C49: -29.5 | G49: -61 | V49: 44 | W49: -17.09558824 | Y49: -72.26890756 | AA49: -62.96296296 | AQ49: 35.4 | AR49: 33.04329372 | AT49: 64.13623307 | AV49: 26.53061224
B50: 32 | C50: -3 | V50: 46 | W50: -12.10691824 | Y50: -31.71171171 | AA50: -32.14285714 | AQ50: 37 | BF50: -10.01 | BH50: -5.43 | BJ50: -21.14
B51: 35.1 | C51: -27.31347219 | E51: -58.95238095 | G51: -61.76470588 | V51: 60 | W51: -9.522098455 | AQ51: 39 | AR51: -13.4594398
B52: 35.2 | C52: -33.89137886 | E52: -86 | G52: -44.11764706 | V52: 61 | W52: -0.2473716759 | AQ52: 40 | AS52: -12.90322581
B53: 35.3 | C53: -19.07461113 | E53: -31.61904762 | G53: -57.35294118 | V53: 62 | W53: -33.02891933 | Y53: -96.7032967 | AA53: -100 | AG53: -66.66666667 | AI53: -67.9 | AQ53: 43 | AR53: -14.53590193 | AT53: -37.61061947 | AV53: -30.3030303
B54: 35.4 | C54: -12.03532824 | E54: -23.65079365 | G54: -44.11764706 | V54: 62.1 | W54: -16.07963247 | Y54: -65.25423729 | AA54: -50 | AG54: -24.19354839 | AK54: -24.1 | AM54: -24.1 | AQ54: 44 | AR54: -10.05199307 | AT54: -34.41558442 | AV54: 0
B55: 37 | O55: -3.98 | Q55: -4 | S55: -5.05 | V55: 63 | W55: -1.047529706 | Y55: 5.499676106 | AA55: 1.612903226 | AC55: 45.68076473 | AG55: 0.459081339 | AQ55: 46 | AR55: -15.66757493 | AT55: -36.98464026 | AV55: -36
B56: 39 | C56: -11.2561909 | V56: 65 | W56: 1.175406872 | AQ56: 49 | AR56: -3.936280107 | AT56: -12.08694375 | AV56: 0
B57: 40 | D57: -8.771929825 | V57: 65.1 | W57: 9.976662777 | AQ57: 49.1 | AS57: -1.36 | AU57: -4.36 | AW57: -14 | BB57: -11.66999939 | BD57: -2 | BF57: -2.58 | BH57: -2.36 | BJ57: -2.12
B58: 65 | C58: 1.566820276 | V58: 66 | W58: -7.317073171 | AQ58: 49.2 | AU58: -17 | AW58: -24
B59: 65.1 | C59: 29.55163043 | V59: 67 | W59: -26.0210035 | Y59: -40.54545455 | AA59: -34.93975904 | AG59: -21.42857143 | AI59: -26.7 | AK59: -25.4 | AM59: -25 | AQ59: 50 | AS59: -16.6 | AU59: -24.7 | AY59: -15.4
B60: 66 | C60: -7.788944724 | V60: 71 | W60: -8.755707103 | Y60: -32.60971055 | AA60: 2.631578947 | AG60: -1.777728086 | AQ60: 51 | AS60: -8.9 | AU60: -26.5 | AY60: -3.8
B61: 68 | C61: 28.20512821 | G61: 128.5714286 | V61: 72 | W61: -13.87259357 | Y61: -36.23743418 | AA61: -25.51020408 | AG61: -6.537138231 | AQ61: 52 | AS61: -7 | AU61: -15 | AY61: -10
B62: 70 | C62: -21.16402116 | V62: 74.1 | W62: -3.619047619 | AQ62: 53 | AU62: -12
B63: 71 | C63: -21.0692191 | E63: -41.50644651 | G63: -30.09708738 | L63: -0.2573570549 | V63: 76 | X63: -32.83 | Z63: -49.82 | AB63: -52.58 | AO63: -0.29 | AQ63: 56 | AU63: -18.80492091
B64: 79 | C64: -2.745098039 | E64: -7.901907357 | V64: 76.2 | Z64: -14.4 | AQ64: 60 | AR64: -21.85452163
B65: 87 | C65: 7.024495677 | E65: 13.06462821 | G65: -4.285714286 | V65: 77 | W65: 1.278409091 | AA65: -45.58823529 | AQ65: 61 | AR65: 0.1145475372
B66: 89 | C66: -8.255728012 | E66: -15.73111573 | G66: -20.63492063 | L66: -6.666666667 | N66: -3.543307087 | P66: -1.341071289 | R66: -3.523316062 | V66: 78 | W66: -14.07624633 | Y66: -26.78571429 | AB66: -5.8 | AC66: -4.35 | AF66: -8.399797689 | AQ66: 62 | AR66: -14 | AT66: -17.85714286 | AV66: -33.33333333 | AY66: -20.68965517 | BA66: -20.81894425 | BE66: -22.37124464
B67: 92 | D67: -23.8 | E67: 6.3 | F67: 6.4 | I67: 2.3 | V67: 82 | W67: -19.175 | Y67: 112.275 | AA67: -10.75 | AQ67: 62.1 | AR67: -4.028776978 | AT67: -5.737704918 | AV67: 0 | AY67: -20.68965517 | BB67: -9.694299091 | BC67: -9.631728045 | BG67: -9.694299091 | BI67: -9.631728045
B68: 60 | C68: -13.99922118 | V68: 84 | X68: 0 | Z68: 0.1 | AB68: 0.1 | AC68: 0.4 | AD68: -4.6 | AH68: 0 | AJ68: 0.1 | AL68: 0.1 | AN68: 0 | AQ68: 63 | AR68: -2.118460873 | AT68: -10.51384587 | AV68: -22.85714286 | AX68: 45.5583285 | BC68: 5.357178895
B69: 62 | C69: -17.75568182 | E69: -47.68518519 | G69: -16.66666667 | L69: -27.77777778 | N69: -28.90418211 | V69: 89 | W69: -3.471620877 | Y69: -7.65391015 | AA69: -17.88617886 | AG69: -4.833836858 | AI69: -6.451612903 | AK69: -4.473462511 | AM69: -3.379091869 | AQ69: 65 | AR69: 11.33648236
B70: 62.1 | C70: -12.97814208 | E70: -29.8245614 | G70: -28.57142857 | L70: -14.51612903 | P70: -13.33800514 | R70: -13.20528211 | V70: Average | W70: -10.86347589 | X70: -14.504375 | Y70: -24.50638006 | Z70: -17.48 | AA70: -32.9349401 | AB70: -19.42666667 | AC70: 13.91025491 | AD70: -4.6 | AE70: -22.28947368 | AF70: -8.399797689 | AG70: -15.96633774 | AH70: 0 | AI70: -26.66290323 | AJ70: -4.915 | AK70: -14.04336563 | AL70: -2.88 | AM70: -15.09477297 | AN70: -4.67 | AO70: -0.29 | AQ70: 65.1 | AR70: 11.67282022
B71: 67 | C71: -5.372616984 | E71: -11.48148148 | G71: -24.52830189 | L71: -9.523809524 | N71: -8.021390374 | P71: -7.240811849 | R71: -7.03125 | AQ71: 66 | AR71: -11.1827957
B72: 72 | C72: -13.74039494 | E72: -37.1257485 | G72: -34.61538462 | L72: -7.884540876 | AQ72: 67 | AR72: -11.15065243 | AT72: -17.57009346 | AV72: -18.07228916 | AY72: -7.692307692 | BA72: -7.874015748 | BB72: -10.42277103 | BC72: -5.161290323 | BE72: -9.311740891 | BG72: -10.42277103 | BI72: -5.161290323
B73: 74.1 | C73: 3.03030303 | AQ73: 68.1 | AT73: 23.7 | AU73: 0.1207729469 | AV73: 53.7 | AW73: 14.28571429
B74: 49 | C74: -7.647939659 | E74: -18.92901619 | G74: -18 | AQ74: 69 | AS74: 0 | AU74: 0.272851296
B75: 61 | C75: -6.116248349 | AQ75: 70 | AR75: -10.81967213
B76: 76 | D76: -30.11 | F76: -47.78 | H76: -29.14 | T76: -0.2383 | AQ76: 71 | AR76: -13.61397688 | AT76: -40.85868188 | AV76: -36.69064748 | BC76: -4.1613723
B77: 76.2 | F77: -23.8 | AQ77: 72 | AR77: -4.516333149 | AT77: -13.29166667 | AV77: -10.28037383 | BC77: -4.118680461
B78: 77 | C78: -33.92007612 | G78: -66.66666667 | AQ78: 73 | AS78: -20 | AU78: -38.46153846
B79: 78 | C79: -12.38850347 | E79: -30.55555556 | H79: -11.76470588 | I79: -6.415929204 | K79: -5.935104383 | M79: -3.41177249 | O79: -0.998185118 | Q79: -0.998185118 | S79: -4.844290657 | AQ79: 74 | AR79: -3.423423423 | AS79: -26.66666667 | AT79: -17.03470032 | AU79: -45.45454545 | AX79: -45.0674237 | AY79: -2.538071066
B80: 84 | D80: 1.3 | F80: 2.7 | H80: 0.7 | I80: 0.3 | J80: -3.8 | M80: 0.5 | O80: 0.2 | Q80: 0.1 | S80: 0.1 | AQ80: 74.1 | AR80: -12.27495908
B81: 86 | C81: 11.17056856 | AQ81: 75 | AS81: 26.31578947 | AU81: 50
B82: 88 | C82: -15.00522466 | E82: -41.49019608 | G82: -44.44444444 | AQ82: 76.2 | AU82: -9.3
B83: Average | C83: -10.28567906 | D83: -13.07638596 | E83: -27.5841309 | F83: -13.596 | G83: -27.39259105 | H83: -13.40156863 | I83: 11.74898952 | J83: -3.8 | K83: -5.935104383 | L83: -9.561133042 | M83: -1.455886245 | N83: -13.48962652 | O83: -1.592728373 | P83: -7.306629425 | Q83: -1.632728373 | R83: -7.919949392 | S83: -3.264763552 | T83: -0.2383 | AQ83: 77 | AR83: -13.14285714 | AV83: -37.77777778
AQ84: 78 | AR84: -13.15547378 | AT84: -33.33333333 | AW84: -7.344632768 | BB84: -2.068867286
AQ85: 79 | AR85: 6.488549618 | AT85: 3.636363636
AQ86: 82 | AR86: 28.25 | AT86: -81.975 | AV86: 22.575
AQ87: 83 | AV87: -22.8
AQ88: 84 | AS88: 0.4 | AU88: 0.9 | AW88: 0.1 | AX88: 1.8 | AZ88: -2.6 | BD88: 0.1 | BF88: 0.1 | BH88: 0 | BJ88: 0
AQ89: 86 | AR89: -1.896733404
AQ90: 87 | AR90: -10.0998681 | AT90: -18.30322074 | AV90: -36.61971831
AQ91: 88 | AR91: -12.06766917 | AT91: -29.12790698 | AV91: -23.68421053
AQ92: 89 | AR92: -10.25531308 | AT92: -24.62967057 | AV92: -15.38461538 | BC92: -4.776299879 | BE92: 5.93220339 | BG92: -5.458673933 | BI92: -3.620873269
AQ93: 91 | AR93: -9.3 | AT93: -23.1 | AU93: -18 | AX93: -16
AQ94: Average | AR94: -9.525715138 | AS94: -6.428554818 | AT94: -23.68524484 | AU94: -11.29921129 | AV94: -25.16755879 | AW94: -6.191783697 | AX94: -3.427273801 | AY94: -12.02621114 | AZ94: -2.6 | BA94: -13.96432 | BB94: -8.4639842 | BC94: -4.14484732 | BD94: -0.95 | BE94: -8.342457439 | BF94: -4.163333333 | BG94: -8.238743926 | BH94: -2.596666667 | BI94: -6.642747834 | BJ94: -7.753333333
B96: Performance measures reduction [%] - Friday PM Peak Hour | Z96: Performance measures reduction [%] - Average Saturday | AT96: Performance measures reduction [%] - Average weekday
C97: Efficiency impact | K97: Environmental impact | AA97: Efficiency impact | AE97: Environmental impact | AU97: Efficiency impact | BC97: Environmental impact
B98: Ev. study | C98: Travel time | E98: Delay | G98: Number of Stops | I98: Side Street Delay | J98: Queue Lengths | K98: Fuel Consumption | M98: Emissions - HC | O98: Emissions - CO | Q98: Emissions - NOx | Z98: Ev. study | AA98: Travel time | AB98: Delay | AD98: Number of Stops | AE98: Fuel Consumption | AF98: Emissions - HC | AG98: Emissions - CO | AH98: Emissions - NOx | AT98: Ev. study | AU98: Travel time | AV98: Delay | AX98: Split failure | AY98: Side street delay | AZ98: Side street split failure | BA98: Tranist travel time | BB98: Number of crashes | BC98: Fuel consumption | BD98: Emissions - HC | BE98: Emissions - CO | BF98: Emissions - NOx
C99: Routes Based | D99: Network level | E99: Routes Based | F99: Network level | G99: Routes Based | H99: Network level | I99: Routes Based | J99: Network level | K99: Routes Based | L99: Network level | M99: Routes Based | N99: Network level | O99: Routes Based | P99: Network level | Q99: Routes Based | R99: Network level | AA99: Routes Based | AB99: Routes Based | AC99: Network level | AD99: Routes Based | AE99: Routes Based | AF99: Routes Based | AG99: Routes Based | AH99: Routes Based | AU99: Routes based | AV99: Routes Based | AW99: Network level | AX99: Network level | AY99: Routes based | AZ99: Network level | BA99: Routes based | BB99: Routes based | BC99: Network level | BD99: Routes based | BE99: Routes based | BF99: Routes based
B100: Row Labels | C100: Average of 6.1 Difference Travel time 1234 [%]3141 | D100: Average of 7. Diff Network Tt [%]16143 | E100: Average of 6.1 Difference Delay 1234 [%]3157 | F100: Average of 7. Diff Network delay [%]16159 | G100: Average of 6.1 Diff Number of stops Dir 1234 [%]2173 | H100: Average of 7. Diff Network Numb of stops [%]16175 | I100: Average of 3. Diff Side Street Delay 12 [%]8181 | J100: Average of 3. Diff Queue lenghts 12 [%]8187 | K100: Average of 6. Diff Fuel consumption Dir 34 [%]14213 | L100: Average of 7. Diff Fuel consumption Network [%]16215 | M100: Average of 6. Diff Emissions - HC - Dir 34 [%]14227 | N100: Average of 7. Diff Network Emissions - HC [%]16229 | O100: Average of 6. Diff Emissions - CO - Dir 34 [%]14241 | P100: Average of 7. Diff Network Emissions - CO [%]16243 | Q100: Average of 6. Diff Emissions - NOx - Dir 34 [%]14255 | R100: Average of 7. Diff Network Emissions - NOx [%]16257 | Z100: Row Labels | AA100: Average of 6.1 Difference Travel time 1234 [%]3141141 | AB100: Average of 6.1 Difference Delay 1234 [%]3157157 | AC100: Average of 7. Diff Network delay [%]16159159 | AD100: Average of 6.1 Diff Number of stops Dir 1234 [%]2173173 | AE100: Average of 6. Diff Fuel consumption Dir 34 [%]14213213 | AF100: Average of 6. Diff Emissions - HC - Dir 34 [%]14227227 | AG100: Average of 6. Diff Emissions - CO - Dir 34 [%]14241241 | AH100: Average of 6. Diff Emissions - NOx - Dir 34 [%]14255255 | AT100: Row Labels | AU100: Average of 6.1 Difference Travel time 1234 [%]3141141141 | AV100: Average of 6.1 Difference Delay 1234 [%]3157157157 | AW100: Average of 7. Diff Network delay [%]16159159159 | AX100: Average of 1. Diff Split Failure Dir 12 (%) | AY100: Average of 3. Diff Side Street Delay 12 [%]8181181181 | AZ100: Average of 1. Diff Split Failure SideStreet (%) | BA100: Average of 3. Diff Transit travel time Dir 12 [%]81331331337 | BB100: Average of 1. Diff Number of crashes - Total number [%]8193193193 | BC100: Average of 3. Diff Fuel consumption Dir 12 [%]8207207207 | BD100: Average of 3. Diff Emissions - HC - Dir 12 [%]8221221221 | BE100: Average of 3. Diff Emissions - CO - Dir 12 [%]8235235235 | BF100: Average of 3. Diff Emissions - NOx - Dir 12 [%]8249249249
B101: 11.1 | C101: -3.336271485 | E101: -10.89681222 | G101: -22.50639386 | K101: -2.222222222 | M101: -1.107366394 | O101: 0.4545454545 | Q101: -0.6939090208 | Z101: 11.1 | AA101: -4.468549944 | AB101: -15.27686992 | AD101: -28.81355932 | AE101: -3.331769122 | AF101: -4.675467547 | AG101: -2.799790995 | AH101: -5.427046263 | AT101: 15 | AU101: -9 | AV101: -13 | BC101: -3 | BD101: -9 | BE101: -4 | BF101: -4
B102: 35.3 | C102: -19.07461113 | E102: -31.61904762 | G102: -57.35294118 | Z102: 15 | AA102: -11 | AB102: -37 | AT102: 16 | AU102: -6 | AV102: -15 | BC102: -2 | BD102: 0 | BE102: -2 | BF102: -1
B103: 50 | D103: -22 | F103: -27.4 | J103: -22.5 | Z103: 16 | AA103: -19 | AB103: -54 | AT103: 48 | AX103: -85.5 | AZ103: -11
B104: 51 | D104: -18.5 | F104: -32.2 | J104: -21.6 | Z104: 46 | AA104: -10.35058431 | AB104: -35.07670851 | AD104: -11.11111111 | AT104: 76.1 | BB104: -69.02465166
B105: 64.1 | L105: 3.476623784 | N105: 3.921568627 | P105: 6.889128095 | R105: 1.904761905 | Z105: 49 | AA105: -1.954397394 | AB105: -13.20477887 | AD105: -5.769230769 | AT105: 80 | AU105: -3.213367609
B106: 68.1 | E106: 27.4 | F106: 4.052443385 | G106: 56 | H106: 26.61870504 | Z106: 63 | AA106: -14.77017937 | AD106: -14.28571429 | AT106: 81 | BA106: -0.3107520199
B107: 69 | D107: -3.3 | F107: -3.9 | Z107: 76.2 | AC107: -20.4 | AT107: 85 | AW107: -0.5586592179
B108: 78 | C108: -16.52 | E108: -35.4 | H108: -9.37 | I108: -3.5 | Z108: Average | AA108: -10.25728517 | AB108: -30.91167146 | AC108: -20.4 | AD108: -14.99490387 | AE108: -3.331769122 | AF108: -4.675467547 | AG108: -2.799790995 | AH108: -5.427046263 | AT108: 90 | AV108: 0.6188118812 | AW108: -1.17370892 | AY108: -1.945080092
B109: 79 | C109: -19.10994764 | AT109: 90.1 | AV109: -0.9756097561 | AW109: -1.149425287 | AY109: -1.248266297
B110: Average | C110: -14.51020756 | D110: -14.6 | E110: -12.62896496 | F110: -14.86188915 | G110: -7.953111679 | H110: 8.624352518 | I110: -3.5 | J110: -22.05 | K110: -2.222222222 | L110: 3.476623784 | M110: -1.107366394 | N110: 3.921568627 | O110: 0.4545454545 | P110: 6.889128095 | Q110: -0.6939090208 | R110: 1.904761905 | AT110: Average | AU110: -6.071122536 | AV110: -7.089199469 | AW110: -0.9605978085 | AX110: -85.5 | AY110: -1.596673194 | AZ110: -11 | BA110: -0.3107520199 | BB110: -69.02465166 | BC110: -2.5 | BD110: -4.5 | BE110: -3 | BF110: -2.5

Sheet Advanced Filtering
E1: NCHRP 20-70/Task 414 - Benefits of Adaptive Traffic Control Deployments - A Review of Evaluation Studies
A4: Assessment Tool for Adaptive Traffic Control (AT)2C
B7: Number of agencies | F7: 60 | H7: Agencies with deployed ATCS | N7: 54 | P7: Deployed ATCSs | T7: 140 | V7: ATCSs evaluated | Z7: 85 | AB7: Agencies with one deployment | AH7: 38 | AJ7: Agencies with more than one deployment | AS7: =N7-AH7 -> 16 | AU7: Decommissioned deployments | BA7: 4 | BB7: Deployments under evaluation | BJ7: 9
B39: Performance measures reduction [%] - AM Peak Hour | V39: Performance measures reduction [%] - Midday Peak Hour | AQ39: Performance measures reduction [%] - PM Peak Hour
C40: Efficiency impact | K40: Environmental impact | W40: Efficiency impact | AE40: Environmental impact | AR40: Efficiency impact | BA40: Environmental impact
B41: Ev. study | C41: Travel time | E41: Delay | G41: Number of Stops | I41: Side Street Delay | J41: Tranist Travel time | K41: Number of conflicts | L41: Fuel Consumption | N41: Emissions - HC | P41: Emissions - CO | R41: Emissions - NOx | T41: Emissions - All Polutants | V41: Ev. study | W41: Travel time | Y41: Delay | AA41: Number of stops | AC41: Side street delay | AD41: Tranist travel time | AE41: Number of crashes | AF41: Number of conflicts | AG41: Fuel consumption | AI41: Emissions - HC | AK41: Emissions - CO | AM41: Emissions - NOx | AO41: Emissions - All polutants | AQ41: Ev. study | AR41: Travel time | AT41: Delay | AV41: Number of stops | AX41: Side street delay | AY41: Queue length | AZ41: Tranist travel time | BA41: Number of crashes | BB41: Number of conflicts | BC41: Fuel consumption | BE41: Emissions - HC | BG41: Emissions - CO | BI41: Emissions - NOx
C42: Routes Based | D42: Network level | E42: Routes Based | F42: Network level | G42: Routes Based | H42: Network level | I42: Routes Based | J42: Network level | K42: Network level | L42: Routes Based | M42: Network level | N42: Routes Based | O42: Network level | P42: Routes Based | Q42: Network level | R42: Routes Based | S42: Network level | T42: Network level | W42: Routes based | X42: Network level | Y42: Routes based | Z42: Network level | AA42: Routes based | AB42: Network level | AC42: Routes based | AD42: Network level | AE42: Network level | AF42: Network level | AG42: Routes based | AH42: Network level | AI42: Routes based | AJ42: Network level | AK42: Routes based | AL42: Network level | AM42: Routes based | AN42: Network level | AO42: Network level | AR42: Routes Based | AS42: Network level | AT42: Routes Based | AU42: Network level | AV42: Routes Based | AW42: Network level | AX42: Routes Based | AY42: Routes Based | AZ42: Network level | BA42: Network level | BB42: Network level | BC42: Routes Based | BD42: Network level | BE42: Routes Based | BF42: Network level | BG42: Routes Based | BH42: Network level | BI42: Routes Based | BJ42: Network level
B43: Row Labels | C43: Average of 6.1 Difference Travel time 1234 [%] | D43: Average of 7. Diff Network Tt [%] | E43: Average of 6.1 Difference Delay 1234 [%] | F43: Average of 7. Diff Network delay [%] | G43: Average of 6.1 Diff Number of stops Dir 1234 [#]2 | H43: Average of 7. Diff Network delay [%]2 | I43: Average of 3. Diff Side Street Delay 12 [%] | J43: Average of 1. Diff Network Transit Travel Time [%] | K43: Average of 3. Diff Total number of conflicts [%] | L43: Average of 6.1 Diff Fuel consumption Dir 1234 [%] | M43: Average of 7. Diff Fuel consumption Network [%] | N43: Average of 6.1 Diff Emissions - HC - Dir 1234 [%] | O43: Average of 7. Diff Network Emissions - HC [%] | P43: Average of 6.1 Diff Emissions - CO - Dir 1234 [%] | Q43: Average of 7. Diff Network Emissions - CO [%] | R43: Average of 6.1 Diff Emissions - NOx - Dir 1234 [%] | S43: Average of 7. Diff Network Emissions - NOx [%] | T43: Average of 1. Diff Total Network Emissions [%] | V43: Row Labels | W43: Average of 6.1 Difference Travel time 1234 [%]2 | X43: Average of 7. Diff Network Tt [%]15 | Y43: Average of 6.1 Difference Delay 1234 [%]2 | Z43: Average of 7. Diff Network delay [%]15 | AA43: Average of 6.1 Diff Number of stops Dir 1234 [%] | AB43: Average of 7. Diff Network Numb of stops [%]15 | AC43: Average of 3. Diff Side Street Delay 12 [%]7 | AD43: Average of 1. Diff Network Transit Travel Time [%]3 | AE43: Average of 1. Diff Number of crashes - Total number [%]7 | AF43: Average of 3. Diff Total number of conflicts [%]15 | AG43: Average of 6.1 Diff Fuel consumption Dir 1234 [%]2 | AH43: Average of 7. Diff Fuel consumption Network [%]15 | AI43: Average of 6.1 Diff Emissions - HC - Dir 1234 [%]2 | AJ43: Average of 7. Diff Network Emissions - HC [%]15 | AK43: Average of 6.1 Diff Emissions - CO - Dir 1234 [%]2 | AL43: Average of 7. Diff Network Emissions - CO [%]15 | AM43: Average of 6.1 Diff Emissions - NOx - Dir 1234 [%]2 | AN43: Average of 7. Diff Network Emissions - NOx [%]15 | AO43: Average of 1. Diff Total Network Emissions [%]2 | AQ43: Row Labels | AR43: Average of 6.1 Difference Travel time 1234 [%]3 | AS43: Average of 7. Diff Network Tt [%]16 | AT43: Average of 6.1 Difference Delay 1234 [%]3 | AU43: Average of 7. Diff Network delay [%]16 | AV43: Average of 6.1 Diff Number of stops Dir 1234 [%]2 | AW43: Average of 7. Diff Network Numb of stops [%]16 | AX43: Average of 3. Diff Side Street Delay 12 [%]8 | AY43: Average of 3. Diff Queue lenghts 12 [%]8 | AZ43: Average of 1. Diff Network Transit Travel Time [%]33 | BA43: Average of 1. Diff Number of crashes - Total number [%]8 | BB43: Average of 3. Diff Total number of conflicts [%]16 | BC43: Average of 6.1 Diff Fuel consumption Dir 1234 [%]3 | BD43: Average of 7. Diff Fuel consumption Network [%]16 | BE43: Average of 6.1 Diff Emissions - HC - Dir 1234 [%]3 | BF43: Average of 7. Diff Network Emissions - HC [%]16 | BG43: Average of 6.1 Diff Emissions - CO - Dir 1234 [%]3 | BH43: Average of 7. Diff Network Emissions - CO [%]16 | BI43: Average of 6.1 Diff Emissions - NOx - Dir 1234 [%]3 | BJ43: Average of 7. Diff Network Emissions - NOx [%]16
B44: 4 | E44: 17 | V44: 4 | Y44: -1.4 | AQ44: 4 | AT44: -17.6
B45: 5 | F45: -5.5 | V45: 5 | Z45: -5.8 | AQ45: 5 | AU45: -2.5
B46: 6 | E46: 2.5 | I46: 6 | V46: 6 | Y46: -12.3 | AQ46: 6 | AT46: -12.4
B47: 35 | C47: -32.42815713 | E47: -74.57142857 | G47: -66.17647059 | V47: 8 | X47: -8 | AQ47: 8 | AS47: -4
B48: 43 | C48: -25.08896797 | E48: -64.48598131 | G48: -25.92592593 | V48: 10 | W48: -28.93982808 | AQ48: 10 | AR48: -18.55345912 | AY48: -15.4 | BA48: -13.2
B49: 44 | C49: -31.0626703 | E49: -71.61290323 | G49: -71.42857143 | V49: 11 | W49: -24.07407407 | AQ49: 11 | AR49: -6.934306569
B50: 63 | C50: -11.6209564 | E50: 31.79005375 | G50: -22 | I50: 56.56087683 | L50: -0.3016503657 | V50: 11.1 | W50: -1.654135338 | Y50: -11.4 | AA50: -27.27272727 | AE50: -22.28947368 | AG50: -2.752293578 | AI50: -5.6 | AK50: -2.2 | AM50: -7.9 | AQ50: 11.1 | AR50: -6.686243506 | AT50: -19.05063291 | AV50: -26.42642643 | BC50: -6.52173913 | BE50: -7.619047619 | BG50: -7.379231647 | BI50: -8.157099698
B51: 8 | D51: -4 | V51: 19 | W51: -3.1 | AA51: -51 | AQ51: 19 | AR51: 2.5 | AV51: 0
B52: 11 | C52: -14.45466491 | V52: 20 | W52: -9.1 | AA52: -30.3 | AQ52: 20 | AR52: -9.7 | AV52: -40.6
B53: 19 | C53: -4.6 | G53: -34.6 | V53: 21 | W53: 13.2 | AA53: 29 | AQ53: 21 | AR53: 6.4 | AV53: -5.8
B54: 46 | C54: -3.766478343 | E54: -8.325074331 | G54: 3.3 | V54: 22 | W54: -21.7 | AA54: -54.3 | AQ54: 22 | AR54: -33.4 | AV54: -67.9
B55: 82 | C55: -18.225 | E55: -31.225 | G55: 1.275 | V55: 23 | W55: -1.1 | AA55: -28.6 | AQ55: 23 | AR55: -3.5 | AV55: 6.5
B56: 10 | C56: -17.99660441 | V56: 24 | W56: -13 | AA56: -32.3 | AQ56: 24 | AR56: -21.4 | AV56: -43.2
B57: 20 | C57: 10.3 | G57: -9.3 | V57: 25 | W57: -11.8 | AA57: -27.2 | AQ57: 25 | AR57: -15.4 | AV57: -31.2
B58: 21 | C58: 15.6 | G58: 28.3 | V58: 26 | W58: -7 | AA58: -31.5 | AQ58: 26 | AR58: 3 | AV58: 0
B59: 22 | C59: -36.6 | G59: -63 | V59: 27 | W59: -26.3 | AA59: -65.2 | AQ59: 27 | AR59: -20.7 | AV59: -60.4
B60: 23 | C60: -1.4 | G60: -14.3 | V60: 28 | W60: -9 | AA60: -31 | AQ60: 28 | AR60: -11.4 | AV60: -47.6
B61: 24 | C61: -13.1 | G61: -34.8 | V61: 29 | W61: -15.2 | AA61: -9.1 | AQ61: 29 | AR61: -19.1 | AV61: -35.5
B62: 25 | C62: -16.1 | G62: -43.6 | V62: 30 | W62: -19.5 | AA62: -50.5 | AQ62: 30 | AR62: -21.2 | AV62: -59
B63: 26 | C63: -0.5 | G63: -7.5 | V63: 31 | W63: -23.5 | AA63: -61.5 | AQ63: 31 | AR63: -27 | AV63: -53.5
B64: 27 | C64: -9.2 | G64: -54.1 | V64: 37 | AJ64: -9.93 | AL64: -5.86 | AN64: -9.34 | AQ64: 35 | AR64: -42.3917657 | AT64: -79.13418137 | AV64: -82.65306122
B65: 28 | C65: -6.5 | G65: -27.1 | V65: 39 | W65: -0.7556675063 | AQ65: 35.1 | AR65: -16.38370119 | AT65: -26.63110382 | AV65: -39.79591837
B66: 29 | C66: -4.9 | G66: -16.1 | V66: 40 | X66: -17.1875 | AQ66: 35.2 | AR66: -37.73344652 | AT66: -82.60155929 | AV66: -53.06122449
B67: 30 | C67: -16.6 | G67: -46 | V67: 43 | W67: -15.55555556 | Y67: -50.5 | AA67: -10 | AQ67: 35.3 | AR67: -21.53013582 | AT67: -39.12597456 | AV67: -44.89795918
B68: 31 | C68: -29.5 | G68: -61 | V68: 44 | W68: -17.09558824 | Y68: -72.26890756 | AA68: -62.96296296 | AQ68: 35.4 | AR68: 33.04329372 | AT68: 64.13623307 | AV68: 26.53061224
B69: 32 | C69: -3 | V69: 46 | W69: -12.10691824 | Y69: -31.71171171 | AA69: -32.14285714 | AQ69: 37 | BF69: -10.01 | BH69: -5.43 | BJ69: -21.14
B70: 35.1 | C70: -27.31347219 | E70: -58.95238095 | G70: -61.76470588 | V70: 60 | W70: -9.522098455 | AQ70: 39 | AR70: -13.4594398
B71: 35.2 | C71: -33.89137886 | E71: -86 | G71: -44.11764706 | V71: 61 | W71: -0.2473716759 | AQ71: 40 | AS71: -12.90322581
B72: 35.3 | C72: -19.07461113 | E72: -31.61904762 | G72: -57.35294118 | V72: 62 | W72: -33.02891933 | Y72: -96.7032967 | AA72: -100 | AG72: -66.66666667 | AI72: -67.9 | AQ72: 43 | AR72: -14.53590193 | AT72: -37.61061947 | AV72: -30.3030303
B73: 35.4 | C73: -12.03532824 | E73: -23.65079365 | G73: -44.11764706 | V73: 62.1 | W73: -16.07963247 | Y73: -65.25423729 | AA73: -50 | AG73: -24.19354839 | AK73: -24.1 | AM73: -24.1 | AQ73: 44 | AR73: -10.05199307 | AT73: -34.41558442 | AV73: 0
B74: 37 | O74: -3.98 | Q74: -4 | S74: -5.05 | V74: 63 | W74: -1.047529706 | Y74: 5.499676106 | AA74: 1.612903226 | AC74: 45.68076473 | AG74: 0.459081339 | AQ74: 46 | AR74: -15.66757493 | AT74: -36.98464026 | AV74: -36
B75: 39 | C75: -11.2561909 | V75: 65 | W75: 1.175406872 | AQ75: 49 | AR75: -3.936280107 | AT75: -12.08694375 | AV75: 0
B76: 40 | D76: -8.771929825 | V76: 65.1 | W76: 9.976662777 | AQ76: 49.1 | AS76: -1.36 | AU76: -4.36 | AW76: -14 | BB76: -11.66999939 | BD76: -2 | BF76: -2.58 | BH76: -2.36 | BJ76: -2.12
B77: 65 | C77: 1.566820276 | V77: 66 | W77: -7.317073171 | AQ77: 49.2 | AU77: -17 | AW77: -24
B78: 65.1 | C78: 29.55163043 | V78: 67 | W78: -26.0210035 | Y78: -40.54545455 | AA78: -34.93975904 | AG78: -21.42857143 | AI78: -26.7 | AK78: -25.4 | AM78: -25 | AQ78: 50 | AS78: -16.6 | AU78: -24.7 | AY78: -15.4
B79: 66 | C79: -7.788944724 | V79: 71 | W79: -8.755707103 | Y79: -32.60971055 | AA79: 2.631578947 | AG79: -1.777728086 | AQ79: 51 | AS79: -8.9 | AU79: -26.5 | AY79: -3.8
B80: 68 | C80: 28.20512821 | G80: 128.5714286 | V80: 72 | W80: -13.87259357 | Y80: -36.23743418 | AA80: -25.51020408 | AG80: -6.537138231 | AQ80: 52 | AS80: -7 | AU80: -15 | AY80: -10
B81: 70 | C81: -21.16402116 | V81: 74.1 | W81: -3.619047619 | AQ81: 53 | AU81: -12
B82: 71 | C82: -21.0692191 | E82: -41.50644651 | G82: -30.09708738 | L82: -0.2573570549 | V82: 76 | X82: -32.83 | Z82: -49.82 | AB82: -52.58 | AO82: -0.29 | AQ82: 56 | AU82: -18.80492091
B83: 79 | C83: -2.745098039 | E83: -7.901907357 | V83: 76.2 | Z83: -14.4 | AQ83: 60 | AR83: -21.85452163
B84: 87 | C84: 7.024495677 | E84: 13.06462821 | G84: -4.285714286 | V84: 77 | W84: 1.278409091 | AA84: -45.58823529 | AQ84: 61 | AR84: 0.1145475372
B85: 89 | C85: -8.255728012 | E85: -15.73111573 | G85: -20.63492063 | L85: -6.666666667 | N85: -3.543307087 | P85: -1.341071289 | R85: -3.523316062 | V85: 78 | W85: -14.07624633 | Y85: -26.78571429 | AB85: -5.8 | AC85: -4.35 | AF85: -8.399797689 | AQ85: 62 | AR85: -14 | AT85: -17.85714286 | AV85: -33.33333333 | AY85: -20.68965517 | BA85: -20.81894425 | BE85: -22.37124464
B86: 92 | D86: -23.8 | E86: 6.3 | F86: 6.4 | I86: 2.3 | V86: 82 | W86: -19.175 | Y86: 112.275 | AA86: -10.75 | AQ86: 62.1 | AR86: -4.028776978 | AT86: -5.737704918 | AV86: 0 | AY86: -20.68965517 | BB86: -9.694299091 | BC86: -9.631728045 | BG86: -9.694299091 | BI86: -9.631728045
B87: 49 | C87: -7.647939659 | E87: -18.92901619 | G87: -18 | V87: 84 | X87: 0 | Z87: 0.1 | AB87: 0.1 | AC87: 0.4 | AD87: -4.6 | AH87: 0 | AJ87: 0.1 | AL87: 0.1 | AN87: 0 | AQ87: 63 | AR87: -2.118460873 | AT87: -10.51384587 | AV87: -22.85714286 | AX87: 45.5583285 | BC87: 5.357178895
B88: 60 | C88: -13.99922118 | V88: 89 | W88: -3.471620877 | Y88: -7.65391015 | AA88: -17.88617886 | AG88: -4.833836858 | AI88: -6.451612903 | AK88: -4.473462511 | AM88: -3.379091869 | AQ88: 65 | AR88: 11.33648236
B89: 61 | C89: -6.116248349 | V89: Average | W89: -10.86347589 | X89: -14.504375 | Y89: -24.50638006 | Z89: -17.48 | AA89: -32.9349401 | AB89: -19.42666667 | AC89: 13.91025491 | AD89: -4.6 | AE89: -22.28947368 | AF89: -8.399797689 | AG89: -15.96633774 | AH89: 0 | AI89: -26.66290323 | AJ89: -4.915 | AK89: -14.04336563 | AL89: -2.88 | AM89: -15.09477297 | AN89: -4.67 | AO89: -0.29 | AQ89: 65.1 | AR89: 11.67282022
B90: 62 | C90: -17.75568182 | E90: -47.68518519 | G90: -16.66666667 | L90: -27.77777778 | N90: -28.90418211 | AQ90: 66 | AR90: -11.1827957
B91: 62.1 | C91: -12.97814208 | E91: -29.8245614 | G91: -28.57142857 | L91: -14.51612903 | P91: -13.33800514 | R91: -13.20528211 | AQ91: 67 | AR91: -11.15065243 | AT91: -17.57009346 | AV91: -18.07228916 | AY91: -7.692307692 | BA91: -7.874015748 | BB91: -10.42277103 | BC91: -5.161290323 | BE91: -9.311740891 | BG91: -10.42277103 | BI91: -5.161290323
B92: 67 | C92: -5.372616984 | E92: -11.48148148 | G92: -24.52830189 | L92: -9.523809524 | N92: -8.021390374 | P92: -7.240811849 | R92: -7.03125 | AQ92: 68.1 | AT92: 23.7 | AU92: 0.1207729469 | AV92: 53.7 | AW92: 14.28571429
B93: 72 | C93: -13.74039494 | E93: -37.1257485 | G93: -34.61538462 | L93: -7.884540876 | AQ93: 69 | AS93: 0 | AU93: 0.272851296
B94: 74.1 | C94: 3.03030303 | AQ94: 70 | AR94: -10.81967213
B95: 76 | D95: -30.11 | F95: -47.78 | H95: -29.14 | T95: -0.2383 | AQ95: 71 | AR95: -13.61397688 | AT95: -40.85868188 | AV95: -36.69064748 | BC95: -4.1613723
B96: 76.2 | F96: -23.8 | AQ96: 72 | AR96: -4.516333149 | AT96: -13.29166667 | AV96: -10.28037383 | BC96: -4.118680461
B97: 77 | C97: -33.92007612 | G97: -66.66666667 | AQ97: 73 | AS97: -20 | AU97: -38.46153846
B98: 78 | C98: -12.38850347 | E98: -30.55555556 | H98: -11.76470588 | I98: -6.415929204 | K98: -5.935104383 | M98: -3.41177249 | O98: -0.998185118 | Q98: -0.998185118 | S98: -4.844290657 | AQ98: 74 | AR98: -3.423423423 | AS98: -26.66666667 | AT98: -17.03470032 | AU98: -45.45454545 | AX98: -45.0674237 | AY98: -2.538071066
B99: 84 | D99: 1.3 | F99: 2.7 | H99: 0.7 | I99: 0.3 | J99: -3.8 | M99: 0.5 | O99: 0.2 | Q99: 0.1 | S99: 0.1 | AQ99: 74.1 | AR99: -12.27495908
B100: 86 | C100: 11.17056856 | AQ100: 75 | AS100: 26.31578947 | AU100: 50
B101: 88 | C101: -15.00522466 | E101: -41.49019608 | G101: -44.44444444 | AQ101: 76.2 | AU101: -9.3
B102: Average | C102: -10.28567906 | D102: -13.07638596 | E102: -27.5841309 | F102: -13.596 | G102: -27.39259105 | H102: -13.40156863 | I102: 11.74898952 | J102: -3.8 | K102: -5.935104383 | L102: -9.561133042 | M102: -1.455886245 | N102: -13.48962652 | O102: -1.592728373 | P102: -7.306629425 | Q102: -1.632728373 | R102: -7.919949392 | S102: -3.264763552 | T102: -0.2383 | AQ102: 77 | AR102: -13.14285714 | AV102: -37.77777778
AQ103: 78 | AR103: -13.15547378 | AT103: -33.33333333 | AW103: -7.344632768 | BB103: -2.068867286
AQ104: 79 | AR104: 6.488549618 | AT104: 3.636363636
AQ105: 82 | AR105: 28.25 | AT105: -81.975 | AV105: 22.575
AQ106: 83 | AV106: -22.8
AQ107: 84 | AS107: 0.4 | AU107: 0.9 | AW107: 0.1 | AX107: 1.8 | AZ107: -2.6 | BD107: 0.1 | BF107: 0.1 | BH107: 0 | BJ107: 0
AQ108: 86 | AR108: -1.896733404
AQ109: 87 | AR109: -10.0998681 | AT109: -18.30322074 | AV109: -36.61971831
AQ110: 88 | AR110: -12.06766917 | AT110: -29.12790698 | AV110: -23.68421053
AQ111: 89 | AR111: -10.25531308 | AT111: -24.62967057 | AV111: -15.38461538 | BC111: -4.776299879 | BE111: 5.93220339 | BG111: -5.458673933 | BI111: -3.620873269
AQ112: 91 | AR112: -9.3 | AT112: -23.1 | AU112: -18 | AX112: -16
AQ113: Average | AR113: -9.525715138 | AS113: -6.428554818 | AT113: -23.68524484 | AU113: -11.29921129 | AV113: -25.16755879 | AW113: -6.191783697 | AX113: -3.427273801 | AY113: -12.02621114 | AZ113: -2.6 | BA113: -13.96432 | BB113: -8.4639842 | BC113: -4.14484732 | BD113: -0.95 | BE113: -8.342457439 | BF113: -4.163333333 | BG113: -8.238743926 | BH113: -2.596666667 | BI113: -6.642747834 | BJ113: -7.753333333
C115: Performance measures reduction [%] - Friday PM Peak Hour | Z115: Performance measures reduction [%] - Average Saturday | AT115: Performance measures reduction [%] - Average weekday
D116: Efficiency impact | L116: Environmental impact | AA116: Efficiency impact | AE116: Environmental impact | AU116: Efficiency impact | BC116: Environmental impact
C117: Ev. study | D117: Travel time | F117: Delay | H117: Number of Stops | J117: Side Street Delay | K117: Queue Lengths | L117: Fuel Consumption | N117: Emissions - HC | P117: Emissions - CO | R117: Emissions - NOx | Z117: Ev. study | AA117: Travel time | AB117: Delay | AD117: Number of Stops | AE117: Fuel Consumption | AF117: Emissions - HC | AG117: Emissions - CO | AH117: Emissions - NOx | AT117: Ev. study | AU117: Travel time | AV117: Delay | AX117: Split failure | AY117: Side street delay | AZ117: Side street split failure | BA117: Tranist travel time | BB117: Number of crashes | BC117: Fuel consumption | BD117: Emissions - HC | BE117: Emissions - CO | BF117: Emissions - NOx
D118: Routes Based | E118: Network level | F118: Routes Based | G118: Network level | H118: Routes Based | I118: Network level | J118: Routes Based | K118: Network level | L118: Routes Based | M118: Network level | N118: Routes Based | O118: Network level | P118: Routes Based | Q118: Network level | R118: Routes Based | S118: Network level | AA118: Routes Based | AB118: Routes Based | AC118: Network level | AD118: Routes Based | AE118: Routes Based | AF118: Routes Based | AG118: Routes Based | AH118: Routes Based | AU118: Routes based | AV118: Routes Based | AW118: Network level | AX118: Network level | AY118: Routes based | AZ118: Network level | BA118: Routes Based | BB118: Routes based | BC118: Network level | BD118: Routes based | BE118: Routes based | BF118: Routes based
C119: Row Labels | D119: Average of 6.1 Difference Travel time 1234 [%]3141 | E119: Average of 7. Diff Network Tt [%]16143 | F119: Average of 6.1 Difference Delay 1234 [%]3157 | G119: Average of 7. Diff Network delay [%]16159 | H119: Average of 6.1 Diff Number of stops Dir 1234 [%]2173 | I119: Average of 7. Diff Network Numb of stops [%]16175 | J119: Average of 3. Diff Side Street Delay 12 [%]8181 | K119: Average of 3. Diff Queue lenghts 12 [%]8187 | L119: Average of 6. Diff Fuel consumption Dir 34 [%]14213 | M119: Average of 7. Diff Fuel consumption Network [%]16215 | N119: Average of 6. Diff Emissions - HC - Dir 34 [%]14227 | O119: Average of 7. Diff Network Emissions - HC [%]16229 | P119: Average of 6. Diff Emissions - CO - Dir 34 [%]14241 | Q119: Average of 7. Diff Network Emissions - CO [%]16243 | R119: Average of 6. Diff Emissions - NOx - Dir 34 [%]14255 | S119: Average of 7. Diff Network Emissions - NOx [%]16257 | Z119: Row Labels | AA119: Average of 6.1 Difference Travel time 1234 [%]3141141 | AB119: Average of 6.1 Difference Delay 1234 [%]3157157 | AC119: Average of 7. Diff Network delay [%]16159159 | AD119: Average of 6.1 Diff Number of stops Dir 1234 [%]2173173 | AE119: Average of 6. Diff Fuel consumption Dir 34 [%]14213213 | AF119: Average of 6. Diff Emissions - HC - Dir 34 [%]14227227 | AG119: Average of 6. Diff Emissions - CO - Dir 34 [%]14241241 | AH119: Average of 6. Diff Emissions - NOx - Dir 34 [%]14255255 | AT119: Row Labels | AU119: Average of 6.1 Difference Travel time 1234 [%]3141141141 | AV119: Average of 6.1 Difference Delay 1234 [%]3157157157 | AW119: Average of 7. Diff Network delay [%]16159159159 | AX119: Average of 1. Diff Split Failure Dir 12 (%) | AY119: Average of 3. Diff Side Street Delay 12 [%]8181181181 | AZ119: Average of 1. Diff Split Failure SideStreet (%) | BA119: Average of 3. Diff Transit travel time Dir 12 [%]81331331337 | BB119: Average of 1. Diff Number of crashes - Total number [%]8193193193 | BC119: Average of 3. Diff Fuel consumption Dir 12 [%]8207207207 | BD119: Average of 3. Diff Emissions - HC - Dir 12 [%]8221221221 | BE119: Average of 3. Diff Emissions - CO - Dir 12 [%]8235235235 | BF119: Average of 3. Diff Emissions - NOx - Dir 12 [%]8249249249
C120: 11.1 | D120: -3.336271485 | F120: -10.89681222 | H120: -22.50639386 | L120: -2.222222222 | N120: -1.107366394 | P120: 0.4545454545 | R120: -0.6939090208 | Z120: 11.1 | AA120: -4.468549944 | AB120: -15.27686992 | AD120: -28.81355932 | AE120: -3.331769122 | AF120: -4.675467547 | AG120: -2.799790995 | AH120: -5.427046263 | AT120: 15 | AU120: -9 | AV120: -13 | BC120: -3 | BD120: -9 | BE120: -4 | BF120: -4
C121: 35.3 | D121: -19.07461113 | F121: -31.61904762 | H121: -57.35294118 | Z121: 15 | AA121: -11 | AB121: -37 | AT121: 16 | AU121: -6 | AV121: -15 | BC121: -2 | BD121: 0 | BE121: -2 | BF121: -1
C122: 50 | E122: -22 | G122: -27.4 | K122: -22.5 | Z122: 16 | AA122: -19 | AB122: -54 | AT122: 48 | AX122: -85.5 | AZ122: -11
C123: 51 | E123: -18.5 | G123: -32.2 | K123: -21.6 | Z123: 46 | AA123: -10.35058431 | AB123: -35.07670851 | AD123: -11.11111111 | AT123: 76.1 | BB123: -69.02465166
C124: 64.1 | M124: 3.476623784 | O124: 3.921568627 | Q124: 6.889128095 | S124: 1.904761905 | Z124: 49 | AA124: -1.954397394 | AB124: -13.20477887 | AD124: -5.769230769 | AT124: 80 | AU124: -3.213367609
C125: 68.1 | F125: 27.4 | G125: 4.052443385 | H125: 56 | I125: 26.61870504 | Z125: 63 | AA125: -14.77017937 | AD125: -14.28571429 | AT125: 81 | BA125: -0.3107520199
C126: 69 | E126: -3.3 | G126: -3.9 | Z126: 76.2 | AC126: -20.4 | AT126: 85 | AW126: -0.5586592179
C127: 78 | D127: -16.52 | F127: -35.4 | I127: -9.37 | J127: -3.5 | Z127: Average | AA127: -10.25728517 | AB127: -30.91167146 | AC127: -20.4 | AD127: -14.99490387 | AE127: -3.331769122 | AF127: -4.675467547 | AG127: -2.799790995 | AH127: -5.427046263 | AT127: 90 | AV127: 0.6188118812 | AW127: -1.17370892 | AY127: -1.945080092
C128: 79 | D128: -19.10994764 | AT128: 90.1 | AV128: -0.9756097561 | AW128: -1.149425287 | AY128: -1.248266297
C129: Average | D129: -14.51020756 | E129: -14.6 | F129: -12.62896496 | G129: -14.86188915 | H129: -7.953111679 | I129: 8.624352518 | J129: -3.5 | K129: -22.05 | L129: -2.222222222 | M129: 3.476623784 | N129: -1.107366394 | O129: 3.921568627 | P129: 0.4545454545 | Q129: 6.889128095 | R129: -0.6939090208 | S129: 1.904761905 | AT129: Average | AU129: -6.071122536 | AV129: -7.089199469 | AW129: -0.9605978085 | AX129: -85.5 | AY129: -1.596673194 | AZ129: -11 | BA129: -0.3107520199 | BB129: -69.02465166 | BC129: -2.5 | BD129: -4.5 | BE129: -3 | BF129: -2.5

Sheet List of Studies
A1: NCHRP 20-70/Task 414 - Benefits of Adaptive Traffic Control Deployments - A Review of Evaluation Studies
A4: List of referenced studies
A6: Referenced Studies
A7: Alabama Department of Transportation - Birmingham
A8: 75. Lidbe, A., Tedla, E., Hainen, A., Sullivan, A. and Jones Jr, S., 2017. Comparative assessment of arterial operations under conventional time-of-day and adaptive traffic signal control. Advances in Transportation Studies, 42.
A9: Alabama Department of Transportation - Montgomery
A10: 73. Lidbe, A., Tedla, E., Hainen, A., Sullivan, A. and Jones Jr, S., 2017. Comparative assessment of arterial operations under conventional time-of-day and adaptive traffic signal control. Advances in Transportation Studies, 42.
A11: 74. Lidbe, A., Tedla, E., Hainen, A., Sullivan, A. and Jones Jr, S., 2017. Comparative assessment of arterial operations under conventional time-of-day and adaptive traffic signal control. Advances in Transportation Studies, 42.
A12: 74.1. Lidbe, A.D., Tedla, E.G., Hainen, A.M. and Jones Jr, S.L., 2017. Analytical techniques for evaluating the implementation of adaptive traffic signal control systems. Journal of Transportation Engineering, Part A: Systems, 143(5), p.04017011.
A13: Arlington county
A14: 84. Dion, F., Rakha, H. and Zhang, Y., 2005, January. Integration of transit signal priority within adaptive traffic signal control systems. In 84th Annual Meeting of the Transportation Research Board, Washington, DC.
A15: California Department of Transportation - Los Angeles
A16: 38. Not provided
A17: 39. Campbell, R.J. and Skabardonis, A., 2014. Field Testing the Effectiveness of Adaptive Traffic Control for Arterial Signal Management. California Department of Transportation, Division of Research, Innovation and System Information.
A18: California Department of Transportation - Sacramento
A19: 40. Skabardonis, A. and Gomes, G., 2010. Effectiveness of Adaptive Traffic Control for Arterial Signal Management: Modeling Results.
A20: City of Atlanta
A21: 70. Wang, J., Robinson, B., Shelby, S.G., Cox, K.B. and Townsend, W., 2010. Evaluation of ACS lite adaptive control using Sensys Arterial Travel Time data. In ITS America 20th Annual Meeting & ExpositionITS America.
A22: City of Austin
A23: 18. Not evaluated
A24: City of Bellevue
A25: 33. Not provided
A26: City of Boca Raton
A27: 80. So, J., Stevanovic, A., Posadas, E. and Awwad, R., 2014. Field Evaluation of a SynchroGreen Adaptive Signal System. In 2nd American Society of Civil Engineers (ASCE) Transportation and Development Institute (T&DI) Conference Proceedings.
A28: City of Chula Vista
A29: 89. Chau C., and Al-Aga, S., 2003. Adaptive traffic control system using SCATS. Land development and Transportation Divison Engineering Department, City of Chula Vista, California.
A30: City of Gahanna
A31: 87. a) Gettman, D., Shelby, S. and Ghaman, R., 2006. Adaptive Control Software–Lite (ACS-Lite) Implementation Template. FHWA Resource center–Operations Technical Support Team, USA. b) Thompson, C.D., P. Silberman, and Z.A. Sabra, Adaptive Control Software—LITE Before and After Traffic Analysis Report State Highway 6—City of Houston, Tex., Mar. 2006
A32: City of Gresham
A33: 46. a) Peters, J.M., McCoy, J. and Bertini, R.L., 2007. Evaluating and Adaptive Signal Control System in Gresham. Civil and Environmental Engineering Faculty Publications and Presentations. Portland State University. Paper 190. b) DKS Associates, I. and Siemens, Gresham/Multnomah County Phase 3 Traffic Signal System Optimization: Final Report Summary of Traffic Adaptive Signal Control System Evaluation, 2005. c) Peters, J.M., Monsere, C.M., Li, H., Mahmud, M. and Boice, S., 2008, January. Field-based evaluation of corridor performance after deployment of an adaptive signal control systems in gresham, oregon. In Transportation Research Board 2008 Annual Meeting CD-Rom.
A34: City of Harrisburg
A35: 57. Not evaluated
A36: City of Huston
A37: 88. a) Gettman, D., Shelby, S. and Ghaman, R., 2006. Adaptive Control Software–Lite (ACS-Lite) Implementation Template. FHWA Resource center–Operations Technical Support Team, USA. b) Sabra, Z.A., Wang & Associates, Inc., Adaptive Control Software—LITE Before and After Traffic Analysis Report Hamilton Road—City of Gahanna, Ohio, Nov. 2005.
A38: City of Madison Traffic Engineering
A39: 42. Not provided
A40: City of Menlo Park
A41: 59. Not provided
A42: City of Miami Beach
A43: 91. Dakic, I. and Stevanovic, A.Z. (2016) “Evaluation of Kadence Adaptive Traffic Control Through High Fidelity Microsimulation Modeling.” Presented at the 96th Transportation Research Board Annual Meeting.
A44: 92. Dakic, I. and Stevanovic, A.Z. (2016) “Evaluation of InSync adaptive control in urban networks under variety of traffic conditions.” Submitted for 96th Transportation Research Board Annual Meeting.
A45: City of Norman
A46: 55. Not provided
A47: City of Overland Park
A48: 58. Not evaluated
A49: City of Philadelphia
A50: 34. Not provided
A51: City of Pittsburgh
A52: 76. Smith, S.F., Barlow, G.J., Xie, X.F. and Rubinstein, Z.B., 2013, June. Smart urban signal networks: Initial application of the surtrac adaptive traffic signal control system. In Twenty-Third International Conference on Automated Planning and Scheduling.
A53: 76.1. Khattak, Z.H., Magalotti, M.J. and Fontaine, M.D., 2018. Estimating safety effects of adaptive signal control technology using the Empirical Bayes method. Journal of safety research, 64, pp.121-128.
A54: 76.2. Hu, Y., 2014. The Impact of Pedestrian Activities in Adaptive Traffic Signal Control System Operations (Doctoral dissertation, University of Pittsburgh).
A55: 77. Khattak, Z.H., 2016. Evaluating the Operational and Safety Aspects of Adaptive Traffic Control Systems in Pennsylvania (Doctoral dissertation, University of Pittsburgh).
A56: City of Port St. Lucie
A57: 35. Marlin Engineering, Inc., 2019. Travel Time and Delay Study – St. Lucie West Boulevard - Interstate 95 northbound off/on-ramp terminal intersection to NW/SW Bayshore Boulevard, Phase III, Draft Report
A58: 35.1. Marlin Engineering, Inc., 2019. Travel Time and Delay Study – St. Lucie West Boulevard - Interstate 95 northbound off/on-ramp terminal intersection to NW/SW Bayshore Boulevard, Phase III, Draft Report
A59: 35.2. Marlin Engineering, Inc., 2019. Travel Time and Delay Study – St. Lucie West Boulevard - Interstate 95 northbound off/on-ramp terminal intersection to NW/SW Bayshore Boulevard, Phase III, Draft Report
A60: 35.3. Marlin Engineering, Inc., 2019. Travel Time and Delay Study – St. Lucie West Boulevard - Interstate 95 northbound off/on-ramp terminal intersection to NW/SW Bayshore Boulevard, Phase III, Draft Report
A61: 35.4. Marlin Engineering, Inc., 2019. Travel Time and Delay Study – St. Lucie West Boulevard - Interstate 95 northbound off/on-ramp terminal intersection to NW/SW Bayshore Boulevard, Phase III, Draft Report
A62: City of Portland
A63: 81. a) Slavin, C. and Figliozzi, M., 2009. A Multimodal Evaluation of a Corridor Traffic Signal Performance: a case study on Powell Boulevard (Portland, Oregon). b) Figliozzi, Miguel A., and Christopher Monsere. "Evaluation of the Performance of the Sydney Coordinated Adaptive Traffic System (SCATS) on Powell Boulevard in Portland, OR." OTREC -RR-13-07. Portland, OR: Transportation Research and Education Center (TREC) 2013. c) Slavin, C., Feng, W., Figliozzi, M. and Koonce, P., 2013. Statistical study of the impact of adaptive traffic signal control on traffic and transit performance. Transportation Research Record, 2356(1), pp.117-126.
A64: City of Renton
A65: 17. Not evaluated
A66: City of Santa Clarita
A67: 56. City of Santa Clarita In-House Evaluation study - report, 2016. Santa Clarita, Whites Canyon – Phase Wait Time Report
A68: City of Stautnon
A69: 47. Not provided
A70: City of Waterloo
A71: 45. Not evaluated
A72: Cobb County
A73: 85. Hunter, M.P., Wu, S.K., Kim, H.K. and Suh, W., 2012. A probe-vehicle-based evaluation of adaptive traffic signal control. IEEE Transactions on Intelligent Transportation Systems, 13(2), pp.704-713.
A74: 86. Hunter, M.P., Roe, M. and Wu, S.K., 2010. Hardware-in-the-loop simulation evaluation of adaptive signal control. Transportation Research Record, 2192(1), pp.167-176.
A75: Collier County
A76: 54. Not provided
A77: Colorado Department of Transportation - Greeley
A78: 15. Sprague, D., 2012. Adaptive Signal Timing Comparison Between the InSync and QuicTrac Adaptive Signal Systems Installed in Colorado (No. CDOT-2012-6). Colorado. DTD Applied Research and Innovation Branch.
A79: Colorado Department of Transportation - Woodland Park
A80: 16. Sprague, D., 2012. Adaptive Signal Timing Comparison Between the InSync and QuicTrac Adaptive Signal Systems Installed in Colorado (No. CDOT-2012-6). Colorado. DTD Applied Research and Innovation Branch.
A81: Florida Department of Transportation - Miami
A82: 13. In preparation
A83: Florida Department of Transportation - Tampa
A84: 14. Not evaluated
A85: Illinois Department of Transportation - Springfield
A86: 65. Benekohal, R.F., Garshasebi, B., Liu, X. and Jeon, H., 2018. Evaluation of Adaptive Signal Control Technology—Volume 2: Comparison of Base Condition to the First Year After Implementation. Illinois Center for Transportation/Illinois Department of Transportation.
A87: 65.1. Benekohal, R.F., Garshasebi, B., Liu, X. and Jeon, H., 2019. Evaluation of Adaptive Signal Control Technology—Final Report. Illinois Center for Transportation/Illinois Department of Transportation.
A88: Lake County Division of Transportation
A89: 43. Sam Schwartz Engineering (SSE)., 2015. APTAKISIC ROAD BUFFALO GROVE, IL VALIDATION STUDY, Prepared for Lake County Division of Transporation.
A90: 44. Sam Schwartz Engineering (SSE)., 2015. GILMER ROAD MUNDELEIN, IL VALIDATION STUDY, Prepared for Lake County Division of Transporation.
A91: Maryland DOT State Highway Administration - Hanover
A92: 1. Not evaluated
A93: 2. Not evaluated
A94: 3. Not evaluated
A95: 4. Not provided
A96: 5. In house evaluation
A97: 6. In house evaluation
A98: 7. Not provided
A99: 8. Not provided
A100: Minnesota Department of Transportation - Minneapolis
A101: 79. SRF Consulting Group Inc. (2000). AUSCI -Adaptive Urban Signal Control and Integration. Final Evaluation Report SRF No. 0942089.8. Prepared for Minnesota DOT.
A102: Missouri Department of Transportation - Jefferson City
A103: 9. Not evaluated
A104: Missouri Department of Transportation - Kansas
A105: 10. Hutton, J.N., Bokenkroger, C.D. and Meyer, M.M., 2010. Evaluation of an adaptive traffic signal system: route 291 in Lee's Summit, Missouri (No. OR 10-020).
A106: Nevada Department of Transportation - Las Vegas
A107: 68. Tian, Z., Ohene, F. and Hu, P., 2011. Arterial performance evaluation on an adaptive traffic signal control system. Procedia-Social and Behavioral Sciences, 16, pp.230-239.
A108: 68.1. Zhao, Y. and Tian, Z., 2011. Applicability of Adaptive Traffic Control Systems in Nevada’s Urban Areas (No. 092-09-803). Nevada. Dept. of Transportation.
A109: 69. Zhao, Y. and Tian, Z., 2011. Applicability of Adaptive Traffic Control Systems in Nevada’s Urban Areas (No. 092-09-803). Nevada. Dept. of Transportation.
A110: New Jersey Department of Transportation - New Brunswick
A111: 83. Andrews, C.M., Elahi, S.M. and Clark, J.E., 1997. Evaluation of New Jersey Route 18 OPAC/MIST traffic-control system. Transportation Research Record, 1603(1), pp.150-155.
A112: New York State Department of Transportation - Albany
A113: 62. Elkins, S., Niehus, G., Tario, J.D. and Litteer, J., 2012. InSync Adaptive Traffic Control System for the Veterans Memorial Hwy Corridor on Long Island, NY (No. C-10-01).
A114: 62.1. Elkins, S., Niehus, G., Tario, J.D. and Litteer, J., 2012. InSync Adaptive Traffic Control System for the Veterans Memorial Hwy Corridor on Long Island, NY (No. C-10-01).
A115: 63. a) Ban, X.J., Kamga, C., Wang, X., Wojtowicz, J., Klepadlo, E., Sun, Z. and Mouskos, K., 2014. Adaptive Traffic Signal Control System (ACS-Lite) for Wolf Road, Albany, New York(No. C-10-13). New York (State). Dept. of Transportation. b) Sun, Z., Li, W., Ban, X. and Huang, T., 2018. An Adaptive Traffic Signal Control System (ACS-Lite) in Heavily Congested Arterial Traffic: Experiences and Lessons Learned. In CICTP 2018: Intelligence, Connectivity, and Mobility (pp. 1377-1385). Reston, VA: American Society of Civil Engineers.
A116: New York State Department of Transportation - White Plains
A117: 64. Lardoux, J., Martinez, R., White, C., Gross, N., Patel, N. and Meyer, R., 2014. Adaptive Traffic Signal Control for Tarrytown Road in White Plains, New York (No. C-10-17).
A118: 64.1. Ban, X. and Sun, Z., 2013. Simulation-based decision-making tool for adaptive traffic signal control on Tarrytown Road in the City of White Plains (No. C-10-03). New York State Energy Research and Development Authority.
A119: Orange County Public Works
A120: 82. Shafik, M.S.I., 2017. Field Evaluation of Insync Adaptive Traffic Signal Control System in Multiple Environments Using Multiple Approaches.
A121: Oregon Department of Transportation - Salem
A122: 66. Hathaway, E., Urbanik, T. and Tsoi, S., 2012. Cornell Road InSync System Evaluation. Project# 11075 Memorandum. Prepared for ODOT.
A123: Palm Beach County
A124: 60. Jeedigunta, G., 2017. Moving Traffic using Adaptive Traffic Control System, Okeechobee Blvd. and Northlake Blvd. evaluation study. Palm Beach County, Florida.
A125: 61. Jeedigunta, G., 2017. Moving Traffic using Adaptive Traffic Control System, Okeechobee Blvd. and Northlake Blvd. evaluation study. Palm Beach County, Florida.
A126: Pennsylvania Department of Transportation - Allegheny
A127: 36. Xin, W., 2015. Determining the Environmental Benefits of Adaptive Signal Control Systems using Simulation Models(Doctoral dissertation, University of Pittsburgh).
A128: Pennsylvania Department of Transportation - Bridgeville
A129: 36. Not provided
A130: Pinellas County
A131: 71. Gord & Associates., 2007. Adaptive versus traditional trafffic control systems: A field-based comparative assessment. Pinellas countywide ATMS project, Prepared for Florida DOT.
A132: 72. Gord & Associates., 2007. Adaptive versus traditional trafffic control systems: A field-based comparative assessment. Pinellas countywide ATMS project, Prepared for Florida DOT.
A133: Road Commission for Oakland County
A134: 11. Taylor, W.C. and Abdel-Rahim, A.S., 1998. Analysis of corridor delay under SCATS control: FAST-TRAC Phase III deliverable(No. EECS-ITS LAB-FT-083). Michigan State University.
A135: 11.1. a) Dutta, U., McAvoy, D., Lynch, J. and Vandeputte, L., 2008. Evaluation of the SCATS control system (No. Report No: MIOH UTC TS4 2008–Final TS 4, Project 2). Michigan Ohio University Transportation Center. b) Dutta, U. and McAvoy, D.S., 2010. Comparative Performance Evaluation of SCATS and Pre-timed Control Systems (No. 1430-2016-118677). c) Dutta, U., Lynch, J., Dara, B. and Bodke, S., 2010. Safety Evaluation of the SCATS Control System (No. RC-1545K).
A136: Seminole County
A137: 67. Cheek, M., Wetzel, C. and Dickson, C., 2012. SynchroGreen Real-Time Adaptive Traffic Control System Seminole County Deployment. In ITE 2012 Annual Meeting & ExhibitInstitute of Transportation Engineers (ITE).
A138: Utah Department of Transportation - Salt Lake City
A139: 48. Richardson, L.M., Luker, M.D., Day, C.M., Taylor, M. and Bullock, D.M., 2017. Outcome Assessment of Peer-to-Peer Adaptive Control Adjacent to a National Park. Transportation Research Record, 2620(1), pp.43-53.
A140: 49. Martin, P.T. and Stevanovic, A., 2008. Adaptive Signal Control V-SCATS Evaluation in Park City, Utah (No. MPC Report No. 08-200).
A141: 49.1. a) Stevanovic, A., Stevanovic, J. and Kergaye, C., 2012, January. Environmental benefits of adaptive traffic control system: Assessment of fuel consumption and vehicular emissions. In 91st Annual Meeting of the Transportation Research Board, Washington, DC. b) Stevanovic, A., Kergaye, C. and Haigwood, J., 2011, September. Assessment of surrogate safety benefits of an adaptive traffic control system. In 3rd International Conference on Road Safety and Simulation, Indianapolis, IN.
A142: 49.2. Stevanovic, A., Kergaye, C. and Stevanovic, J., 2012. Long-term benefits of adaptive traffic control under varying traffic flows during weekday peak hours. Transportation Research Record, 2311(1), pp.99-107.
A143: 50. a) Martin, P.T., Perrin, J., Chilukuri, B.R., Jhaveri, C. and Feng, Y., 2003. Adaptive signal control II (No. UT-03.28, UTL-0902-60). University of Utah. Dept. of Civil and Environmental Engineering. b) Jhaveri, C.S., Perrin, J. and Martin, P., 2003, January. SCOOT adaptive signal control: An evaluation of its effectiveness over a range of congestion intensities. In Transportation Research Board 2003 Annual Meeting, Compendium of Papers. c) Chilukuri, B.R., Perrin Jr, J. and Martin, P.T., 2004. Scoot and incidents: Performance evaluation in simulated environment. Transportation research record, 1867(1), pp.224-232.
A144: 51. a) Martin, P.T., Perrin, J., Chilukuri, B.R., Jhaveri, C. and Feng, Y., 2003. Adaptive signal control II (No. UT-03.28, UTL-0902-60). University of Utah. Dept. of Civil and Environmental Engineering. b) Chilukuri, B.R., Perrin Jr, J. and Martin, P.T., 2004. Scoot and incidents: Performance evaluation in simulated environment. Transportation research record, 1867(1), pp.224-232.
A145: 52. a) Martin, P.T., Perrin, J., Chilukuri, B.R., Jhaveri, C. and Feng, Y., 2003. Adaptive signal control II (No. UT-03.28, UTL-0902-60). University of Utah. Dept. of Civil and Environmental Engineering. b) Jhaveri, C.S., Perrin, J. and Martin, P., 2003, January. SCOOT adaptive signal control: An evaluation of its effectiveness over a range of congestion intensities. In Transportation Research Board 2003 Annual Meeting, Compendium of Papers.
A146: 53. Martin, P.T., Perrin, J., Chilukuri, B.R., Jhaveri, C. and Feng, Y., 2003. Adaptive signal control II (No. UT-03.28, UTL-0902-60). University of Utah. Dept. of Civil and Environmental Engineering.
A147: Virginia Department of Transportation - Fairfax
A148: 32. a) Gartner, N.H., Pooran, F.J. and Andrews, C.M., 2001. Implementation of the OPAC adaptive control strategy in a traffic signal network. In ITSC 2001. 2001 IEEE Intelligent Transportation Systems. Proceedings (Cat. No. 01TH8585)(pp. 195-200). IEEE. b) Gartner, N.H., Pooran, F.J. and Andrews, C.M., 2002. Optimized policies for adaptive control strategy in real-time traffic adaptive control systems: Implementation and field testing. Transportation Research Record, 1811(1), pp.148-156.
A149: Virginia Department of Transportation - Richmond
A150: 19. Fontaine, M.D., Ma, J. and Hu, J., 2015. Evaluation of the Virginia Department of Transportation adaptive signal control technology pilot project (No. VCTIR 15-R24). Virginia Center for Transportation Innovation and Research.
A151: 20. Fontaine, M.D., Ma, J. and Hu, J., 2015. Evaluation of the Virginia Department of Transportation adaptive signal control technology pilot project (No. VCTIR 15-R24). Virginia Center for Transportation Innovation and Research.
A152: 21. Fontaine, M.D., Ma, J. and Hu, J., 2015. Evaluation of the Virginia Department of Transportation adaptive signal control technology pilot project (No. VCTIR 15-R24). Virginia Center for Transportation Innovation and Research.
A153: 22. a) Fontaine, M.D., Ma, J. and Hu, J., 2015. Evaluation of the Virginia Department of Transportation adaptive signal control technology pilot project (No. VCTIR 15-R24). Virginia Center for Transportation Innovation and Research. b) Hu, J., Fontaine, M.D., Park, B.B. and Ma, J., 2015. Field evaluations of an adaptive traffic signal—using private-sector probe data. Journal of Transportation Engineering, 142(1), p.04015033.
A154: 23. a) Fontaine, M.D., Ma, J. and Hu, J., 2015. Evaluation of the Virginia Department of Transportation adaptive signal control technology pilot project (No. VCTIR 15-R24). Virginia Center for Transportation Innovation and Research. b) Hu, J., Fontaine, M.D., Park, B.B. and Ma, J., 2015. Field evaluations of an adaptive traffic signal—using private-sector probe data. Journal of Transportation Engineering, 142(1), p.04015033.
A155: 24. Fontaine, M.D., Ma, J. and Hu, J., 2015. Evaluation of the Virginia Department of Transportation adaptive signal control technology pilot project (No. VCTIR 15-R24). Virginia Center for Transportation Innovation and Research.
A156: 25. Fontaine, M.D., Ma, J. and Hu, J., 2015. Evaluation of the Virginia Department of Transportation adaptive signal control technology pilot project (No. VCTIR 15-R24). Virginia Center for Transportation Innovation and Research.
A157: 26. a) Fontaine, M.D., Ma, J. and Hu, J., 2015. Evaluation of the Virginia Department of Transportation adaptive signal control technology pilot project (No. VCTIR 15-R24). Virginia Center for Transportation Innovation and Research. b) Hu, J., Fontaine, M.D., Park, B.B. and Ma, J., 2015. Field evaluations of an adaptive traffic signal—using private-sector probe data. Journal of Transportation Engineering, 142(1), p.04015033.
A158: 27. a) Fontaine, M.D., Ma, J. and Hu, J., 2015. Evaluation of the Virginia Department of Transportation adaptive signal control technology pilot project (No. VCTIR 15-R24). Virginia Center for Transportation Innovation and Research. b) Hu, J., Fontaine, M.D., Park, B.B. and Ma, J., 2015. Field evaluations of an adaptive traffic signal—using private-sector probe data. Journal of Transportation Engineering, 142(1), p.04015033.
A159: 28. a) Fontaine, M.D., Ma, J. and Hu, J., 2015. Evaluation of the Virginia Department of Transportation adaptive signal control technology pilot project (No. VCTIR 15-R24). Virginia Center for Transportation Innovation and Research. b) Hu, J., Fontaine, M.D., Park, B.B. and Ma, J., 2015. Field evaluations of an adaptive traffic signal—using private-sector probe data. Journal of Transportation Engineering, 142(1), p.04015033.
A160: 29. Fontaine, M.D., Ma, J. and Hu, J., 2015. Evaluation of the Virginia Department of Transportation adaptive signal control technology pilot project (No. VCTIR 15-R24). Virginia Center for Transportation Innovation and Research.
A161: 30. a) Fontaine, M.D., Ma, J. and Hu, J., 2015. Evaluation of the Virginia Department of Transportation adaptive signal control technology pilot project (No. VCTIR 15-R24). Virginia Center for Transportation Innovation and Research. b) Hu, J., Fontaine, M.D., Park, B.B. and Ma, J., 2015. Field evaluations of an adaptive traffic signal—using private-sector probe data. Journal of Transportation Engineering, 142(1), p.04015033.
A162: 31. Fontaine, M.D., Ma, J. and Hu, J., 2015. Evaluation of the Virginia Department of Transportation adaptive signal control technology pilot project (No. VCTIR 15-R24). Virginia Center for Transportation Innovation and Research.
A163: Volusia County
A164: 78. a) Stevanovic, A. and Zlatkovic, M., 2013. Evaluation of InSync adaptive traffic signal control in microsimulation environment(No. 13-0487). b) Stevanovic, A., Dakic, I. and Zlatkovic, M., 2016. Comparison of adaptive traffic control benefits for recurring and non-recurring traffic conditions. IET Intelligent Transport Systems, 11(3), pp.142-151.
A165: Wakefield Public Works Department
A166: 41. Not provided
A167: West Goshen Township
A168: 13. Not evaluated
A169: West Virginia Department of Transportation - Division of Highways
A170: 90. a) Day, C.M., Ernst, J.M., Brennan Jr, T.M., Chou, C.S., Hainen, A.M., Remias, S.M., Nichols, A., Griggs, B.D. and Bullock, D.M., 2012. Performance measures for adaptive signal control: Case study of system-in-the-loop simulation. Transportation Research Record, 2311(1), pp.1-15. b) Nicholas, A., 2012. Adaptive Traffic Signal Control. Presented at WVDOG/MPOFHWA Planning Conference in Shepherdstown, West Virginia.
A171: 90.1. a) Day, C.M., Ernst, J.M., Brennan Jr, T.M., Chou, C.S., Hainen, A.M., Remias, S.M., Nichols, A., Griggs, B.D. and Bullock, D.M., 2012. Performance measures for adaptive signal control: Case study of system-in-the-loop simulation. Transportation Research Record, 2311(1), pp.1-15. b) Nicholas, A., 2012. Adaptive Traffic Signal Control. Presented at WVDOG/MPOFHWA Planning Conference in Shepherdstown, West Virginia.

Sheet List of Studies 2
A1: NCHRP 20-70/Task 414 - Benefits of Adaptive Traffic Control Deployments - A Review of Evaluation Studies
A4: List of referenced studies
A6: Referenced Studies
A7: Alabama Department of Transportation - Birmingham
A8: 75. Lidbe, A., Tedla, E., Hainen, A., Sullivan, A. and Jones Jr, S., 2017. Comparative assessment of arterial operations under conventional time-of-day and adaptive traffic signal control. Advances in Transportation Studies, 42.
A9: Alabama Department of Transportation - Montgomery
A10: 73. Lidbe, A., Tedla, E., Hainen, A., Sullivan, A. and Jones Jr, S., 2017. Comparative assessment of arterial operations under conventional time-of-day and adaptive traffic signal control. Advances in Transportation Studies, 42.
A11: 74. Lidbe, A., Tedla, E., Hainen, A., Sullivan, A. and Jones Jr, S., 2017. Comparative assessment of arterial operations under conventional time-of-day and adaptive traffic signal control. Advances in Transportation Studies, 42.
A12: 74.1. Lidbe, A.D., Tedla, E.G., Hainen, A.M. and Jones Jr, S.L., 2017. Analytical techniques for evaluating the implementation of adaptive traffic signal control systems. Journal of Transportation Engineering, Part A: Systems, 143(5), p.04017011.
A13: Arlington county
A14: 84. Dion, F., Rakha, H. and Zhang, Y., 2005, January. Integration of transit signal priority within adaptive traffic signal control systems. In 84th Annual Meeting of the Transportation Research Board, Washington, DC.
A15: California Department of Transportation - Los Angeles
A16: 38. Not provided
A17: 39. Campbell, R.J. and Skabardonis, A., 2014. Field Testing the Effectiveness of Adaptive Traffic Control for Arterial Signal Management. California Department of Transportation, Division of Research, Innovation and System Information.
A18: California Department of Transportation - Sacramento
A19: 40. Skabardonis, A. and Gomes, G., 2010. Effectiveness of Adaptive Traffic Control for Arterial Signal Management: Modeling Results.
A20: City of Atlanta
A21: 70. Wang, J., Robinson, B., Shelby, S.G., Cox, K.B. and Townsend, W., 2010. Evaluation of ACS lite adaptive control using Sensys Arterial Travel Time data. In ITS America 20th Annual Meeting & ExpositionITS America.
A22: City of Austin
A23: 18. Not evaluated
A24: City of Bellevue
A25: 33. Not provided
A26: City of Boca Raton
A27: 80. So, J., Stevanovic, A., Posadas, E. and Awwad, R., 2014. Field Evaluation of a SynchroGreen Adaptive Signal System. In 2nd American Society of Civil Engineers (ASCE) Transportation and Development Institute (T&DI) Conference Proceedings.
A28: City of Chula Vista
A29: 89. Chau C., and Al-Aga, S., 2003. Adaptive traffic control system using SCATS. Land development and Transportation Divison Engineering Department, City of Chula Vista, California.
A30: City of Gahanna
A31: 87. a) Gettman, D., Shelby, S. and Ghaman, R., 2006. Adaptive Control Software–Lite (ACS-Lite) Implementation Template. FHWA Resource center–Operations Technical Support Team, USA. b) Thompson, C.D., P. Silberman, and Z.A. Sabra, Adaptive Control Software—LITE Before and After Traffic Analysis Report State Highway 6—City of Houston, Tex., Mar. 2006
A32: City of Gresham
A33: 46. a) Peters, J.M., McCoy, J. and Bertini, R.L., 2007. Evaluating and Adaptive Signal Control System in Gresham. Civil and Environmental Engineering Faculty Publications and Presentations. Portland State University. Paper 190. b) DKS Associates, I. and Siemens, Gresham/Multnomah County Phase 3 Traffic Signal System Optimization: Final Report Summary of Traffic Adaptive Signal Control System Evaluation, 2005. c) Peters, J.M., Monsere, C.M., Li, H., Mahmud, M. and Boice, S., 2008, January. Field-based evaluation of corridor performance after deployment of an adaptive signal control systems in gresham, oregon. In Transportation Research Board 2008 Annual Meeting CD-Rom.
A34: City of Harrisburg
A35: 57. Not evaluated
A36: City of Huston
A37: 88. a) Gettman, D., Shelby, S. and Ghaman, R., 2006. Adaptive Control Software–Lite (ACS-Lite) Implementation Template. FHWA Resource center–Operations Technical Support Team, USA. b) Sabra, Z.A., Wang & Associates, Inc., Adaptive Control Software—LITE Before and After Traffic Analysis Report Hamilton Road—City of Gahanna, Ohio, Nov. 2005.
A38: City of Madison Traffic Engineering
A39: 42. Not provided
A40: City of Menlo Park
A41: 59. Not provided
A42: City of Miami Beach
A43: 91. Dakic, I. and Stevanovic, A.Z. (2016) “Evaluation of Kadence Adaptive Traffic Control Through High Fidelity Microsimulation Modeling.” Presented at the 96th Transportation Research Board Annual Meeting.
A44: 92. Dakic, I. and Stevanovic, A.Z. (2016) “Evaluation of InSync adaptive control in urban networks under variety of traffic conditions.” Submitted for 96th Transportation Research Board Annual Meeting.
A45: City of Norman
A46: 55. Not provided
A47: City of Overland Park
A48: 58. Not evaluated
A49: City of Philadelphia
A50: 34. Not provided
A51: City of Pittsburgh
A52: 76. Smith, S.F., Barlow, G.J., Xie, X.F. and Rubinstein, Z.B., 2013, June. Smart urban signal networks: Initial application of the surtrac adaptive traffic signal control system. In Twenty-Third International Conference on Automated Planning and Scheduling.
A53: 76.1. Khattak, Z.H., Magalotti, M.J. and Fontaine, M.D., 2018. Estimating safety effects of adaptive signal control technology using the Empirical Bayes method. Journal of safety research, 64, pp.121-128.
A54: 76.2. Hu, Y., 2014. The Impact of Pedestrian Activities in Adaptive Traffic Signal Control System Operations (Doctoral dissertation, University of Pittsburgh).
A55: 77. Khattak, Z.H., 2016. Evaluating the Operational and Safety Aspects of Adaptive Traffic Control Systems in Pennsylvania (Doctoral dissertation, University of Pittsburgh).
A56: City of Port St. Lucie
A57: 35. Marlin Engineering, Inc., 2019. Travel Time and Delay Study – St. Lucie West Boulevard - Interstate 95 northbound off/on-ramp terminal intersection to NW/SW Bayshore Boulevard, Phase III, Draft Report
A58: 35.1. Marlin Engineering, Inc., 2019. Travel Time and Delay Study – St. Lucie West Boulevard - Interstate 95 northbound off/on-ramp terminal intersection to NW/SW Bayshore Boulevard, Phase III, Draft Report
A59: 35.2. Marlin Engineering, Inc., 2019. Travel Time and Delay Study – St. Lucie West Boulevard - Interstate 95 northbound off/on-ramp terminal intersection to NW/SW Bayshore Boulevard, Phase III, Draft Report
A60: 35.3. Marlin Engineering, Inc., 2019. Travel Time and Delay Study – St. Lucie West Boulevard - Interstate 95 northbound off/on-ramp terminal intersection to NW/SW Bayshore Boulevard, Phase III, Draft Report
A61: 35.4. Marlin Engineering, Inc., 2019. Travel Time and Delay Study – St. Lucie West Boulevard - Interstate 95 northbound off/on-ramp terminal intersection to NW/SW Bayshore Boulevard, Phase III, Draft Report
A62: City of Portland
A63: 81. a) Slavin, C. and Figliozzi, M., 2009. A Multimodal Evaluation of a Corridor Traffic Signal Performance: a case study on Powell Boulevard (Portland, Oregon). b) Figliozzi, Miguel A., and Christopher Monsere. "Evaluation of the Performance of the Sydney Coordinated Adaptive Traffic System (SCATS) on Powell Boulevard in Portland, OR." OTREC -RR-13-07. Portland, OR: Transportation Research and Education Center (TREC) 2013. c) Slavin, C., Feng, W., Figliozzi, M. and Koonce, P., 2013. Statistical study of the impact of adaptive traffic signal control on traffic and transit performance. Transportation Research Record, 2356(1), pp.117-126.
A64: City of Renton
A65: 17. Not evaluated
A66: City of Santa Clarita
A67: 56. City of Santa Clarita In-House Evaluation study - report, 2016. Santa Clarita, Whites Canyon – Phase Wait Time Report
A68: City of Stautnon
A69: 47. Not provided
A70: City of Waterloo
A71: 45. Not evaluated
A72: Cobb County
A73: 85. Hunter, M.P., Wu, S.K., Kim, H.K. and Suh, W., 2012. A probe-vehicle-based evaluation of adaptive traffic signal control. IEEE Transactions on Intelligent Transportation Systems, 13(2), pp.704-713.
A74: 86. Hunter, M.P., Roe, M. and Wu, S.K., 2010. Hardware-in-the-loop simulation evaluation of adaptive signal control. Transportation Research Record, 2192(1), pp.167-176.
A75: Collier County
A76: 54. Not provided
A77: Colorado Department of Transportation - Greeley
A78: 15. Sprague, D., 2012. Adaptive Signal Timing Comparison Between the InSync and QuicTrac Adaptive Signal Systems Installed in Colorado (No. CDOT-2012-6). Colorado. DTD Applied Research and Innovation Branch.
A79: Colorado Department of Transportation - Woodland Park
A80: 16. Sprague, D., 2012. Adaptive Signal Timing Comparison Between the InSync and QuicTrac Adaptive Signal Systems Installed in Colorado (No. CDOT-2012-6). Colorado. DTD Applied Research and Innovation Branch.
A81: Florida Department of Transportation - Miami
A82: 13. In preparation
A83: Florida Department of Transportation - Tampa
A84: 14. Not evaluated
A85: Illinois Department of Transportation - Springfield
A86: 65. Benekohal, R.F., Garshasebi, B., Liu, X. and Jeon, H., 2018. Evaluation of Adaptive Signal Control Technology—Volume 2: Comparison of Base Condition to the First Year After Implementation. Illinois Center for Transportation/Illinois Department of Transportation.
A87: 65.1. Benekohal, R.F., Garshasebi, B., Liu, X. and Jeon, H., 2019. Evaluation of Adaptive Signal Control Technology—Final Report. Illinois Center for Transportation/Illinois Department of Transportation.
A88: Lake County Division of Transportation
A89: 43. Sam Schwartz Engineering (SSE)., 2015. APTAKISIC ROAD BUFFALO GROVE, IL VALIDATION STUDY, Prepared for Lake County Division of Transporation.
A90: 44. Sam Schwartz Engineering (SSE)., 2015. GILMER ROAD MUNDELEIN, IL VALIDATION STUDY, Prepared for Lake County Division of Transporation.
A91: Maryland DOT State Highway Administration - Hanover
A92: 1. Not evaluated
A93: 2. Not evaluated
A94: 3. Not evaluated
A95: 4. Not provided
A96: 5. In house evaluation
A97: 6. In house evaluation
A98: 7. Not provided
A99: 8. Not provided
A100: Minnesota Department of Transportation - Minneapolis
A101: 79. SRF Consulting Group Inc. (2000). AUSCI -Adaptive Urban Signal Control and Integration. Final Evaluation Report SRF No. 0942089.8. Prepared for Minnesota DOT.
A102: Missouri Department of Transportation - Jefferson City
A103: 9. Not evaluated
A104: Missouri Department of Transportation - Kansas
A105: 10. Hutton, J.N., Bokenkroger, C.D. and Meyer, M.M., 2010. Evaluation of an adaptive traffic signal system: route 291 in Lee's Summit, Missouri (No. OR 10-020).
A106: Nevada Department of Transportation - Las Vegas
A107: 68. Tian, Z., Ohene, F. and Hu, P., 2011. Arterial performance evaluation on an adaptive traffic signal control system. Procedia-Social and Behavioral Sciences, 16, pp.230-239.
A108: 68.1. Zhao, Y. and Tian, Z., 2011. Applicability of Adaptive Traffic Control Systems in Nevada’s Urban Areas (No. 092-09-803). Nevada. Dept. of Transportation.
A109: 69. Zhao, Y. and Tian, Z., 2011. Applicability of Adaptive Traffic Control Systems in Nevada’s Urban Areas (No. 092-09-803). Nevada. Dept. of Transportation.
A110: New Jersey Department of Transportation - New Brunswick
A111: 83. Andrews, C.M., Elahi, S.M. and Clark, J.E., 1997. Evaluation of New Jersey Route 18 OPAC/MIST traffic-control system. Transportation Research Record, 1603(1), pp.150-155.
A112: New York State Department of Transportation - Albany
A113: 62. Elkins, S., Niehus, G., Tario, J.D. and Litteer, J., 2012. InSync Adaptive Traffic Control System for the Veterans Memorial Hwy Corridor on Long Island, NY (No. C-10-01).
A114: 62.1. Elkins, S., Niehus, G., Tario, J.D. and Litteer, J., 2012. InSync Adaptive Traffic Control System for the Veterans Memorial Hwy Corridor on Long Island, NY (No. C-10-01).
A115: 63. a) Ban, X.J., Kamga, C., Wang, X., Wojtowicz, J., Klepadlo, E., Sun, Z. and Mouskos, K., 2014. Adaptive Traffic Signal Control System (ACS-Lite) for Wolf Road, Albany, New York(No. C-10-13). New York (State). Dept. of Transportation. b) Sun, Z., Li, W., Ban, X. and Huang, T., 2018. An Adaptive Traffic Signal Control System (ACS-Lite) in Heavily Congested Arterial Traffic: Experiences and Lessons Learned. In CICTP 2018: Intelligence, Connectivity, and Mobility (pp. 1377-1385). Reston, VA: American Society of Civil Engineers.
A116: New York State Department of Transportation - White Plains
A117: 64. Lardoux, J., Martinez, R., White, C., Gross, N., Patel, N. and Meyer, R., 2014. Adaptive Traffic Signal Control for Tarrytown Road in White Plains, New York (No. C-10-17).
A118: 64.1. Ban, X. and Sun, Z., 2013. Simulation-based decision-making tool for adaptive traffic signal control on Tarrytown Road in the City of White Plains (No. C-10-03). New York State Energy Research and Development Authority.
A119: Orange County Public Works
A120: 82. Shafik, M.S.I., 2017. Field Evaluation of Insync Adaptive Traffic Signal Control System in Multiple Environments Using Multiple Approaches.
A121: Oregon Department of Transportation - Salem
A122: 66. Hathaway, E., Urbanik, T. and Tsoi, S., 2012. Cornell Road InSync System Evaluation. Project# 11075 Memorandum. Prepared for ODOT.
A123: Palm Beach County
A124: 60. Jeedigunta, G., 2017. Moving Traffic using Adaptive Traffic Control System, Okeechobee Blvd. and Northlake Blvd. evaluation study. Palm Beach County, Florida.
A125: 61. Jeedigunta, G., 2017. Moving Traffic using Adaptive Traffic Control System, Okeechobee Blvd. and Northlake Blvd. evaluation study. Palm Beach County, Florida.
A126: Pennsylvania Department of Transportation - Allegheny
A127: 36. Xin, W., 2015. Determining the Environmental Benefits of Adaptive Signal Control Systems using Simulation Models(Doctoral dissertation, University of Pittsburgh).
A128: Pennsylvania Department of Transportation - Bridgeville
A129: 36. Not provided
A130: Pinellas County
A131: 71. Gord & Associates., 2007. Adaptive versus traditional trafffic control systems: A field-based comparative assessment. Pinellas countywide ATMS project, Prepared for Florida DOT.
A132: 72. Gord & Associates., 2007. Adaptive versus traditional trafffic control systems: A field-based comparative assessment. Pinellas countywide ATMS project, Prepared for Florida DOT.
A133: Road Commission for Oakland County
A134: 11. Taylor, W.C. and Abdel-Rahim, A.S., 1998. Analysis of corridor delay under SCATS control: FAST-TRAC Phase III deliverable(No. EECS-ITS LAB-FT-083). Michigan State University.
A135: 11.1. a) Dutta, U., McAvoy, D., Lynch, J. and Vandeputte, L., 2008. Evaluation of the SCATS control system (No. Report No: MIOH UTC TS4 2008–Final TS 4, Project 2). Michigan Ohio University Transportation Center. b) Dutta, U. and McAvoy, D.S., 2010. Comparative Performance Evaluation of SCATS and Pre-timed Control Systems (No. 1430-2016-118677). c) Dutta, U., Lynch, J., Dara, B. and Bodke, S., 2010. Safety Evaluation of the SCATS Control System (No. RC-1545K).
A136: Seminole County
A137: 67. Cheek, M., Wetzel, C. and Dickson, C., 2012. SynchroGreen Real-Time Adaptive Traffic Control System Seminole County Deployment. In ITE 2012 Annual Meeting & ExhibitInstitute of Transportation Engineers (ITE).
A138: Utah Department of Transportation - Salt Lake City
A139: 48. Richardson, L.M., Luker, M.D., Day, C.M., Taylor, M. and Bullock, D.M., 2017. Outcome Assessment of Peer-to-Peer Adaptive Control Adjacent to a National Park. Transportation Research Record, 2620(1), pp.43-53.
A140: 49. Martin, P.T. and Stevanovic, A., 2008. Adaptive Signal Control V-SCATS Evaluation in Park City, Utah (No. MPC Report No. 08-200).
A141: 49.1. a) Stevanovic, A., Stevanovic, J. and Kergaye, C., 2012, January. Environmental benefits of adaptive traffic control system: Assessment of fuel consumption and vehicular emissions. In 91st Annual Meeting of the Transportation Research Board, Washington, DC. b) Stevanovic, A., Kergaye, C. and Haigwood, J., 2011, September. Assessment of surrogate safety benefits of an adaptive traffic control system. In 3rd International Conference on Road Safety and Simulation, Indianapolis, IN.
A142: 49.2. Stevanovic, A., Kergaye, C. and Stevanovic, J., 2012. Long-term benefits of adaptive traffic control under varying traffic flows during weekday peak hours. Transportation Research Record, 2311(1), pp.99-107.
A143: 50. a) Martin, P.T., Perrin, J., Chilukuri, B.R., Jhaveri, C. and Feng, Y., 2003. Adaptive signal control II (No. UT-03.28, UTL-0902-60). University of Utah. Dept. of Civil and Environmental Engineering. b) Jhaveri, C.S., Perrin, J. and Martin, P., 2003, January. SCOOT adaptive signal control: An evaluation of its effectiveness over a range of congestion intensities. In Transportation Research Board 2003 Annual Meeting, Compendium of Papers. c) Chilukuri, B.R., Perrin Jr, J. and Martin, P.T., 2004. Scoot and incidents: Performance evaluation in simulated environment. Transportation research record, 1867(1), pp.224-232.
A144: 51. a) Martin, P.T., Perrin, J., Chilukuri, B.R., Jhaveri, C. and Feng, Y., 2003. Adaptive signal control II (No. UT-03.28, UTL-0902-60). University of Utah. Dept. of Civil and Environmental Engineering. b) Chilukuri, B.R., Perrin Jr, J. and Martin, P.T., 2004. Scoot and incidents: Performance evaluation in simulated environment. Transportation research record, 1867(1), pp.224-232.
A145: 52. a) Martin, P.T., Perrin, J., Chilukuri, B.R., Jhaveri, C. and Feng, Y., 2003. Adaptive signal control II (No. UT-03.28, UTL-0902-60). University of Utah. Dept. of Civil and Environmental Engineering. b) Jhaveri, C.S., Perrin, J. and Martin, P., 2003, January. SCOOT adaptive signal control: An evaluation of its effectiveness over a range of congestion intensities. In Transportation Research Board 2003 Annual Meeting, Compendium of Papers.
A146: 53. Martin, P.T., Perrin, J., Chilukuri, B.R., Jhaveri, C. and Feng, Y., 2003. Adaptive signal control II (No. UT-03.28, UTL-0902-60). University of Utah. Dept. of Civil and Environmental Engineering.
A147: Virginia Department of Transportation - Fairfax
A148: 32. a) Gartner, N.H., Pooran, F.J. and Andrews, C.M., 2001. Implementation of the OPAC adaptive control strategy in a traffic signal network. In ITSC 2001. 2001 IEEE Intelligent Transportation Systems. Proceedings (Cat. No. 01TH8585)(pp. 195-200). IEEE. b) Gartner, N.H., Pooran, F.J. and Andrews, C.M., 2002. Optimized policies for adaptive control strategy in real-time traffic adaptive control systems: Implementation and field testing. Transportation Research Record, 1811(1), pp.148-156.
A149: Virginia Department of Transportation - Richmond
A150: 19. Fontaine, M.D., Ma, J. and Hu, J., 2015. Evaluation of the Virginia Department of Transportation adaptive signal control technology pilot project (No. VCTIR 15-R24). Virginia Center for Transportation Innovation and Research.
A151: 20. Fontaine, M.D., Ma, J. and Hu, J., 2015. Evaluation of the Virginia Department of Transportation adaptive signal control technology pilot project (No. VCTIR 15-R24). Virginia Center for Transportation Innovation and Research.
A152: 21. Fontaine, M.D., Ma, J. and Hu, J., 2015. Evaluation of the Virginia Department of Transportation adaptive signal control technology pilot project (No. VCTIR 15-R24). Virginia Center for Transportation Innovation and Research.
A153: 22. a) Fontaine, M.D., Ma, J. and Hu, J., 2015. Evaluation of the Virginia Department of Transportation adaptive signal control technology pilot project (No. VCTIR 15-R24). Virginia Center for Transportation Innovation and Research. b) Hu, J., Fontaine, M.D., Park, B.B. and Ma, J., 2015. Field evaluations of an adaptive traffic signal—using private-sector probe data. Journal of Transportation Engineering, 142(1), p.04015033.
A154: 23. a) Fontaine, M.D., Ma, J. and Hu, J., 2015. Evaluation of the Virginia Department of Transportation adaptive signal control technology pilot project (No. VCTIR 15-R24). Virginia Center for Transportation Innovation and Research. b) Hu, J., Fontaine, M.D., Park, B.B. and Ma, J., 2015. Field evaluations of an adaptive traffic signal—using private-sector probe data. Journal of Transportation Engineering, 142(1), p.04015033.
A155: 24. Fontaine, M.D., Ma, J. and Hu, J., 2015. Evaluation of the Virginia Department of Transportation adaptive signal control technology pilot project (No. VCTIR 15-R24). Virginia Center for Transportation Innovation and Research.
A156: 25. Fontaine, M.D., Ma, J. and Hu, J., 2015. Evaluation of the Virginia Department of Transportation adaptive signal control technology pilot project (No. VCTIR 15-R24). Virginia Center for Transportation Innovation and Research.
A157: 26. a) Fontaine, M.D., Ma, J. and Hu, J., 2015. Evaluation of the Virginia Department of Transportation adaptive signal control technology pilot project (No. VCTIR 15-R24). Virginia Center for Transportation Innovation and Research. b) Hu, J., Fontaine, M.D., Park, B.B. and Ma, J., 2015. Field evaluations of an adaptive traffic signal—using private-sector probe data. Journal of Transportation Engineering, 142(1), p.04015033.
A158: 27. a) Fontaine, M.D., Ma, J. and Hu, J., 2015. Evaluation of the Virginia Department of Transportation adaptive signal control technology pilot project (No. VCTIR 15-R24). Virginia Center for Transportation Innovation and Research. b) Hu, J., Fontaine, M.D., Park, B.B. and Ma, J., 2015. Field evaluations of an adaptive traffic signal—using private-sector probe data. Journal of Transportation Engineering, 142(1), p.04015033.
A159: 28. a) Fontaine, M.D., Ma, J. and Hu, J., 2015. Evaluation of the Virginia Department of Transportation adaptive signal control technology pilot project (No. VCTIR 15-R24). Virginia Center for Transportation Innovation and Research. b) Hu, J., Fontaine, M.D., Park, B.B. and Ma, J., 2015. Field evaluations of an adaptive traffic signal—using private-sector probe data. Journal of Transportation Engineering, 142(1), p.04015033.
A160: 29. Fontaine, M.D., Ma, J. and Hu, J., 2015. Evaluation of the Virginia Department of Transportation adaptive signal control technology pilot project (No. VCTIR 15-R24). Virginia Center for Transportation Innovation and Research.
A161: 30. a) Fontaine, M.D., Ma, J. and Hu, J., 2015. Evaluation of the Virginia Department of Transportation adaptive signal control technology pilot project (No. VCTIR 15-R24). Virginia Center for Transportation Innovation and Research. b) Hu, J., Fontaine, M.D., Park, B.B. and Ma, J., 2015. Field evaluations of an adaptive traffic signal—using private-sector probe data. Journal of Transportation Engineering, 142(1), p.04015033.
A162: 31. Fontaine, M.D., Ma, J. and Hu, J., 2015. Evaluation of the Virginia Department of Transportation adaptive signal control technology pilot project (No. VCTIR 15-R24). Virginia Center for Transportation Innovation and Research.
A163: Volusia County
A164: 78. a) Stevanovic, A. and Zlatkovic, M., 2013. Evaluation of InSync adaptive traffic signal control in microsimulation environment(No. 13-0487). b) Stevanovic, A., Dakic, I. and Zlatkovic, M., 2016. Comparison of adaptive traffic control benefits for recurring and non-recurring traffic conditions. IET Intelligent Transport Systems, 11(3), pp.142-151.
A165: Wakefield Public Works Department
A166: 41. Not provided
A167: West Goshen Township
A168: 13. Not evaluated
A169: West Virginia Department of Transportation - Division of Highways
A170: 90. a) Day, C.M., Ernst, J.M., Brennan Jr, T.M., Chou, C.S., Hainen, A.M., Remias, S.M., Nichols, A., Griggs, B.D. and Bullock, D.M., 2012. Performance measures for adaptive signal control: Case study of system-in-the-loop simulation. Transportation Research Record, 2311(1), pp.1-15. b) Nicholas, A., 2012. Adaptive Traffic Signal Control. Presented at WVDOG/MPOFHWA Planning Conference in Shepherdstown, West Virginia.
A171: 90.1. a) Day, C.M., Ernst, J.M., Brennan Jr, T.M., Chou, C.S., Hainen, A.M., Remias, S.M., Nichols, A., Griggs, B.D. and Bullock, D.M., 2012. Performance measures for adaptive signal control: Case study of system-in-the-loop simulation. Transportation Research Record, 2311(1), pp.1-15. b) Nicholas, A., 2012. Adaptive Traffic Signal Control. Presented at WVDOG/MPOFHWA Planning Conference in Shepherdstown, West Virginia.

Sheet Table1 (hidden)
LC2: SECTION D - Evaluation results - WEEKDAY
C3: SECTION A - Agency Details | AN3: SECTION B - Deployed ATCS | GO3: SECTION C - Evaluation | LC3: AM Before [OFF] | NN3: AM After [ON] | PY3: Reduction | VM3: Midday Before [OFF] | XX3: Midday After [ON] | AAI3: Reduction | AFW3: PM Before [OFF] | AIH3: PM After [ON] | AKS3: Reduction | AQG3: Friday PM - Special Event [OFF] | ASR3: Friday PM - Special Event [ON] | AVC3: Reduction | BAG3: Average Weekend-Saturday[OFF] | BCR3: Average Weekend-Saturday [ON] | BFC3: Reduction | BKG3: Average Weekday [OFF] | BMU3: Average Weekday [ON] | BPI3: Reduction
C4: A1 - Basic Agency Information | X4: A2 - Agency Workforce | AH4: A3 - Agency Budgeting | AN4: B1 - Selection method and Installation of the ATCS | CH4: B2 - Area Coverage of the ATCS | DK4: B3 - Objectives and Operational Environment of the ATCS | EJ4: B4 - Communications and Detection of the ATCS | FF4: B5 - Previous Traffic Control System | FX4: B6 - Capital and Maintenance Costs of the ATCS | GG4: B7 - System Monitoring and Operation | GO4: C1 - General Information about Evaluation Study | HM4: C2 - Evaluation study | KM4: C3 - Tools Used for Evaluation | PY4: Travel Time reduction | QO4: Delay reduction | RE4: Number of stops reduction | RU4: Side Street Delay reduction | SA4: Queue lengths reduction | SG4: Number of chrashes/conflicts reduction | SU4: Fuel consumption reduction | TK4: Emissions reduction | VI4: Transit Travel Time | VK4: Pedestrian delay reduction | AAI4: Travel Time reduction | AAY4: Delay reduction | ABO4: Number of stops reduction | ACE4: Side Street Delay reduction | ACK4: Queue lengths reduction | ACQ4: Number of chrashes/conflicts reduction | ADE4: Fuel consumption reduction | ADU4: Emissions reduction | AFS4: Transit Travel Time | AKS4: Travel Time reduction | ALI4: Delay reduction | ALY4: Number of stops reduction | AMO4: Side Street Delay reduction | AMU4: Queue lengths reduction | ANA4: Number of chrashes/conflicts reduction | ANO4: Fuel consumption reduction | AOE4: Emissions reduction | AQC4: Transit Travel Time | AVC4: Travel Time reduction | AVS4: Delay reduction | AWI4: Number of stops reduction | AWY4: Side Street Delay reduction | AXE4: Queue lengths reduction | AXK4: Number of chrashes/conflicts reduction | AXY4: Fuel consumption reduction | AYM4: Emissions reduction | BFC4: Travel Time reduction | BFS4: Delay reduction | BGI4: Number of stops reduction | BGY4: Side Street Delay reduction | BHE4: Queue lengths reduction | BHK4: Number of chrashes/conflicts reduction | BHY4: Fuel consumption reduction | BIM4: Emissions reduction | BPI4: Travel Time reduction | BPY4: Delay reduction | BQO4: Number of stops reduction | BRE4: Side Street Delay reduction | BRK4: Queue lengths reduction | BRQ4: Number of chrashes/conflicts reduction | BSE4: Fuel consumption reduction | BSS4: Emissions reduction | BUK4: Transit | BUQ4: Peds | BUS4: High-Res
B5: Record Instance | C5: 1. Name of Agency | D5: 2. City/Town | E5: 3. State/Province | F5: 4. Zip Code | G5: 5. Country | H5: 6. Agency type [an] | I5: 6. Agency type [f1] | J5: 6. Agency type [f3] | K5: 6. Agency type [f5] | L5: 6. Agency type [f6] | M5: 7. Cumulative length of the road network | N5: 7. Cumulative length of the road network [f6] | O5: 7. Cumulative length of the road network [f5] | P5: 7. Cumulative length of the road network [exact] | Q5: 8. Number of signalized intersections under operation | R5: 8.1 Number of signalized intersections under operation [exact] | S5: 8.2 Number of signalized intersections under operation [f6] | T5: 8.2 Number of signalized intersections under operation [f5] | U5: 9. Number of coordinated signals under operation | V5: 9. Number of coordinated signals under operation2 | W5: 9. Number of coordinated signals under operation [exact] | X5: 1. Number of managers | Y5: 2. Number of engineers | Z5: 3. Number of controller technicians | AA5: 4. Number of other technicians | AB5: 5. Training hours for managers regarding deployed ATCS | AC5: 6. Training hours for engineers regarding deployed ATCS | AD5: 7. Training hours for controller technicians regarding deployed ATCS | AE5: 8. Training hours for other technicians regarding deployed ATCS | AF5: 9. Do you have enough staff to operate and maintain the ATCSs day-to-day operations? | AG5: 9.1. How much more do you need and of what type? | AH5: 1. Annual budget for signal operations and maintenance | AI5: 1.1. Annual budget for signal operations and maintenance [exact] | AJ5: 1. Annual budget for signal operations and maintenance [f6] | AK5: 2. Annual budget for annual funding for capital traffic-related | AL5: 2.1. Annual budget for annual funding for capital traffic-related [exact] | AM5: 2. Annual budget for annual funding for capital traffic-related [f6] | AN5: 1. How many ATCSs does your agency operate? [f] | AO5: 1.1 How many ATCSs does your agency operate? [exact] | AP5: 1.1 How many ATCSs does your agency operate? [an] | AQ5: 2. Are these multiple deployed ATCSs under the same ATCS technology (i.e., same brand)? | AR5: 3. How would you describe your operating experiences with multiple ATCS brands? | AS5: 3.1. How would you describe your operating experiences with multiple ATCS brands? [explanation] | AT5: 3.2. How these multiple ATCSs are monitored? | AU5: 3.2. How these multiple ATCSs are monitored? [Explanation] | AV5: 4. Deployed ATCS brand | AW5: 4. Deployed ATCS brand2 | AX5: 4. Deployed ATCS brand3 [FDBPG2] | AY5: 4. Deployed ATCS brand3 [FDBPG3] | AZ5: 3. What method was used to select the deployed ATCS? | BA5: 3. What method was used to select the deployed ATCS?2 | BB5: 3.1. What method was used to select the deployed ATCS? [other] | BC5: 4. When did the ATCS installation start | BD5: 4. When did the ATCS installation start 2 | BE5: 4. When did the ATCS installation start 22 | BF5: 4. When did the ATCS installation start 23 [a] | BG5: 5. By what time was the ATCS fully operational | BH5: 5. By what time was the ATCS fully operational2 | BI5: 5. By what time was the ATCS fully operational22 | BJ5: 5. By what time was the ATCS fully operational23 [a] | BK5: 45. Installation duration [months] | BL5: 6. Has the agency faced any unpredicted delays during ATCS installation? | BM5: 6.1. How long installation of ATCS was delayed? | BN5: 6.2. What where the main reasons for such delays? [Poor coordination] | BO5: 6.3. What where the main reasons for such delays? [Technical problems] | BP5: 6.4. What where the main reasons for such delays? [Other] | BQ5: 6.4. What where the main reasons for such delays? [Counter] | BR5: 7. Current status of the deployed ATCS | BS5: 7.1 What are the main reasons for decommissioning (partially or fully) the system? [Detection and communication problems] | BT5: 7.2 What are the main reasons for decommissioning (partially or fully) the system? [Lack of required expertise and other institutional challenges] | BU5: 7.3 What are the main reasons for decommissioning (partially or fully) the system? [Incompatibility with other technologies and applications] | BV5: 7.4 What are the main reasons for decommissioning (partially or fully) the system? [System not compatible with agency’s expectations and practice] | BW5: 7.5 What are the main reasons for decommissioning (partially or fully) the system? [No operational benefits achieved] | BX5: 7.6 What are the main reasons for decommissioning (partially or fully) the system? [Other] | BY5: 7.7 What are the main reasons for decommissioning (partially or fully) the system? [Other explanation] | BZ5: 7.7 What are the main reasons for decommissioning (partially or fully) the system? [counter] | CA5: 8. Besides your own agency, was any other entity involved in the decision making and implementation of the ATCS? [Nobody else] | CB5: 8.1 Besides your own agency, was any other entity involved in the decision making and implementation of the ATCS? [Other DOT/County/City authority] | CC5: 8.2 Besides your own agency, was any other entity involved in the decision making and implementation of the ATCS? [Metropolitan planning agency] | CD5: 8.3 Besides your own agency, was any other entity involved in the decision making and implementation of the ATCS? [Public transit agency] | CE5: 8.4 Besides your own agency, was any other entity involved in the decision making and implementation of the ATCS? [Other] | CF5: 8.5 Besides your own agency, was any other entity involved in the decision making and implementation of the ATCS? [Other explanation] | CG5: 8.5 Besides your own agency, was any other entity involved in the decision making and implementation of the ATCS? [Total] | CH5: 1. In which city is deployed ATCS [f6] | CI5: 1.1. In which city is deployed ATCS [additional] | CJ5: 2. Zip code | CK5: 2. City population | CL5: 2. City population 2 | CM5: Evaluation year | CN5: 3. Is city part of metropolitan area | CO5: 4. Name of belonging metropolitan area | CP5: 5. Metropolitan area population | CQ5: 5. Metropolitan area population2 | CR5: 00. Road | CS5: 6. Urban area type | CT5: 6. Urban area type [f5] | CU5: 6. Urban area type [f6] | CV5: 7. Network type | CW5: 7. Network type [f5] | CX5: 7. Network type [f6] | CY5: 8. Number of signals operating under ATCS | CZ5: 8. Number of signals operating under ATCS2 | DA5: 8. Number of signals operating under ATCS3 | DB5: 8.1. Number of signals operating under ATCS [exact] | DC5: 8.1. Number of signals operating under ATCS [exact]2 | DD5: 9. Length (in miles) of network under ATCS | DE5: 9. Length (in miles) of network under ATCS2 | DF5: 9. Length (in miles) of network under ATCS3 | DG5: 9.1. Length (in miles) of network under ATCS [exact] | DH5: 10. Approximate AADT on the busiest road where the ATCS is deployed | DI5: 10. Approximate AADT on the busiest road where the ATCS is deployed2 | DJ5: 10.1. Approximate AADT on the busiest road where the ATCS is deployed [exact] | DK5: 1. Main reason for ATCS implementation | DL5: 1.1. Main reason for ATCS implementation [fromEvStudy] | DM5: 2.1. To which extent would you agree that the deployed ATCS met your agency’s expectations for Delay perfomance measure? | DN5: 2.2. To which extent would you agree that the deployed ATCS met your agency’s expectations for Side street delay perfomance measure? | DO5: 2.3. To which extent would you agree that the deployed ATCS met your agency’s expectations for Travel time perfomance measure? | DP5: 2.4. To which extent would you agree that the deployed ATCS met your agency’s expectations for Number of stops perfomance measure? | DQ5: 2.5. To which extent would you agree that the deployed ATCS met your agency’s expectations for Side street number of stops perfomance measure? | DR5: 2.6. To which extent would you agree that the deployed ATCS met your agency’s expectations for Queue length perfomance measure? | DS5: 2.7. To which extent would you agree that the deployed ATCS met your agency’s expectations for Side street queue length perfomance measure? | DT5: 2.8. To which extent would you agree that the deployed ATCS met your agency’s expectations for Number of crashes perfomance measure? | DU5: 2.9. To which extent would you agree that the deployed ATCS met your agency’s expectations for Number of conflicts perfomance measure? | DV5: 2.10. To which extent would you agree that the deployed ATCS met your agency’s expectations for Emissions perfomance measure? | DW5: 2.11. To which extent would you agree that the deployed ATCS met your agency’s expectations for Fuel consumption perfomance measure? | DX5: 2.12. To which extent would you agree that the deployed ATCS met your agency’s expectations for Pedestrian delay perfomance measure? | DY5: 2.13. To which extent would you agree that the deployed ATCS met your agency’s expectations for Transit delay perfomance measure? | DZ5: 2.14. To which extent would you agree that the deployed ATCS met your agency’s expectations for Transit travel time perfomance measure? | EA5: 3.1. To which extent is the ATCS utilized to help with Rail road operations? | EB5: 3.2. To which extent is the ATCS utilized to help with Transit signal priority? | EC5: 3.3. To which extent is the ATCS utilized to help with Pedestrian accommodation? | ED5: 3.4. To which extent is the ATCS utilized to help with Bicycle accommodation? | EE5: 3.5. To which extent is the ATCS utilized to help with Other mulimodal operations? | EF5: 4.1. To which extent are the existing appurtenances of your ATCS integrated with High-resolution data analyzing and reporting (e.g., ATMS)? | EG5: 4.2. To which extent are the existing appurtenances of your ATCS integrated with Vehicle to infrastructure (V2I) communication? | EH5: 4.3. To which extent are the existing appurtenances of your ATCS integrated with Vehicle to vehicle (V2V) communication? | EI5: 4.4. To which extent are the existing appurtenances of your ATCS integrated with Other emerging technologies? | EJ5: 1.1. What type of transmission media does your ATCS use for communication between central hardware/software and field traffic controllers? [twisted pair] | EK5: 1.2. What type of transmission media does your ATCS use for communication between central hardware/software and field traffic controllers? [telephone line] | EL5: 1.3. What type of transmission media does your ATCS use for communication between central hardware/software and field traffic controllers? [coaxial calble] | EM5: 1.4. What type of transmission media does your ATCS use for communication between central hardware/software and field traffic controllers? [fiber optic] | EN5: 1.5. What type of transmission media does your ATCS use for communication between central hardware/software and field traffic controllers? [microwave (terrestrial or satellite)] | EO5: 1.6. What type of transmission media does your ATCS use for communication between central hardware/software and field traffic controllers? [wireless (application protocol or broadband systems)] | EP5: 1.7. What type of transmission media does your ATCS use for communication between central hardware/software and field traffic controllers? [other] | EQ5: 1.7. What type of transmission media does your ATCS use for communication between central hardware/software and field traffic controllers? [combined] | ER5: 2.1. What type of detection layout do you use for your ATCS? [stop-line detectors] | ES5: 2.2. What type of detection layout do you use for your ATCS? [near-stop-line (upstream from stop line from 32ft to 200ft)] | ET5: 2.3. What type of detection layout do you use for your ATCS? [upstream (mid-block) detectors] | EU5: 2.4. What type of detection layout do you use for your ATCS? [upstream (far-side) detectors (located at the exit point of the upstream intersection)] | EV5: 2.5. What type of detection layout do you use for your ATCS? [other] | EW5: 2.5. What type of detection layout do you use for your ATCS? [other - explanation] | EX5: 2.5. What type of detection layout do you use for your ATCS? [combined] | EY5: 3.1. What type of detection technology do you use for your ATCS? | EZ5: 3.2. What type of detection technology do you use for your ATCS? | FA5: 3.3. What type of detection technology do you use for your ATCS? | FB5: 3.4. What type of detection technology do you use for your ATCS? In-pavement detector pucks | FC5: 3.5. What type of detection technology do you use for your ATCS? [other] | FD5: 3.6. What type of detection technology do you use for your ATCS? [other-explanation] | FE5: 3.6. What type of detection technology do you use for your ATCS? [combined] | FF5: 1. Previous type of traffic signal operations on the network where the ATCS is deployed? | FG5: 1. Previous type of traffic signal operations on the network where the ATCS is deployed?2 | FH5: 1. Previous type of traffic signal operations on the network where the ATCS is deployed?3 | FI5: 1. Previous type of traffic signal operations on the network where the ATCS is deployed?4 | FJ5: 2. Previously, the signal network was predominantly | FK5: 2. Previously, the signal network was predominantly2 | FL5: 2. Previously, the signal network was predominantly3 | FM5: 2.1. If Mixed please specify % of coordinated: | FN5: 3. When was the last time that the signals under the ATCS were retimed before the ATCS was deployed? | FO5: 4. How frequently were the signals under the ATCS “fine-tuned” before the ATCS deployment? | FP5: 4. How frequently were the signals under the ATCS “fine-tuned” before the ATCS deployment?2 | FQ5: 1. Previous signal controller type of operations [raw] | FR5: Previous signal controller type of operations [raw] | FS5: 2. Previous control type on ATCS deployed corridor/network [raw] | FT5: Previous control type on ATCS deployed corridor/network [raw] | FU5: 5. What is the time passed between signal retiming and ATCS evaluation | FV5: 5. What is the time passed between signal retiming and ATCS evaluation2 | FW5: When the last time signals were reetimed on examiend network? | FX5: 1 .What was the total average cost of installation per intersection? | FY5: 2. What was the cost of installation of ATCS software (licensing and similar)? | FZ5: 2. What was the cost of installation of ATCS software (licensing and similar) Per Intersection? | GA5: 2.1. What was the cost of installation of ATCS software (licensing and similar)? [explanation] | GB5: 3. What was the average maintenance cost of ATCS per year (provide your best estimate)? | GC5: 3. What was the average maintenance cost of ATCS per year (provide your best estimate) Per Intersection? | GD5: 3.1. What was the average maintenance cost of ATCS per year (provide your best estimate)? [explanation] | GE5: 4. Are the operations and maintenance costs of deployed ATCS (expressed as costs per intersection) higher or lower than your previous TOD traffic control? | GF5: 4a. Are the operations and maintenance costs of deployed ATCS (expressed as costs per intersection) higher or lower than your previous TOD traffic control? [additional] | GG5: 1. How understandable are working principles of your ATCS to you and your colleagues? | GH5: 2.1. Which signal timing parameters can be adjusted in real time with your deployed ATCS? [offset] | GI5: 2.2. Which signal timing parameters can be adjusted in real time with your deployed ATCS? [split] | GJ5: 2.3. Which signal timing parameters can be adjusted in real time with your deployed ATCS? [cycle length] | GK5: 2.4. Which signal timing parameters can be adjusted in real time with your deployed ATCS? [phase sequence] | GL5: 2.4. Which signal timing parameters can be adjusted in real time with your deployed ATCS? [combined\ | GM5: 3. What is your expected ATCS life cycle? | GN5: 3. What is your expected ATCS life cycle?2 | GO5: 1. How many evaluation studies was conducted? | GP5: 1.1.1 Evaluation provided | GQ5: 1.1.1 Evaluation study | GR5: 1.1. Evaluated Systems [f] | GS5: 1.1. Evaluated Systems | GT5: 1.1. Evaluated Systems2 | GU5: 2. Was a System Engineering process conducted before your ATCS was deployed? | GV5: 2. Was a System Engineering process conducted before your ATCS was deployed?2 | GW5: 3. Please specify the name of consultant who performed the system engineering process? | GX5: 4. Who initiated the evaluation of the deployed ATCS? | GY5: 4. Who initiated the evaluation of the deployed ATCS? [f] | GZ5: 5. What type of entity evaluated the quality of ATCS performance? | HA5: 5.1. What type of entity evaluated the quality of ATCS performance? | HB5: 5.1. What type of entity evaluated the quality of ATCS performance?2 | HC5: 1. What type of entity evaluated the quality of ATCS performance [raw] | HD5: 6. Please specify the name(s) of entity(ies) who performed the evaluation | HE5: 6. Please specify the name(s) of entity(ies) who performed the evaluation [multiple teams] | HF5: 7. When did the evaluation start (year/month)? | HG5: 7. When did the evaluation start (year/month)?2 | HH5: 8. By what time was the evaluation completed (year/month)? | HI5: 8. By what time was the evaluation completed (year/month)?2 | HJ5: 9. Days of After collected data | HK5: 10. TimeSpanForEvaluation | HL5: 10. TimeSpanForEvaluation2 | HM5: 1a. Which evaluation type was undertaken? | HN5: 1a. Which evaluation type was undertaken?2 | HO5: 1b. Which evaluation type was undertaken? | HP5: 2a. Which evaluation method was used? | HQ5: 2a. Which evaluation method was used? 2 | HR5: 2b. Which evaluation method was used? | HS5: 3b. Which traffic data collection methods/techniques/sources were used for conductedvolume traffic studies? - floating | HT5: 3a. Which traffic data collection methods/techniques/sources were used for conductedvolume traffic studies? - average | HU5: 3b. Which traffic data collection methods/techniques/sources were used for conductedvolume traffic studies? - maximum | HV5: 3c. Which traffic data collection methods/techniques/sources were used for conductedvolume traffic studies? - inrix | HW5: 3d. Which traffic data collection methods/techniques/sources were used for conductedvolume traffic studies? - ritis | HX5: 3e. Which traffic data collection methods/techniques/sources were used for conductedvolume traffic studies? - TomTom | HY5: 3f. Which traffic data collection methods/techniques/sources were used for conductedvolume traffic studies? - Video cameras | HZ5: 3g. Which traffic data collection methods/techniques/sources were used for conductedvolume traffic studies? - bluetooth sensors | IA5: 3h. Which traffic data collection methods/techniques/sources were used for conductedvolume traffic studies? - loop detectors | IB5: 3i. Which traffic data collection methods/techniques/sources were used for conductedvolume traffic studies? - manual counts | IC5: 3i. Which traffic data collection methods/techniques/sources were used for conductedvolume traffic studies? - survey | ID5: 3i. Which traffic data collection methods/techniques/sources were used for conductedvolume traffic studies? - N/A | IE5: 4a. Which traffic data collection methods/techniques/sources were used for conducted Travel time studies? - floating | IF5: 4b. Which traffic data collection methods/techniques/sources were used for conducted Travel time studies? - average | IG5: 4c. Which traffic data collection methods/techniques/sources were used for conducted Travel time studies? - maximum | IH5: 4d. Which traffic data collection methods/techniques/sources were used for conducted Travel time studies? - inrix | II5: 4e. Which traffic data collection methods/techniques/sources were used for conducted Travel time studies? -ritis | IJ5: 4f. Which traffic data collection methods/techniques/sources were used for conducted Travel time studies? - tomtom | IK5: 4g. Which traffic data collection methods/techniques/sources were used for conducted Travel time studies? - video cameras | IL5: 4h. Which traffic data collection methods/techniques/sources were used for conducted Travel time studies? - bluetooth | IM5: 4i. Which traffic data collection methods/techniques/sources were used for conducted Travel time studies? - loop detectors | IN5: 4i. Which traffic data collection methods/techniques/sources were used for conducted Travel time studies? - manual counts | IO5: 4i. Which traffic data collection methods/techniques/sources were used for conducted Travel time studies? - survey | IP5: 4i. Which traffic data collection methods/techniques/sources were used for conducted Travel time studies? - N/A | IQ5: 5a. Which traffic data collection methods/techniques/sources were used for conducted Delay studies? - floating | IR5: 5b. Which traffic data collection methods/techniques/sources were used for conducted Delay studies? - average | IS5: 5c. Which traffic data collection methods/techniques/sources were used for conducted Delay studies? - maximum | IT5: 5d. Which traffic data collection methods/techniques/sources were used for conducted Delay studies? - inrix | IU5: 5e. Which traffic data collection methods/techniques/sources were used for conducted Delay studies? - ritis | IV5: 5f. Which traffic data collection methods/techniques/sources were used for conducted Delay studies? - tomtom | IW5: 5g. Which traffic data collection methods/techniques/sources were used for conducted Delay studies? - video | IX5: 5h. Which traffic data collection methods/techniques/sources were used for conducted Delay studies? - bluetooth | IY5: 5i. Which traffic data collection methods/techniques/sources were used for conducted Delay studies? - loop | IZ5: 5i. Which traffic data collection methods/techniques/sources were used for conducted Delay studies? - manual | JA5: 5i. Which traffic data collection methods/techniques/sources were used for conducted Delay studies? - survey | JB5: 5i. Which traffic data collection methods/techniques/sources were used for conducted Delay studies? - N/A | JC5: 6a. Which traffic data collection methods/techniques/sources were used for conducted Density studies? - floating | JD5: 6a. Which traffic data collection methods/techniques/sources were used for conducted Density studies? - average | JE5: 6a. Which traffic data collection methods/techniques/sources were used for conducted Density studies? - maximum | JF5: 6b. Which traffic data collection methods/techniques/sources were used for conducted Density studies? - video | JG5: 6c. Which traffic data collection methods/techniques/sources were used for conducted Density studies? - bluetooth | JH5: 6d. Which traffic data collection methods/techniques/sources were used for conducted Density studies? - loop | JI5: 6d. Which traffic data collection methods/techniques/sources were used for conducted Density studies? - manual | JJ5: 6d. Which traffic data collection methods/techniques/sources were used for conducted Density studies? - Survey | JK5: 6d. Which traffic data collection methods/techniques/sources were used for conducted Density studies? - N/A | JL5: 7a. Which traffic data collection methods/techniques/sources were used for conducted Accidents studies? - average | JM5: 7b. Which traffic data collection methods/techniques/sources were used for conducted Accidents studies? - manual | JN5: 7c. Which traffic data collection methods/techniques/sources were used for conducted Accidents studies? - survey | JO5: 7d. Which traffic data collection methods/techniques/sources were used for conducted Accidents studies? - N/A | JP5: 8a. Which traffic data collection methods/techniques/sources were used for conducted Movement and Transit studies? - video | JQ5: 8b. Which traffic data collection methods/techniques/sources were used for conducted Movement and Transit studies? - manual | JR5: 8c. Which traffic data collection methods/techniques/sources were used for conducted Movement and Transit studies? - survey | JS5: 8d. Which traffic data collection methods/techniques/sources were used for conducted Movement and Transit studies? - N/A | JT5: 8a. Which traffic data collection methods/techniques/sources were used for conducted Pedestrian studies? - video | JU5: 8a. Which traffic data collection methods/techniques/sources were used for conducted Pedestrian studies? - manual2 | JV5: 8b. Which traffic data collection methods/techniques/sources were used for conducted Pedestrian studies? - survey | JW5: 8c. Which traffic data collection methods/techniques/sources were used for conducted Pedestrian studies? - N/A | JX5: 9a. Which traffic data collection methods/techniques/sources were used for conducted Environmental impact studies? - manual | JY5: 9b. Which traffic data collection methods/techniques/sources were used for conducted Environmental impact studies? - survey | JZ5: 9c. Which traffic data collection methods/techniques/sources were used for conducted Environmental impact studies? - N/A | KA5: 10a. Which traffic data collection methods/techniques/sources were used for conducted Queue studies? | KB5: 10b. Which traffic data collection methods/techniques/sources were used for conducted Queue studies? - manual | KC5: 11a. Which traffic data collection methods/techniques/sources were used for conducted Other traffic studies? - ATSPMs | KD5: 11b. Which traffic data collection methods/techniques/sources were used for conducted Other traffic studies? - ATSPMs | KE5: 3i. Volume Studies | KF5: 4i. Travel time studies | KG5: 5i. Delay studies | KH5: 7d. Accidents studies | KI5: 8d. Transit studies | KJ5: 9c. Environmental impact studies | KK5: All | KL5: 12. Was evaluation conducted in consistent way? (Same methods used before and after, on and off). | KM5: 1. Which software tools were used for simulation evaluation? | KN5: 2.1. Which software were used for field data collection and processing? [PC Travel] | KO5: 2.2. Which software were used for field data collection and processing? [GPS Kit Pro] | KP5: 2.3. Which software were used for field data collection and processing? [Tru-Traffic] | KQ5: 2.4. Which software were used for field data collection and processing? [Other] | KR5: 2.5. Which software were used for field data collection and processing? [explanation] | KS5: 2.5. Which software were used for field data collection and processing? [combined] | KT5: 3.1. Which hardware were used for field data collection and processing? [Jamar counting/delay device] | KU5: 3.2. Which hardware were used for field data collection and processing? [Laptop with GPS device (or similar, e.g. tablet)] | KV5: 3.3. Which hardware were used for field data collection and processing? [Camera with GPS device] | KW5: 3.4. Which hardware were used for field data collection and processing? [Cell phone] | KX5: 3.5. Which hardware were used for field data collection and processing? [Other] | KY5: 3.6. Which hardware were used for field data collection and processing? [explanation] | KZ5: 3.6. Which hardware were used for field data collection and processing? [combined] | LA5: 4. Type of event | LB5: 4.1. Embeded Features | LC5: 1. Travel time Dir 1 [s] | LD5: 2. Travel time Dir 2 [s] | LE5: 3. Travel time Dir 12 [s] | LF5: 4. Travel time Dir 3 [s] | LG5: 5. Travel time Dir 4 [s] | LH5: 6. Travel time Dir 34 [s] | LI5: 7. Network Tt [s] | LJ5: 1. Delay Dir 1 [s/v] | LK5: 2. Delay Dir 2 [s/v] | LL5: 3. Delay Dir 12 [s/v] | LM5: 4. Delay Dir 3 [s/v] | LN5: 5. Delay Dir 4 [s/v] | LO5: 6. Delay Dir 34 [s/v] | LP5: 7. Network Delay [s/v] | LQ5: 1. Number of stops Dir 1 [#] | LR5: 2. Number of stops Dir 2 [#] | LS5: 3. Number of stops Dir 12 [#] | LT5: 4. Number of stops Dir 3 [#] | LU5: 5. Number of stops Dir 4 [#] | LV5: 6. Number of stops Dir 34 [#] | LW5: 7. Network Number of stops [#] | LX5: 1. Side Street Delay Dir 1 | LY5: 2. Side Street Delay Dir 2 | LZ5: 3. Side Street Delay BothDir | MA5: 1. Queue lengths Dir 1 | MB5: 2. Queue lengths Dir 2 | MC5: 3. Queue lenghts BothDir | MD5: 1. Number of crashes - Property damage | ME5: 1. Number of crashes - Injury | MF5: 1. Number of crashes - Total number | MG5: 2. Number of Crossing Confilcts | MH5: 2. Number of Rear-End Conflicts | MI5: 2. Number of Lane-Changing Confilcts | MJ5: 3. Total number of conflicts | MK5: 1. Fuel consumption Dir 1 [gal] | ML5: 2. Fuel consumption Dir 2 [gal] | MM5: 3. Fuel consumption Dir12 [gal] | MN5: 4. Fuel consumption Dir 3 [gal] | MO5: 5. Fuel consumption Dir 4 [gal] | MP5: 6. Fuel consumption Dir34 [gal] | MQ5: 7. Network Fuel consumption [gal] | MR5: 1. Emissions - HC - Dir1 [g] | MS5: 2. Emissions - HC - Dir2 [g] | MT5: 3. Emissions - HC - Dir12 [g] | MU5: 4. Emissions - HC - Dir3 [g] | MV5: 5. Emissions - HC - Dir4 [g] | MW5: 6. Emissions - HC - Dir34 [g] | MX5: 7. Network Emissions - HC - [g] | MY5: 1. Emissions - CO - Dir1 [g] | MZ5: 2. Emissions - CO - Dir2 [g] | NA5: 3. Emissions - CO - Dir12 [g] | NB5: 4. Emissions - CO - Dir3 [g] | NC5: 5. Emissions - CO - Dir4 [g] | ND5: 6. Emissions - CO - Dir34 [g] | NE5: 7. Network Emissions - CO - [g] | NF5: 1. Emissions - NOx - Dir1 [g] | NG5: 2. Emissions - NOx - Dir2 [g] | NH5: 3. Emissions - NOx - Dir12 [g] | NI5: 4. Emissions - NOx - Dir3 [g] | NJ5: 5. Emissions - NOx - Dir4 [g] | NK5: 6. Emissions - NOx - Dir34 [g] | NL5: 7. Network Emissions - NOx - [g] | NM5: 1. Pedestrian delay [s] | NN5: 1. Travel time Dir 1 [s]2 | NO5: 2. Travel time Dir 2 [s]3 | NP5: 3. Travel time Dir 12 [s]4 | NQ5: 4. Travel time Dir 3 [s]5 | NR5: 5. Travel time Dir 4 [s]6 | NS5: 6. Travel time Dir 34 [s]7 | NT5: 7. Network Tt [s]8 | NU5: 1. Delay Dir 1 [s/v]2 | NV5: 2. Delay Dir 2 [s/v]3 | NW5: 3. Delay Dir 12 [s/v]4 | NX5: 4. Delay Dir 3 [s/v]5 | NY5: 5. Delay Dir 4 [s/v]6 | NZ5: 6. Delay Dir 34 [s/v]7 | OA5: 7. Network Delay [s/v]8 | OB5: 1. Number of stops Dir 1 [#]2 | OC5: 2. Number of stops Dir 2 [#]3 | OD5: 3. Number of stops Dir 12 [#]4 | OE5: 4. Number of stops Dir 3 [#]5 | OF5: 5. Number of stops Dir 4 [#]6 | OG5: 6. Number of stops Dir 34 [#]7 | OH5: 7. Network Number of stops [#]8 | OI5: 1. Side Street Delay Dir 12 | OJ5: 2. Side Street Delay Dir 23 | OK5: 3. Side Street Delay BothDir4 | OL5: 1. Queue lengths Dir 12 | OM5: 2. Queue lengths Dir 23 | ON5: 3. Queue lenghts BothDir4 | OO5: 1. Number of crashes - Property damage2 | OP5: 1. Number of crashes - Injury3 | OQ5: 1. Number of crashes - Total number4 | OR5: 2. Number of Crossing Confilcts5 | OS5: 2. Number of Rear-End Conflicts6 | OT5: 2. Number of Lane-Changing Confilcts7 | OU5: 3. Total number of conflicts8 | OV5: 1. Fuel consumption Dir 1 [gal]2 | OW5: 2. Fuel consumption Dir 2 [gal]3 | OX5: 3. Fuel consumption Dir12 [gal]4 | OY5: 4. Fuel consumption Dir 3 [gal]5 | OZ5: 5. Fuel consumption Dir 4 [gal]6 | PA5: 6. Fuel consumption Dir34 [gal]7 | PB5: 7. Network Fuel consumption [gal]8 | PC5: 1. Emissions - HC - Dir1 [g]2 | PD5: 2. Emissions - HC - Dir2 [g]3 | PE5: 3. Emissions - HC - Dir12 [g]4 | PF5: 4. Emissions - HC - Dir3 [g]5 | PG5: 5. Emissions - HC - Dir4 [g]6 | PH5: 6. Emissions - HC - Dir34 [g]7 | PI5: 7. Network Emissions - HC - [g]8 | PJ5: 1. Emissions - CO - Dir1 [g]2 | PK5: 2. Emissions - CO - Dir2 [g]3 | PL5: 3. Emissions - CO - Dir12 [g]4 | PM5: 4. Emissions - CO - Dir3 [g]5 | PN5: 5. Emissions - CO - Dir4 [g]6 | PO5: 6. Emissions - CO - Dir34 [g]7 | PP5: 7. Network Emissions - CO - [g]8 | PQ5: 1. Emissions - NOx - Dir1 [g]2 | PR5: 2. Emissions - NOx - Dir2 [g]3 | PS5: 3. Emissions - NOx - Dir12 [g]4 | PT5: 4. Emissions - NOx - Dir3 [g]5 | PU5: 5. Emissions - NOx - Dir4 [g]6 | PV5: 6. Emissions - NOx - Dir34 [g]7 | PW5: 7. Network Emissions - NOx - [g]8 | PX5: 1. Pedestrian delay [s]2 | PY5: 1. Diff Travel time Dir 1 [s] | PZ5: 1. Diff Travel time Dir 1 [%] | QA5: 2. Diff Travel time Dir 2 [s] | QB5: 2. Diff Travel time Dir 2 [%] | QC5: 3. Diff Travel time Dir 12 [s] | QD5: 3. Diff Travel time Dir 12 [%] | QE5: 4. Diff Travel time Dir 3 [s] | QF5: 4. Diff Travel time Dir 3 [%] | QG5: 5. Diff Travel time Dir 4 [s] | QH5: 5. Diff Travel time Dir 4 [%] | QI5: 6. Diff Travel time 34 [s] | QJ5: 6. Diff Travel time 34 [%] | QK5: 6.1 Difference Travel time 1234 [s] | QL5: 6.1 Difference Travel time 1234 [%] | QM5: 7. Diff Network Tt [s] | QN5: 7. Diff Network Tt [%] | QO5: 1. Diff Delay Dir 1 [s/v] | QP5: 1. Diff Delay Dir 1 [%] | QQ5: 2. Diff Delay Dir 2 [s/v] | QR5: 2. Diff Delay Dir 2 [%] | QS5: 3. Diff Delay Dir 12 [s/v] | QT5: 3. Diff Delay Dir 12 [%] | QU5: 4. Diff Delay Dir 3 [s/v] | QV5: 4. Diff Delay Dir 3 [%] | QW5: 5. Diff Delay Dir 4 [s/v] | QX5: 5. Diff Delay Dir 4 [%] | QY5: 6. Diff Delay Dir 34 [s/v] | QZ5: 6. Diff Delay Dir 34 [%] | RA5: 6.1 Difference Delay 1234 [s] | RB5: 6.1 Difference Delay 1234 [%] | RC5: 7. Diff Network delay [s/v] | RD5: 7. Diff Network delay [%] | RE5: 1. Diff Number of stops Dir 1 [#] | RF5: 1. Diff Number of Stops Dir 1 [%] | RG5: 2. Diff Number of stops Dir 2 [#] | RH5: 2. Diff Number of stops Dir 2 [%] | RI5: 3. Diff Number of stops Dir 12 [#] | RJ5: 3. Diff Number of stops Dir 12 [%] | RK5: 4. Diff Number of stops Dir 3 [#] | RL5: 4. Diff Number of stops Dir 3 [%] | RM5: 5. Diff Number of stops Dir 4 [#] | RN5: 5. Diff Number of stops Dir 4 [%] | RO5: 6. Diff Number of stops Dir 34 [#] | RP5: 6. Diff Number of stops Dir 34 [%] | RQ5: 6.1 Diff Number of stops Dir 1234 [#] | RR5: 6.1 Diff Number of stops Dir 1234 [#]2 | RS5: 7. Diff Network Numb of stops [#] | RT5: 7. Diff Network delay [%]2 | RU5: 1. Diff Side Street Delay Dir 1 [s] | RV5: 1. Diff Side Street Delay Dir 1 [%] | RW5: 2. Diff Side Street Delay Dir 2 [s] | RX5: 2. Diff Side Street Delay Dir 2 [%] | RY5: 3. Diff Side Street Delay 12 [s] | RZ5: 3. Diff Side Street Delay 12 [%] | SA5: 1. Diff Queue lengths Dir 1 [m] | SB5: 1. Diff Queue lengths Dir 1 [%] | SC5: 2. Diff Queue lengths Dir 2 [m] | SD5: 2. Diff Queue lengths Dir 2 [%] | SE5: 3. Diff Queue lenghts 12 [m] | SF5: 3. Diff Queue lenghts 12 [%] | SG5: 1. Diff Number of crashes - Property damage [#] | SH5: 1. Diff Number of crashes - Property damage [%] | SI5: 1. Diff Number of crashes - Injury [#] | SJ5: 1. Diff Number of crashes - Injury [%] | SK5: 1. Diff Number of crashes - Total number [#] | SL5: 1. Diff Number of crashes - Total number [%] | SM5: 2. Diff Number of Crossing Confilcts [#] | SN5: 2. Diff Number of Crossing Confilcts [%] | SO5: 2. Diff Number of Rear-End Conflicts [#] | SP5: 2. Diff Number of Rear-End Conflicts [%] | SQ5: 2. Diff Number of Lane-Changing Confilcts [#] | SR5: 2. Diff Number of Lane-Changing Confilcts [%] | SS5: 3. Diff Total number of conflicts [#] | ST5: 3. Diff Total number of conflicts [%] | SU5: 1. Diff Fuel consumption Dir 1 [gal] | SV5: 1. Diff Fuel consumption Dir 1 [%] | SW5: 2. Diff Fuel consumption Dir 2 [gal] | SX5: 2. Diff Fuel consumption Dir 2 [%] | SY5: 3. Diff Fuel consumption Dir 12 [gal] | SZ5: 3. Diff Fuel consumption Dir 12 [%] | TA5: 4. Diff Fuel consumption Dir 3 [gal] | TB5: 4. Diff Fuel consumption Dir 3 [%] | TC5: 5. Diff Fuel consumption Dir 4 [gal] | TD5: 5. Diff Fuel consumption Dir 4 [%] | TE5: 6. Diff Fuel consumption Dir 34 [gal] | TF5: 6. Diff Fuel consumption Dir 34 [%] | TG5: 6.1 Diff Fuel consumption Dir 1234 [g] | TH5: 6.1 Diff Fuel consumption Dir 1234 [%] | TI5: 7. Diff Fuel consumption Network [gal] | TJ5: 7. Diff Fuel consumption Network [%] | TK5: 1. Diff Emissions - HC - Dir1 [g] | TL5: 1. Diff Emissions - HC - Dir1 [%] | TM5: 2. Diff Emissions - HC - Dir2 [g] | TN5: 2. Diff Emissions - HC - Dir2 [%] | TO5: 3. Diff Emissions - HC - Dir 12 [g] | TP5: 3. Diff Emissions - HC - Dir 12 [%] | TQ5: 4. Diff Emissions - HC - Dir3 [g] | TR5: 4. Diff Emissions - HC - Dir3 [%] | TS5: 5. Diff Emissions - HC - Dir4 [g] | TT5: 5. Diff Emissions - HC - Dir4 [%] | TU5: 6. Diff Emissions - HC - Dir 34 [g] | TV5: 6. Diff Emissions - HC - Dir 34 [%] | TW5: 6.1 Diff Emissions - HC - Dir 1234 [g] | TX5: 6.1 Diff Emissions - HC - Dir 1234 [%] | TY5: 7. Diff Network Emissions - HC [g] | TZ5: 7. Diff Network Emissions - HC [%] | UA5: 1. Diff Emissions - CO - Dir1 [g] | UB5: 1. Diff Emissions - CO - Dir1 [%] | UC5: 2. Diff Emissions - CO - Dir2 [g] | UD5: 2. Diff Emissions - CO - Dir2 [%] | UE5: 3. Diff Emissions - CO - Dir 12 [g] | UF5: 3. Diff Emissions - CO - Dir 12 [%] | UG5: 4. Diff Emissions - CO - Dir3 [g] | UH5: 4. Diff Emissions - CO - Dir3 [%] | UI5: 5. Diff Emissions - CO - Dir4 [g] | UJ5: 5. Diff Emissions - CO - Dir4 [%] | UK5: 6. Diff Emissions - CO - Dir 34 [g] | UL5: 6. Diff Emissions - CO - Dir 34 [%] | UM5: 6.1 Diff Emissions - CO - Dir 1234 [g] | UN5: 6.1 Diff Emissions - CO - Dir 1234 [%] | UO5: 7. Diff Network Emissions - CO [g] | UP5: 7. Diff Network Emissions - CO [%] | UQ5: 1. Diff Emissions - NOx - Dir1 [g] | UR5: 1. Diff Emissions - NOx - Dir1 [%] | US5: 2. Diff Emissions - NOx - Dir2 [g] | UT5: 2. Diff Emissions - NOx - Dir2 [%] | UU5: 3. Diff Emissions - NOx - Dir 12 [g] | UV5: 3. Diff Emissions - NOx - Dir 12 [%] | UW5: 4. Diff Emissions - NOx - Dir3 [g] | UX5: 4. Diff Emissions - NOx - Dir3 [%] | UY5: 5. Diff Emissions - NOx - Dir4 [g] | UZ5: 5. Diff Emissions - NOx - Dir4 [%] | VA5: 6. Diff Emissions - NOx - Dir 34 [g] | VB5: 6. Diff Emissions - NOx - Dir 34 [%] | VC5: 6.1 Diff Emissions - NOx - Dir 1234 [g] | VD5: 6.1 Diff Emissions - NOx - Dir 1234 [%] | VE5: 7. Diff Network Emissions - NOx [g] | VF5: 7. Diff Network Emissions - NOx [%] | VG5: 1. Diff Total Network Emissions [g] | VH5: 1. Diff Total Network Emissions [%] | VI5: 1. Diff Network Transit Travel Time [s] | VJ5: 1. Diff Network Transit Travel Time [%] | VK5: 1. Diff Pedestrian Delay [s] | VL5: 1. Diff Pedestrian Delay [%] | VM5: 1. Travel time Dir 1 [s]3 | VN5: 2. Travel time Dir 2 [s]4 | VO5: 3. Travel time Dir 12 [s]5 | VP5: 4. Travel time Dir 3 [s]6 | VQ5: 5. Travel time Dir 4 [s]7 | VR5: 6. Travel time Dir 34 [s]8 | VS5: 7. Network Tt [s]9 | VT5: 1. Delay Dir 1 [s/v]3 | VU5: 2. Delay Dir 2 [s/v]4 | VV5: 3. Delay Dir 12 [s/v]5 | VW5: 4. Delay Dir 3 [s/v]6 | VX5: 5. Delay Dir 4 [s/v]7 | VY5: 6. Delay Dir 34 [s/v]8 | VZ5: 7. Network Delay [s/v]9 | WA5: 1. Number of stops Dir 1 [#]3 | WB5: 2. Number of stops Dir 2 [#]4 | WC5: 3. Number of stops Dir 12 [#]5 | WD5: 4. Number of stops Dir 3 [#]6 | WE5: 5. Number of stops Dir 4 [#]7 | WF5: 6. Number of stops Dir 34 [#]8 | WG5: 7. Network Number of stops [#]9 | WH5: 1. Side Street Delay Dir 13 | WI5: 2. Side Street Delay Dir 24 | WJ5: 3. Side Street Delay BothDir5 | WK5: 1. Queue lengths Dir 13 | WL5: 2. Queue lengths Dir 24 | WM5: 3. Queue lenghts BothDir5 | WN5: 1. Number of crashes - Property damage3 | WO5: 1. Number of crashes - Injury4 | WP5: 1. Number of crashes - Total number5 | WQ5: 2. Number of Crossing Confilcts6 | WR5: 2. Number of Rear-End Conflicts7 | WS5: 2. Number of Lane-Changing Confilcts8 | WT5: 3. Total number of conflicts9 | WU5: 1. Fuel consumption Dir 1 [gal]3 | WV5: 2. Fuel consumption Dir 2 [gal]4 | WW5: 3. Fuel consumption Dir12 [gal]5 | WX5: 4. Fuel consumption Dir 3 [gal]6 | WY5: 5. Fuel consumption Dir 4 [gal]7 | WZ5: 6. Fuel consumption Dir34 [gal]8 | XA5: 7. Network Fuel consumption [gal]9 | XB5: 1. Emissions - HC - Dir1 [g]3 | XC5: 2. Emissions - HC - Dir2 [g]4 | XD5: 3. Emissions - HC - Dir12 [g]5 | XE5: 4. Emissions - HC - Dir3 [g]6 | XF5: 5. Emissions - HC - Dir4 [g]7 | XG5: 6. Emissions - HC - Dir34 [g]8 | XH5: 7. Network Emissions - HC - [g]9 | XI5: 1. Emissions - CO - Dir1 [g]3 | XJ5: 2. Emissions - CO - Dir2 [g]4 | XK5: 3. Emissions - CO - Dir12 [g]5 | XL5: 4. Emissions - CO - Dir3 [g]6 | XM5: 5. Emissions - CO - Dir4 [g]7 | XN5: 6. Emissions - CO - Dir34 [g]8 | XO5: 7. Network Emissions - CO - [g]9 | XP5: 1. Emissions - NOx - Dir1 [g]3 | XQ5: 2. Emissions - NOx - Dir2 [g]4 | XR5: 3. Emissions - NOx - Dir12 [g]5 | XS5: 4. Emissions - NOx - Dir3 [g]6 | XT5: 5. Emissions - NOx - Dir4 [g]7 | XU5: 6. Emissions - NOx - Dir34 [g]8 | XV5: 7. Network Emissions - NOx - [g]9 | XW5: 1. Pedestrian delay [s]3 | XX5: 1. Travel time Dir 1 [s]4 | XY5: 2. Travel time Dir 2 [s]5 | XZ5: 3. Travel time Dir 12 [s]6 | YA5: 4. Travel time Dir 3 [s]7 | YB5: 5. Travel time Dir 4 [s]8 | YC5: 6. Travel time Dir 34 [s]9 | YD5: 7. Network Tt [s]10 | YE5: 1. Delay Dir 1 [s/v]4 | YF5: 2. Delay Dir 2 [s/v]5 | YG5: 3. Delay Dir 12 [s/v]6 | YH5: 4. Delay Dir 3 [s/v]7 | YI5: 5. Delay Dir 4 [s/v]8 | YJ5: 6. Delay Dir 34 [s/v]9 | YK5: 7. Network Delay [s/v]10 | YL5: 1. Number of stops Dir 1 [#]4 | YM5: 2. Number of stops Dir 2 [#]5 | YN5: 3. Number of stops Dir 12 [#]6 | YO5: 4. Number of stops Dir 3 [#]7 | YP5: 5. Number of stops Dir 4 [#]8 | YQ5: 6. Number of stops Dir 34 [#]9 | YR5: 7. Network Number of stops [#]10 | YS5: 1. Side Street Delay Dir 14 | YT5: 2. Side Street Delay Dir 25 | YU5: 3. Side Street Delay BothDir6 | YV5: 1. Queue lengths Dir 14 | YW5: 2. Queue lengths Dir 25 | YX5: 3. Queue lenghts BothDir6 | YY5: 1. Number of crashes - Property damage4 | YZ5: 1. Number of crashes - Injury5 | ZA5: 1. Number of crashes - Total number6 | ZB5: 2. Number of Crossing Confilcts7 | ZC5: 2. Number of Rear-End Conflicts8 | ZD5: 2. Number of Lane-Changing Confilcts9 | ZE5: 3. Total number of conflicts10 | ZF5: 1. Fuel consumption Dir 1 [gal]4 | ZG5: 2. Fuel consumption Dir 2 [gal]5 | ZH5: 3. Fuel consumption Dir12 [gal]6 | ZI5: 4. Fuel consumption Dir 3 [gal]7 | ZJ5: 5. Fuel consumption Dir 4 [gal]8 | ZK5: 6. Fuel consumption Dir34 [gal]9 | ZL5: 7. Network Fuel consumption [gal]10 | ZM5: 1. Emissions - HC - Dir1 [g]4 | ZN5: 2. Emissions - HC - Dir2 [g]5 | ZO5: 3. Emissions - HC - Dir12 [g]6 | ZP5: 4. Emissions - HC - Dir3 [g]7 | ZQ5: 5. Emissions - HC - Dir4 [g]8 | ZR5: 6. Emissions - HC - Dir34 [g]9 | ZS5: 7. Network Emissions - HC - [g]10 | ZT5: 1. Emissions - CO - Dir1 [g]4 | ZU5: 2. Emissions - CO - Dir2 [g]5 | ZV5: 3. Emissions - CO - Dir12 [g]6 | ZW5: 4. Emissions - CO - Dir3 [g]7 | ZX5: 5. Emissions - CO - Dir4 [g]8 | ZY5: 6. Emissions - CO - Dir34 [g]9 | ZZ5: 7. Network Emissions - CO - [g]10 | AAA5: 1. Emissions - NOx - Dir1 [g]4 | AAB5: 2. Emissions - NOx - Dir2 [g]5 | AAC5: 3. Emissions - NOx - Dir12 [g]6 | AAD5: 4. Emissions - NOx - Dir3 [g]7 | AAE5: 5. Emissions - NOx - Dir4 [g]8 | AAF5: 6. Emissions - NOx - Dir34 [g]9 | AAG5: 7. Network Emissions - NOx - [g]10 | AAH5: 1. Pedestrian delay [s]4 | AAI5: 1. Diff Travel time Dir 1 [s]2 | AAJ5: 1. Diff Travel time Dir 1 [%]3 | AAK5: 2. Diff Travel time Dir 2 [s] 4 | AAL5: 2. Diff Travel time Dir 2 [%] 5 | AAM5: 3. Diff Travel time Dir 12 [s]6 | AAN5: 3. Diff Travel time Dir 12 [%]7 | AAO5: 4. Diff Travel time Dir 3 [s]8 | AAP5: 4. Diff Travel time Dir 3 [%]9 | AAQ5: 5. Diff Travel time Dir 4 [s] 10 | AAR5: 5. Diff Travel time Dir 4 [%] 11 | AAS5: 6. Diff Travel time 34 [s]12 | AAT5: 6. Diff Travel time 34 [%]13 | AAU5: 6.1 Difference Travel time 1234 [s]2 | AAV5: 6.1 Difference Travel time 1234 [%]2 | AAW5: 7. Diff Network Tt [s]14 | AAX5: 7. Diff Network Tt [%]15 | AAY5: 1. Diff Delay Dir 1 [s/v]2 | AAZ5: 1. Diff Delay Dir 1 [%]3 | ABA5: 2. Diff Delay Dir 2 [s/v]4 | ABB5: 2. Diff Delay Dir 2 [%]5 | ABC5: 3. Diff Delay Dir 12 [s/v]6 | ABD5: 3. Diff Delay Dir 12 [%]7 | ABE5: 4. Diff Delay Dir 3 [s/v]8 | ABF5: 4. Diff Delay Dir 3 [%]9 | ABG5: 5. Diff Delay Dir 4 [s/v]10 | ABH5: 5. Diff Delay Dir 4 [%]11 | ABI5: 6. Diff Delay Dir 34 [s/v]12 | ABJ5: 6. Diff Delay Dir 34 [%]13 | ABK5: 6.1 Difference Delay 1234 [s]2 | ABL5: 6.1 Difference Delay 1234 [%]2 | ABM5: 7. Diff Network delay [s/v]14 | ABN5: 7. Diff Network delay [%]15 | ABO5: 1. Diff Number of stops Dir 1 [#]2 | ABP5: 1. Diff Number of Stops Dir 1 [%]3 | ABQ5: 2. Diff Number of stops Dir 2 [#]4 | ABR5: 2. Diff Number of stops Dir 2 [%]5 | ABS5: 3. Diff Number of stops Dir 12 [#]6 | ABT5: 3. Diff Number of stops Dir 12 [%]7 | ABU5: 4. Diff Number of stops Dir 3 [#]8 | ABV5: 4. Diff Number of stops Dir 3 [%]9 | ABW5: 5. Diff Number of stops Dir 4 [#]10 | ABX5: 5. Diff Number of stops Dir 4 [%]11 | ABY5: 6. Diff Number of stops Dir 34 [#]12 | ABZ5: 6. Diff Number of stops Dir 34 [%]13 | ACA5: 6.1 Diff Number of stops Dir 1234 [#]3 | ACB5: 6.1 Diff Number of stops Dir 1234 [%] | ACC5: 7. Diff Network Numb of stops [#]14 | ACD5: 7. Diff Network Numb of stops [%]15 | ACE5: 1. Diff Side Street Delay Dir 1 [s]2 | ACF5: 1. Diff Side Street Delay Dir 1 [%]3 | ACG5: 2. Diff Side Street Delay Dir 2 [s]4 | ACH5: 2. Diff Side Street Delay Dir 2 [%]5 | ACI5: 3. Diff Side Street Delay 12 [s]6 | ACJ5: 3. Diff Side Street Delay 12 [%]7 | ACK5: 1. Diff Queue lengths Dir 1 [m]2 | ACL5: 1. Diff Queue lengths Dir 1 [%]3 | ACM5: 2. Diff Queue lengths Dir 2 [m]4 | ACN5: 2. Diff Queue lengths Dir 2 [%]5 | ACO5: 3. Diff Queue lenghts 12 [m]6 | ACP5: 3. Diff Queue lenghts 12 [%]7 | ACQ5: 1. Diff Number of crashes - Property damage [#]2 | ACR5: 1. Diff Number of crashes - Property damage [%]3 | ACS5: 1. Diff Number of crashes - Injury [#]4 | ACT5: 1. Diff Number of crashes - Injury [%]5 | ACU5: 1. Diff Number of crashes - Total number [#]6 | ACV5: 1. Diff Number of crashes - Total number [%]7 | ACW5: 2. Diff Number of Crossing Confilcts [#]8 | ACX5: 2. Diff Number of Crossing Confilcts [%]9 | ACY5: 2. Diff Number of Rear-End Conflicts [#]10 | ACZ5: 2. Diff Number of Rear-End Conflicts [%]11 | ADA5: 2. Diff Number of Lane-Changing Confilcts [#]12 | ADB5: 2. Diff Number of Lane-Changing Confilcts [%]13 | ADC5: 3. Diff Total number of conflicts [#]14 | ADD5: 3. Diff Total number of conflicts [%]15 | ADE5: 1. Diff Fuel consumption Dir 1 [gal]2 | ADF5: 1. Diff Fuel consumption Dir 1 [%]3 | ADG5: 2. Diff Fuel consumption Dir 2 [gal]4 | ADH5: 2. Diff Fuel consumption Dir 2 [%]5 | ADI5: 3. Diff Fuel consumption Dir 12 [gal]6 | ADJ5: 3. Diff Fuel consumption Dir 12 [%]7 | ADK5: 4. Diff Fuel consumption Dir 3 [gal]8 | ADL5: 4. Diff Fuel consumption Dir 3 [%]9 | ADM5: 5. Diff Fuel consumption Dir 4 [gal]10 | ADN5: 5. Diff Fuel consumption Dir 4 [%]11 | ADO5: 6. Diff Fuel consumption Dir 34 [gal]12 | ADP5: 6. Diff Fuel consumption Dir 34 [%]13 | ADQ5: 6.1 Diff Fuel consumption Dir 1234 [g]2 | ADR5: 6.1 Diff Fuel consumption Dir 1234 [%]2 | ADS5: 7. Diff Fuel consumption Network [gal]14 | ADT5: 7. Diff Fuel consumption Network [%]15 | ADU5: 1. Diff Emissions - HC - Dir1 [g]2 | ADV5: 1. Diff Emissions - HC - Dir1 [%]3 | ADW5: 2. Diff Emissions - HC - Dir2 [g]4 | ADX5: 2. Diff Emissions - HC - Dir2 [%]5 | ADY5: 3. Diff Emissions - HC - Dir 12 [g]6 | ADZ5: 3. Diff Emissions - HC - Dir 12 [%]7 | AEA5: 4. Diff Emissions - HC - Dir3 [g]8 | AEB5: 4. Diff Emissions - HC - Dir3 [%]9 | AEC5: 5. Diff Emissions - HC - Dir4 [g]10 | AED5: 5. Diff Emissions - HC - Dir4 [%]11 | AEE5: 6. Diff Emissions - HC - Dir 34 [g]12 | AEF5: 6. Diff Emissions - HC - Dir 34 [%]13 | AEG5: 6.1 Diff Emissions - HC - Dir 1234 [g]2 | AEH5: 6.1 Diff Emissions - HC - Dir 1234 [%]2 | AEI5: 7. Diff Network Emissions - HC [g]14 | AEJ5: 7. Diff Network Emissions - HC [%]15 | AEK5: 1. Diff Emissions - CO - Dir1 [g]2 | AEL5: 1. Diff Emissions - CO - Dir1 [%]3 | AEM5: 2. Diff Emissions - CO - Dir2 [g]4 | AEN5: 2. Diff Emissions - CO - Dir2 [%]5 | AEO5: 3. Diff Emissions - CO - Dir 12 [g]6 | AEP5: 3. Diff Emissions - CO - Dir 12 [%]7 | AEQ5: 4. Diff Emissions - CO - Dir3 [g]8 | AER5: 4. Diff Emissions - CO - Dir3 [%]9 | AES5: 5. Diff Emissions - CO - Dir4 [g]10 | AET5: 5. Diff Emissions - CO - Dir4 [%]11 | AEU5: 6. Diff Emissions - CO - Dir 34 [g]12 | AEV5: 6. Diff Emissions - CO - Dir 34 [%]13 | AEW5: 6.1 Diff Emissions - CO - Dir 1234 [g]2 | AEX5: 6.1 Diff Emissions - CO - Dir 1234 [%]2 | AEY5: 7. Diff Network Emissions - CO [g]14 | AEZ5: 7. Diff Network Emissions - CO [%]15 | AFA5: 1. Diff Emissions - NOx - Dir1 [g]2 | AFB5: 1. Diff Emissions - NOx - Dir1 [%]3 | AFC5: 2. Diff Emissions - NOx - Dir2 [g]4 | AFD5: 2. Diff Emissions - NOx - Dir2 [%]5 | AFE5: 3. Diff Emissions - NOx - Dir 12 [g]6 | AFF5: 3. Diff Emissions - NOx - Dir 12 [%]7 | AFG5: 4. Diff Emissions - NOx - Dir3 [g]8 | AFH5: 4. Diff Emissions - NOx - Dir3 [%]9 | AFI5: 5. Diff Emissions - NOx - Dir4 [g]10 | AFJ5: 5. Diff Emissions - NOx - Dir4 [%]11 | AFK5: 6. Diff Emissions - NOx - Dir 34 [g]12 | AFL5: 6. Diff Emissions - NOx - Dir 34 [%]13 | AFM5: 6.1 Diff Emissions - NOx - Dir 1234 [g]2 | AFN5: 6.1 Diff Emissions - NOx - Dir 1234 [%]2 | AFO5: 7. Diff Network Emissions - NOx [g]14 | AFP5: 7. Diff Network Emissions - NOx [%]15 | AFQ5: 1. Diff Total Network Emissions [g]2 | AFR5: 1. Diff Total Network Emissions [%]2 | AFS5: 1. Diff Network Transit Travel Time [s]2 | AFT5: 1. Diff Network Transit Travel Time [%]3 | AFU5: 1. Diff Pedestrian Delay [s]2 | AFV5: 1. Diff Pedestrian Delay [%]3 | AFW5: 1. Travel time Dir 1 [s]5 | AFX5: 2. Travel time Dir 2 [s]6 | AFY5: 3. Travel time Dir 12 [s]7 | AFZ5: 4. Travel time Dir 3 [s]8 | AGA5: 5. Travel time Dir 4 [s]9 | AGB5: 6. Travel time Dir 34 [s]10 | AGC5: 7. Network Tt [s]11 | AGD5: 1. Delay Dir 1 [s/v]5 | AGE5: 2. Delay Dir 2 [s/v]6 | AGF5: 3. Delay Dir 12 [s/v]7 | AGG5: 4. Delay Dir 3 [s/v]8 | AGH5: 5. Delay Dir 4 [s/v]9 | AGI5: 6. Delay Dir 34 [s/v]10 | AGJ5: 7. Network Delay [s/v]11 | AGK5: 1. Number of stops Dir 1 [#]5 | AGL5: 2. Number of stops Dir 2 [#]6 | AGM5: 3. Number of stops Dir 12 [#]7 | AGN5: 4. Number of stops Dir 3 [#]8 | AGO5: 5. Number of stops Dir 4 [#]9 | AGP5: 6. Number of stops Dir 34 [#]10 | AGQ5: 7. Network Number of stops [#]11 | AGR5: 1. Side Street Delay Dir 15 | AGS5: 2. Side Street Delay Dir 26 | AGT5: 3. Side Street Delay BothDir7 | AGU5: 1. Queue lengths Dir 15 | AGV5: 2. Queue lengths Dir 26 | AGW5: 3. Queue lenghts BothDir7 | AGX5: 1. Number of crashes - Property damage5 | AGY5: 1. Number of crashes - Injury6 | AGZ5: 1. Number of crashes - Total number7 | AHA5: 2. Number of Crossing Confilcts8 | AHB5: 2. Number of Rear-End Conflicts9 | AHC5: 2. Number of Lane-Changing Confilcts10 | AHD5: 3. Total number of conflicts11 | AHE5: 1. Fuel consumption Dir 1 [gal]5 | AHF5: 2. Fuel consumption Dir 2 [gal]6 | AHG5: 3. Fuel consumption Dir12 [gal]7 | AHH5: 4. Fuel consumption Dir 3 [gal]8 | AHI5: 5. Fuel consumption Dir 4 [gal]9 | AHJ5: 6. Fuel consumption Dir34 [gal]10 | AHK5: 7. Network Fuel consumption [gal]11 | AHL5: 1. Emissions - HC - Dir1 [g]5 | AHM5: 2. Emissions - HC - Dir2 [g]6 | AHN5: 3. Emissions - HC - Dir12 [g]7 | AHO5: 4. Emissions - HC - Dir3 [g]8 | AHP5: 5. Emissions - HC - Dir4 [g]9 | AHQ5: 6. Emissions - HC - Dir34 [g]10 | AHR5: 7. Network Emissions - HC - [g]11 | AHS5: 1. Emissions - CO - Dir1 [g]5 | AHT5: 2. Emissions - CO - Dir2 [g]6 | AHU5: 3. Emissions - CO - Dir12 [g]7 | AHV5: 4. Emissions - CO - Dir3 [g]8 | AHW5: 5. Emissions - CO - Dir4 [g]9 | AHX5: 6. Emissions - CO - Dir34 [g]10 | AHY5: 7. Network Emissions - CO - [g]11 | AHZ5: 1. Emissions - NOx - Dir1 [g]5 | AIA5: 2. Emissions - NOx - Dir2 [g]6 | AIB5: 3. Emissions - NOx - Dir12 [g]7 | AIC5: 4. Emissions - NOx - Dir3 [g]8 | AID5: 5. Emissions - NOx - Dir4 [g]9 | AIE5: 6. Emissions - NOx - Dir34 [g]10 | AIF5: 7. Network Emissions - NOx - [g]11 | AIG5: 1. Pedestrian delay [s]5 | AIH5: 1. Travel time Dir 1 [s]6 | AII5: 2. Travel time Dir 2 [s]7 | AIJ5: 3. Travel time Dir 12 [s]8 | AIK5: 4. Travel time Dir 3 [s]9 | AIL5: 5. Travel time Dir 4 [s]10 | AIM5: 6. Travel time Dir 34 [s]11 | AIN5: 7. Network Tt [s]12 | AIO5: 1. Delay Dir 1 [s/v]6 | AIP5: 2. Delay Dir 2 [s/v]7 | AIQ5: 3. Delay Dir 12 [s/v]8 | AIR5: 4. Delay Dir 3 [s/v]9 | AIS5: 5. Delay Dir 4 [s/v]10 | AIT5: 6. Delay Dir 34 [s/v]11 | AIU5: 7. Network Delay [s/v]12 | AIV5: 1. Number of stops Dir 1 [#]6 | AIW5: 2. Number of stops Dir 2 [#]7 | AIX5: 3. Number of stops Dir 12 [#]8 | AIY5: 4. Number of stops Dir 3 [#]9 | AIZ5: 5. Number of stops Dir 4 [#]10 | AJA5: 6. Number of stops Dir 34 [#]11 | AJB5: 7. Network Number of stops [#]12 | AJC5: 1. Side Street Delay Dir 16 | AJD5: 2. Side Street Delay Dir 27 | AJE5: 3. Side Street Delay BothDir8 | AJF5: 1. Queue lengths Dir 16 | AJG5: 2. Queue lengths Dir 27 | AJH5: 3. Queue lenghts BothDir8 | AJI5: 1. Number of crashes - Property damage6 | AJJ5: 1. Number of crashes - Injury7 | AJK5: 1. Number of crashes - Total number8 | AJL5: 2. Number of Crossing Confilcts9 | AJM5: 2. Number of Rear-End Conflicts10 | AJN5: 2. Number of Lane-Changing Confilcts11 | AJO5: 3. Total number of conflicts12 | AJP5: 1. Fuel consumption Dir 1 [gal]6 | AJQ5: 2. Fuel consumption Dir 2 [gal]7 | AJR5: 3. Fuel consumption Dir12 [gal]8 | AJS5: 4. Fuel consumption Dir 3 [gal]9 | AJT5: 5. Fuel consumption Dir 4 [gal]10 | AJU5: 6. Fuel consumption Dir34 [gal]11 | AJV5: 7. Network Fuel consumption [gal]12 | AJW5: 1. Emissions - HC - Dir1 [g]6 | AJX5: 2. Emissions - HC - Dir2 [g]7 | AJY5: 3. Emissions - HC - Dir12 [g]8 | AJZ5: 4. Emissions - HC - Dir3 [g]9 | AKA5: 5. Emissions - HC - Dir4 [g]10 | AKB5: 6. Emissions - HC - Dir34 [g]11 | AKC5: 7. Network Emissions - HC - [g]12 | AKD5: 1. Emissions - CO - Dir1 [g]6 | AKE5: 2. Emissions - CO - Dir2 [g]7 | AKF5: 3. Emissions - CO - Dir12 [g]8 | AKG5: 4. Emissions - CO - Dir3 [g]9 | AKH5: 5. Emissions - CO - Dir4 [g]10 | AKI5: 6. Emissions - CO - Dir34 [g]11 | AKJ5: 7. Network Emissions - CO - [g]12 | AKK5: 1. Emissions - NOx - Dir1 [g]6 | AKL5: 2. Emissions - NOx - Dir2 [g]7 | AKM5: 3. Emissions - NOx - Dir12 [g]8 | AKN5: 4. Emissions - NOx - Dir3 [g]9 | AKO5: 5. Emissions - NOx - Dir4 [g]10 | AKP5: 6. Emissions - NOx - Dir34 [g]11 | AKQ5: 7. Network Emissions - NOx - [g]12 | AKR5: 1. Pedestrian delay [s]6 | AKS5: 1. Diff Travel time Dir 1 [s]3 | AKT5: 1. Diff Travel time Dir 1 [%]4 | AKU5: 2. Diff Travel time Dir 2 [s] 5 | AKV5: 2. Diff Travel time Dir 2 [%] 6 | AKW5: 3. Diff Travel time Dir 12 [s]7 | AKX5: 3. Diff Travel time Dir 12 [%]8 | AKY5: 4. Diff Travel time Dir 3 [s]9 | AKZ5: 4. Diff Travel time Dir 3 [%]10 | ALA5: 5. Diff Travel time Dir 4 [s] 11 | ALB5: 5. Diff Travel time Dir 4 [%] 12 | ALC5: 6. Diff Travel time 34 [s]13 | ALD5: 6. Diff Travel time 34 [%]14 | ALE5: 6.1 Difference Travel time 1234 [s]3 | ALF5: 6.1 Difference Travel time 1234 [%]3 | ALG5: 7. Diff Network Tt [s]15 | ALH5: 7. Diff Network Tt [%]16 | ALI5: 1. Diff Delay Dir 1 [s/v]3 | ALJ5: 1. Diff Delay Dir 1 [%]4 | ALK5: 2. Diff Delay Dir 2 [s/v]5 | ALL5: 2. Diff Delay Dir 2 [%]6 | ALM5: 3. Diff Delay Dir 12 [s/v]7 | ALN5: 3. Diff Delay Dir 12 [%]8 | ALO5: 4. Diff Delay Dir 3 [s/v]9 | ALP5: 4. Diff Delay Dir 3 [%]10 | ALQ5: 5. Diff Delay Dir 4 [s/v]11 | ALR5: 5. Diff Delay Dir 4 [%]12 | ALS5: 6. Diff Delay Dir 34 [s/v]13 | ALT5: 6. Diff Delay Dir 34 [%]14 | ALU5: 6.1 Difference Delay 1234 [s]3 | ALV5: 6.1 Difference Delay 1234 [%]3 | ALW5: 7. Diff Network delay [s/v]15 | ALX5: 7. Diff Network delay [%]16 | ALY5: 1. Diff Number of stops Dir 1 [#]3 | ALZ5: 1. Diff Number of Stops Dir 1 [%]4 | AMA5: 2. Diff Number of stops Dir 2 [#]5 | AMB5: 2. Diff Number of stops Dir 2 [%]6 | AMC5: 3. Diff Number of stops Dir 12 [#]7 | AMD5: 3. Diff Number of stops Dir 12 [%]8 | AME5: 4. Diff Number of stops Dir 3 [#]9 | AMF5: 4. Diff Number of stops Dir 3 [%]10 | AMG5: 5. Diff Number of stops Dir 4 [#]11 | AMH5: 5. Diff Number of stops Dir 4 [%]12 | AMI5: 6. Diff Number of stops Dir 34 [#]13 | AMJ5: 6. Diff Number of stops Dir 34 [%]14 | AMK5: 6.1 Diff Number of stops Dir 1234 [#]4 | AML5: 6.1 Diff Number of stops Dir 1234 [%]2 | AMM5: 7. Diff Network Numb of stops [#]15 | AMN5: 7. Diff Network Numb of stops [%]16 | AMO5: 1. Diff Side Street Delay Dir 1 [s]3 | AMP5: 1. Diff Side Street Delay Dir 1 [%]4 | AMQ5: 2. Diff Side Street Delay Dir 2 [s]5 | AMR5: 2. Diff Side Street Delay Dir 2 [%]6 | AMS5: 3. Diff Side Street Delay 12 [s]7 | AMT5: 3. Diff Side Street Delay 12 [%]8 | AMU5: 1. Diff Queue lengths Dir 1 [m]3 | AMV5: 1. Diff Queue lengths Dir 1 [%]4 | AMW5: 2. Diff Queue lengths Dir 2 [m]5 | AMX5: 2. Diff Queue lengths Dir 2 [%]6 | AMY5: 3. Diff Queue lenghts 12 [m]7 | AMZ5: 3. Diff Queue lenghts 12 [%]8 | ANA5: 1. Diff Number of crashes - Property damage [#]3 | ANB5: 1. Diff Number of crashes - Property damage [%]4 | ANC5: 1. Diff Number of crashes - Injury [#]5 | AND5: 1. Diff Number of crashes - Injury [%]6 | ANE5: 1. Diff Number of crashes - Total number [#]7 | ANF5: 1. Diff Number of crashes - Total number [%]8 | ANG5: 2. Diff Number of Crossing Confilcts [#]9 | ANH5: 2. Diff Number of Crossing Confilcts [%]10 | ANI5: 2. Diff Number of Rear-End Conflicts [#]11 | ANJ5: 2. Diff Number of Rear-End Conflicts [%]12 | ANK5: 2. Diff Number of Lane-Changing Confilcts [#]13 | ANL5: 2. Diff Number of Lane-Changing Confilcts [%]14 | ANM5: 3. Diff Total number of conflicts [#]15 | ANN5: 3. Diff Total number of conflicts [%]16 | ANO5: 1. Diff Fuel consumption Dir 1 [gal]3 | ANP5: 1. Diff Fuel consumption Dir 1 [%]4 | ANQ5: 2. Diff Fuel consumption Dir 2 [gal]5 | ANR5: 2. Diff Fuel consumption Dir 2 [%]6 | ANS5: 3. Diff Fuel consumption Dir 12 [gal]7 | ANT5: 3. Diff Fuel consumption Dir 12 [%]8 | ANU5: 4. Diff Fuel consumption Dir 3 [gal]9 | ANV5: 4. Diff Fuel consumption Dir 3 [%]10 | ANW5: 5. Diff Fuel consumption Dir 4 [gal]11 | ANX5: 5. Diff Fuel consumption Dir 4 [%]12 | ANY5: 6. Diff Fuel consumption Dir 34 [gal]13 | ANZ5: 6. Diff Fuel consumption Dir 34 [%]14 | AOA5: 6.1 Diff Fuel consumption Dir 1234 [g]3 | AOB5: 6.1 Diff Fuel consumption Dir 1234 [%]3 | AOC5: 7. Diff Fuel consumption Network [gal]15 | AOD5: 7. Diff Fuel consumption Network [%]16 | AOE5: 1. Diff Emissions - HC - Dir1 [g]3 | AOF5: 1. Diff Emissions - HC - Dir1 [%]4 | AOG5: 2. Diff Emissions - HC - Dir2 [g]5 | AOH5: 2. Diff Emissions - HC - Dir2 [%]6 | AOI5: 3. Diff Emissions - HC - Dir 12 [g]7 | AOJ5: 3. Diff Emissions - HC - Dir 12 [%]8 | AOK5: 4. Diff Emissions - HC - Dir3 [g]9 | AOL5: 4. Diff Emissions - HC - Dir3 [%]10 | AOM5: 5. Diff Emissions - HC - Dir4 [g]11 | AON5: 5. Diff Emissions - HC - Dir4 [%]12 | AOO5: 6. Diff Emissions - HC - Dir 34 [g]13 | AOP5: 6. Diff Emissions - HC - Dir 34 [%]14 | AOQ5: 6.1 Diff Emissions - HC - Dir 1234 [g]3 | AOR5: 6.1 Diff Emissions - HC - Dir 1234 [%]3 | AOS5: 7. Diff Network Emissions - HC [g]15 | AOT5: 7. Diff Network Emissions - HC [%]16 | AOU5: 1. Diff Emissions - CO - Dir1 [g]3 | AOV5: 1. Diff Emissions - CO - Dir1 [%]4 | AOW5: 2. Diff Emissions - CO - Dir2 [g]5 | AOX5: 2. Diff Emissions - CO - Dir2 [%]6 | AOY5: 3. Diff Emissions - CO - Dir 12 [g]7 | AOZ5: 3. Diff Emissions - CO - Dir 12 [%]8 | APA5: 4. Diff Emissions - CO - Dir3 [g]9 | APB5: 4. Diff Emissions - CO - Dir3 [%]10 | APC5: 5. Diff Emissions - CO - Dir4 [g]11 | APD5: 5. Diff Emissions - CO - Dir4 [%]12 | APE5: 6. Diff Emissions - CO - Dir 34 [g]13 | APF5: 6. Diff Emissions - CO - Dir 34 [%]14 | APG5: 6.1 Diff Emissions - CO - Dir 1234 [g]3 | APH5: 6.1 Diff Emissions - CO - Dir 1234 [%]3 | API5: 7. Diff Network Emissions - CO [g]15 | APJ5: 7. Diff Network Emissions - CO [%]16 | APK5: 1. Diff Emissions - NOx - Dir1 [g]3 | APL5: 1. Diff Emissions - NOx - Dir1 [%]4 | APM5: 2. Diff Emissions - NOx - Dir2 [g]5 | APN5: 2. Diff Emissions - NOx - Dir2 [%]6 | APO5: 3. Diff Emissions - NOx - Dir 12 [g]7 | APP5: 3. Diff Emissions - NOx - Dir 12 [%]8 | APQ5: 4. Diff Emissions - NOx - Dir3 [g]9 | APR5: 4. Diff Emissions - NOx - Dir3 [%]10 | APS5: 5. Diff Emissions - NOx - Dir4 [g]11 | APT5: 5. Diff Emissions - NOx - Dir4 [%]12 | APU5: 6. Diff Emissions - NOx - Dir 34 [g]13 | APV5: 6. Diff Emissions - NOx - Dir 34 [%]14 | APW5: 6.1 Diff Emissions - NOx - Dir 1234 [g]3 | APX5: 6.1 Diff Emissions - NOx - Dir 1234 [%]3 | APY5: 7. Diff Network Emissions - NOx [g]15 | APZ5: 7. Diff Network Emissions - NOx [%]16 | AQA5: 1. Diff Total Network Emissions [g]3 | AQB5: 1. Diff Total Network Emissions [%]4 | AQC5: 1. Diff Network Transit Travel Time [s]22 | AQD5: 1. Diff Network Transit Travel Time [%]33 | AQE5: 1. Diff Pedestrian Delay [s]3 | AQF5: 1. Diff Pedestrian Delay [%]4 | AQG5: 1. Travel time Dir 1 [s]52 | AQH5: 2. Travel time Dir 2 [s]63 | AQI5: 3. Travel time Dir 12 [s]74 | AQJ5: 4. Travel time Dir 3 [s]85 | AQK5: 5. Travel time Dir 4 [s]96 | AQL5: 6. Travel time Dir 34 [s]107 | AQM5: 7. Network Tt [s]118 | AQN5: 1. Delay Dir 1 [s/v]59 | AQO5: 2. Delay Dir 2 [s/v]610 | AQP5: 3. Delay Dir 12 [s/v]711 | AQQ5: 4. Delay Dir 3 [s/v]812 | AQR5: 5. Delay Dir 4 [s/v]913 | AQS5: 6. Delay Dir 34 [s/v]1014 | AQT5: 7. Network Delay [s/v]1115 | AQU5: 1. Number of stops Dir 1 [#]516 | AQV5: 2. Number of stops Dir 2 [#]617 | AQW5: 3. Number of stops Dir 12 [#]718 | AQX5: 4. Number of stops Dir 3 [#]819 | AQY5: 5. Number of stops Dir 4 [#]920 | AQZ5: 6. Number of stops Dir 34 [#]1021 | ARA5: 7. Network Number of stops [#]1122 | ARB5: 1. Side Street Delay Dir 1523 | ARC5: 2. Side Street Delay Dir 2624 | ARD5: 3. Side Street Delay BothDir725 | ARE5: 1. Queue lengths Dir 1526 | ARF5: 2. Queue lengths Dir 2627 | ARG5: 3. Queue lenghts BothDir728 | ARH5: 1. Number of crashes - Property damage529 | ARI5: 1. Number of crashes - Injury630 | ARJ5: 1. Number of crashes - Total number731 | ARK5: 2. Number of Crossing Confilcts832 | ARL5: 2. Number of Rear-End Conflicts933 | ARM5: 2. Number of Lane-Changing Confilcts1034 | ARN5: 3. Total number of conflicts1135 | ARO5: 1. Fuel consumption Dir 1 [gal]536 | ARP5: 2. Fuel consumption Dir 2 [gal]637 | ARQ5: 3. Fuel consumption Dir12 [gal]738 | ARR5: 4. Fuel consumption Dir 3 [gal]839 | ARS5: 5. Fuel consumption Dir 4 [gal]940 | ART5: 6. Fuel consumption Dir34 [gal]1041 | ARU5: 7. Network Fuel consumption [gal]1142 | ARV5: 1. Emissions - HC - Dir1 [g]543 | ARW5: 2. Emissions - HC - Dir2 [g]644 | ARX5: 3. Emissions - HC - Dir12 [g]745 | ARY5: 4. Emissions - HC - Dir3 [g]846 | ARZ5: 5. Emissions - HC - Dir4 [g]947 | ASA5: 6. Emissions - HC - Dir34 [g]1048 | ASB5: 7. Network Emissions - HC - [g]1149 | ASC5: 1. Emissions - CO - Dir1 [g]550 | ASD5: 2. Emissions - CO - Dir2 [g]651 | ASE5: 3. Emissions - CO - Dir12 [g]752 | ASF5: 4. Emissions - CO - Dir3 [g]853 | ASG5: 5. Emissions - CO - Dir4 [g]954 | ASH5: 6. Emissions - CO - Dir34 [g]1055 | ASI5: 7. Network Emissions - CO - [g]1156 | ASJ5: 1. Emissions - NOx - Dir1 [g]557 | ASK5: 2. Emissions - NOx - Dir2 [g]658 | ASL5: 3. Emissions - NOx - Dir12 [g]759 | ASM5: 4. Emissions - NOx - Dir3 [g]860 | ASN5: 5. Emissions - NOx - Dir4 [g]961 | ASO5: 6. Emissions - NOx - Dir34 [g]1062 | ASP5: 7. Network Emissions - NOx - [g]1163 | ASQ5: 1. Pedestrian delay [s]564 | ASR5: 1. Travel time Dir 1 [s]665 | ASS5: 2. Travel time Dir 2 [s]766 | AST5: 3. Travel time Dir 12 [s]867 | ASU5: 4. Travel time Dir 3 [s]968 | ASV5: 5. Travel time Dir 4 [s]1069 | ASW5: 6. Travel time Dir 34 [s]1170 | ASX5: 7. Network Tt [s]1271 | ASY5: 1. Delay Dir 1 [s/v]672 | ASZ5: 2. Delay Dir 2 [s/v]773 | ATA5: 3. Delay Dir 12 [s/v]874 | ATB5: 4. Delay Dir 3 [s/v]975 | ATC5: 5. Delay Dir 4 [s/v]1076 | ATD5: 6. Delay Dir 34 [s/v]1177 | ATE5: 7. Network Delay [s/v]1278 | ATF5: 1. Number of stops Dir 1 [#]679 | ATG5: 2. Number of stops Dir 2 [#]780 | ATH5: 3. Number of stops Dir 12 [#]881 | ATI5: 4. Number of stops Dir 3 [#]982 | ATJ5: 5. Number of stops Dir 4 [#]1083 | ATK5: 6. Number of stops Dir 34 [#]1184 | ATL5: 7. Network Number of stops [#]1285 | ATM5: 1. Side Street Delay Dir 1686 | ATN5: 2. Side Street Delay Dir 2787 | ATO5: 3. Side Street Delay BothDir888 | ATP5: 1. Queue lengths Dir 1689 | ATQ5: 2. Queue lengths Dir 2790 | ATR5: 3. Queue lenghts BothDir891 | ATS5: 1. Number of crashes - Property damage692 | ATT5: 1. Number of crashes - Injury793 | ATU5: 1. Number of crashes - Total number894 | ATV5: 2. Number of Crossing Confilcts995 | ATW5: 2. Number of Rear-End Conflicts1096 | ATX5: 2. Number of Lane-Changing Confilcts1197 | ATY5: 3. Total number of conflicts1298 | ATZ5: 1. Fuel consumption Dir 1 [gal]699 | AUA5: 2. Fuel consumption Dir 2 [gal]7100 | AUB5: 3. Fuel consumption Dir12 [gal]8101 | AUC5: 4. Fuel consumption Dir 3 [gal]9102 | AUD5: 5. Fuel consumption Dir 4 [gal]10103 | AUE5: 6. Fuel consumption Dir34 [gal]11104 | AUF5: 7. Network Fuel consumption [gal]12105 | AUG5: 1. Emissions - HC - Dir1 [g]6106 | AUH5: 2. Emissions - HC - Dir2 [g]7107 | AUI5: 3. Emissions - HC - Dir12 [g]8108 | AUJ5: 4. Emissions - HC - Dir3 [g]9109 | AUK5: 5. Emissions - HC - Dir4 [g]10110 | AUL5: 6. Emissions - HC - Dir34 [g]11111 | AUM5: 7. Network Emissions - HC - [g]12112 | AUN5: 1. Emissions - CO - Dir1 [g]6113 | AUO5: 2. Emissions - CO - Dir2 [g]7114 | AUP5: 3. Emissions - CO - Dir12 [g]8115 | AUQ5: 4. Emissions - CO - Dir3 [g]9116 | AUR5: 5. Emissions - CO - Dir4 [g]10117 | AUS5: 6. Emissions - CO - Dir34 [g]11118 | AUT5: 7. Network Emissions - CO - [g]12119 | AUU5: 1. Emissions - NOx - Dir1 [g]6120 | AUV5: 2. Emissions - NOx - Dir2 [g]7121 | AUW5: 3. Emissions - NOx - Dir12 [g]8122 | AUX5: 4. Emissions - NOx - Dir3 [g]9123 | AUY5: 5. Emissions - NOx - Dir4 [g]10124 | AUZ5: 6. Emissions - NOx - Dir34 [g]11125 | AVA5: 7. Network Emissions - NOx - [g]12126 | AVB5: 1. Pedestrian delay [s]6127 | AVC5: 1. Diff Travel time Dir 1 [s]3128 | AVD5: 1. Diff Travel time Dir 1 [%]4129 | AVE5: 2. Diff Travel time Dir 2 [s] 5130 | AVF5: 2. Diff Travel time Dir 2 [%] 6131 | AVG5: 3. Diff Travel time Dir 12 [s]7132 | AVH5: 3. Diff Travel time Dir 12 [%]8133 | AVI5: 4. Diff Travel time Dir 3 [s]9134 | AVJ5: 4. Diff Travel time Dir 3 [%]10135 | AVK5: 5. Diff Travel time Dir 4 [s] 11136 | AVL5: 5. Diff Travel time Dir 4 [%] 12137 | AVM5: 6. Diff Travel time 34 [s]13138 | AVN5: 6. Diff Travel time 34 [%]14139 | AVO5: 6.1 Difference Travel time 1234 [s]3140 | AVP5: 6.1 Difference Travel time 1234 [%]3141 | AVQ5: 7. Diff Network Tt [s]15142 | AVR5: 7. Diff Network Tt [%]16143 | AVS5: 1. Diff Delay Dir 1 [s/v]3144 | AVT5: 1. Diff Delay Dir 1 [%]4145 | AVU5: 2. Diff Delay Dir 2 [s/v]5146 | AVV5: 2. Diff Delay Dir 2 [%]6147 | AVW5: 3. Diff Delay Dir 12 [s/v]7148 | AVX5: 3. Diff Delay Dir 12 [%]8149 | AVY5: 4. Diff Delay Dir 3 [s/v]9150 | AVZ5: 4. Diff Delay Dir 3 [%]10151 | AWA5: 5. Diff Delay Dir 4 [s/v]11152 | AWB5: 5. Diff Delay Dir 4 [%]12153 | AWC5: 6. Diff Delay Dir 34 [s/v]13154 | AWD5: 6. Diff Delay Dir 34 [%]14155 | AWE5: 6.1 Difference Delay 1234 [s]3156 | AWF5: 6.1 Difference Delay 1234 [%]3157 | AWG5: 7. Diff Network delay [s/v]15158 | AWH5: 7. Diff Network delay [%]16159 | AWI5: 1. Diff Number of stops Dir 1 [#]3160 | AWJ5: 1. Diff Number of Stops Dir 1 [%]4161 | AWK5: 2. Diff Number of stops Dir 2 [#]5162 | AWL5: 2. Diff Number of stops Dir 2 [%]6163 | AWM5: 3. Diff Number of stops Dir 12 [#]7164 | AWN5: 3. Diff Number of stops Dir 12 [%]8165 | AWO5: 4. Diff Number of stops Dir 3 [#]9166 | AWP5: 4. Diff Number of stops Dir 3 [%]10167 | AWQ5: 5. Diff Number of stops Dir 4 [#]11168 | AWR5: 5. Diff Number of stops Dir 4 [%]12169 | AWS5: 6. Diff Number of stops Dir 34 [#]13170 | AWT5: 6. Diff Number of stops Dir 34 [%]14171 | AWU5: 6.1 Diff Number of stops Dir 1234 [#]4172 | AWV5: 6.1 Diff Number of stops Dir 1234 [%]2173 | AWW5: 7. Diff Network Numb of stops [#]15174 | AWX5: 7. Diff Network Numb of stops [%]16175 | AWY5: 1. Diff Side Street Delay Dir 1 [s]3176 | AWZ5: 1. Diff Side Street Delay Dir 1 [%]4177 | AXA5: 2. Diff Side Street Delay Dir 2 [s]5178 | AXB5: 2. Diff Side Street Delay Dir 2 [%]6179 | AXC5: 3. Diff Side Street Delay 12 [s]7180 | AXD5: 3. Diff Side Street Delay 12 [%]8181 | AXE5: 1. Diff Queue lengths Dir 1 [m]3182 | AXF5: 1. Diff Queue lengths Dir 1 [%]4183 | AXG5: 2. Diff Queue lengths Dir 2 [m]5184 | AXH5: 2. Diff Queue lengths Dir 2 [%]6185 | AXI5: 3. Diff Queue lenghts 12 [m]7186 | AXJ5: 3. Diff Queue lenghts 12 [%]8187 | AXK5: 1. Diff Number of crashes - Property damage [#]3188 | AXL5: 1. Diff Number of crashes - Property damage [%]4189 | AXM5: 1. Diff Number of crashes - Injury [#]5190 | AXN5: 1. Diff Number of crashes - Injury [%]6191 | AXO5: 1. Diff Number of crashes - Total number [#]7192 | AXP5: 1. Diff Number of crashes - Total number [%]8193 | AXQ5: 2. Diff Number of Crossing Confilcts [#]9194 | AXR5: 2. Diff Number of Crossing Confilcts [%]10195 | AXS5: 2. Diff Number of Rear-End Conflicts [#]11196 | AXT5: 2. Diff Number of Rear-End Conflicts [%]12197 | AXU5: 2. Diff Number of Lane-Changing Confilcts [#]13198 | AXV5: 2. Diff Number of Lane-Changing Confilcts [%]14199 | AXW5: 3. Diff Total number of conflicts [#]15200 | AXX5: 3. Diff Total number of conflicts [%]16201 | AXY5: 1. Diff Fuel consumption Dir 1 [gal]3202 | AXZ5: 1. Diff Fuel consumption Dir 1 [%]4203 | AYA5: 2. Diff Fuel consumption Dir 2 [gal]5204 | AYB5: 2. Diff Fuel consumption Dir 2 [%]6205 | AYC5: 3. Diff Fuel consumption Dir 12 [gal]7206 | AYD5: 3. Diff Fuel consumption Dir 12 [%]8207 | AYE5: 4. Diff Fuel consumption Dir 3 [gal]9208 | AYF5: 4. Diff Fuel consumption Dir 3 [%]10209 | AYG5: 5. Diff Fuel consumption Dir 4 [gal]11210 | AYH5: 5. Diff Fuel consumption Dir 4 [%]12211 | AYI5: 6. Diff Fuel consumption Dir 34 [gal]13212 | AYJ5: 6. Diff Fuel consumption Dir 34 [%]14213 | AYK5: 7. Diff Fuel consumption Network [gal]15214 | AYL5: 7. Diff Fuel consumption Network [%]16215 | AYM5: 1. Diff Emissions - HC - Dir1 [g]3216 | AYN5: 1. Diff Emissions - HC - Dir1 [%]4217 | AYO5: 2. Diff Emissions - HC - Dir2 [g]5218 | AYP5: 2. Diff Emissions - HC - Dir2 [%]6219 | AYQ5: 3. Diff Emissions - HC - Dir 12 [g]7220 | AYR5: 3. Diff Emissions - HC - Dir 12 [%]8221 | AYS5: 4. Diff Emissions - HC - Dir3 [g]9222 | AYT5: 4. Diff Emissions - HC - Dir3 [%]10223 | AYU5: 5. Diff Emissions - HC - Dir4 [g]11224 | AYV5: 5. Diff Emissions - HC - Dir4 [%]12225 | AYW5: 6. Diff Emissions - HC - Dir 34 [g]13226 | AYX5: 6. Diff Emissions - HC - Dir 34 [%]14227 | AYY5: 7. Diff Network Emissions - HC [g]15228 | AYZ5: 7. Diff Network Emissions - HC [%]16229 | AZA5: 1. Diff Emissions - CO - Dir1 [g]3230 | AZB5: 1. Diff Emissions - CO - Dir1 [%]4231 | AZC5: 2. Diff Emissions - CO - Dir2 [g]5232 | AZD5: 2. Diff Emissions - CO - Dir2 [%]6233 | AZE5: 3. Diff Emissions - CO - Dir 12 [g]7234 | AZF5: 3. Diff Emissions - CO - Dir 12 [%]8235 | AZG5: 4. Diff Emissions - CO - Dir3 [g]9236 | AZH5: 4. Diff Emissions - CO - Dir3 [%]10237 | AZI5: 5. Diff Emissions - CO - Dir4 [g]11238 | AZJ5: 5. Diff Emissions - CO - Dir4 [%]12239 | AZK5: 6. Diff Emissions - CO - Dir 34 [g]13240 | AZL5: 6. Diff Emissions - CO - Dir 34 [%]14241 | AZM5: 7. Diff Network Emissions - CO [g]15242 | AZN5: 7. Diff Network Emissions - CO [%]16243 | AZO5: 1. Diff Emissions - NOx - Dir1 [g]3244 | AZP5: 1. Diff Emissions - NOx - Dir1 [%]4245 | AZQ5: 2. Diff Emissions - NOx - Dir2 [g]5246 | AZR5: 2. Diff Emissions - NOx - Dir2 [%]6247 | AZS5: 3. Diff Emissions - NOx - Dir 12 [g]7248 | AZT5: 3. Diff Emissions - NOx - Dir 12 [%]8249 | AZU5: 4. Diff Emissions - NOx - Dir3 [g]9250 | AZV5: 4. Diff Emissions - NOx - Dir3 [%]10251 | AZW5: 5. Diff Emissions - NOx - Dir4 [g]11252 | AZX5: 5. Diff Emissions - NOx - Dir4 [%]12253 | AZY5: 6. Diff Emissions - NOx - Dir 34 [g]13254 | AZZ5: 6. Diff Emissions - NOx - Dir 34 [%]14255 | BAA5: 7. Diff Network Emissions - NOx [g]15256 | BAB5: 7. Diff Network Emissions - NOx [%]16257 | BAC5: 1. Diff Total Network Emissions [g]3258 | BAD5: 1. Diff Total Network Emissions [%]4259 | BAE5: 1. Diff Pedestrian Delay [s]3260 | BAF5: 1. Diff Pedestrian Delay [%]4261 | BAG5: 1. Travel time Dir 1 [s]522 | BAH5: 2. Travel time Dir 2 [s]633 | BAI5: 3. Travel time Dir 12 [s]744 | BAJ5: 4. Travel time Dir 3 [s]855 | BAK5: 5. Travel time Dir 4 [s]966 | BAL5: 6. Travel time Dir 34 [s]1077 | BAM5: 7. Network Tt [s]1188 | BAN5: 1. Delay Dir 1 [s/v]599 | BAO5: 2. Delay Dir 2 [s/v]61010 | BAP5: 3. Delay Dir 12 [s/v]71111 | BAQ5: 4. Delay Dir 3 [s/v]81212 | BAR5: 5. Delay Dir 4 [s/v]91313 | BAS5: 6. Delay Dir 34 [s/v]101414 | BAT5: 7. Network Delay [s/v]111515 | BAU5: 1. Number of stops Dir 1 [#]51616 | BAV5: 2. Number of stops Dir 2 [#]61717 | BAW5: 3. Number of stops Dir 12 [#]71818 | BAX5: 4. Number of stops Dir 3 [#]81919 | BAY5: 5. Number of stops Dir 4 [#]92020 | BAZ5: 6. Number of stops Dir 34 [#]102121 | BBA5: 7. Network Number of stops [#]112222 | BBB5: 1. Side Street Delay Dir 152323 | BBC5: 2. Side Street Delay Dir 262424 | BBD5: 3. Side Street Delay BothDir72525 | BBE5: 1. Queue lengths Dir 152626 | BBF5: 2. Queue lengths Dir 262727 | BBG5: 3. Queue lenghts BothDir72828 | BBH5: 1. Number of crashes - Property damage52929 | BBI5: 1. Number of crashes - Injury63030 | BBJ5: 1. Number of crashes - Total number73131 | BBK5: 2. Number of Crossing Confilcts83232 | BBL5: 2. Number of Rear-End Conflicts93333 | BBM5: 2. Number of Lane-Changing Confilcts103434 | BBN5: 3. Total number of conflicts113535 | BBO5: 1. Fuel consumption Dir 1 [gal]53636 | BBP5: 2. Fuel consumption Dir 2 [gal]63737 | BBQ5: 3. Fuel consumption Dir12 [gal]73838 | BBR5: 4. Fuel consumption Dir 3 [gal]83939 | BBS5: 5. Fuel consumption Dir 4 [gal]94040 | BBT5: 6. Fuel consumption Dir34 [gal]104141 | BBU5: 7. Network Fuel consumption [gal]114242 | BBV5: 1. Emissions - HC - Dir1 [g]54343 | BBW5: 2. Emissions - HC - Dir2 [g]64444 | BBX5: 3. Emissions - HC - Dir12 [g]74545 | BBY5: 4. Emissions - HC - Dir3 [g]84646 | BBZ5: 5. Emissions - HC - Dir4 [g]94747 | BCA5: 6. Emissions - HC - Dir34 [g]104848 | BCB5: 7. Network Emissions - HC - [g]114949 | BCC5: 1. Emissions - CO - Dir1 [g]55050 | BCD5: 2. Emissions - CO - Dir2 [g]65151 | BCE5: 3. Emissions - CO - Dir12 [g]75252 | BCF5: 4. Emissions - CO - Dir3 [g]85353 | BCG5: 5. Emissions - CO - Dir4 [g]95454 | BCH5: 6. Emissions - CO - Dir34 [g]105555 | BCI5: 7. Network Emissions - CO - [g]115656 | BCJ5: 1. Emissions - NOx - Dir1 [g]55757 | BCK5: 2. Emissions - NOx - Dir2 [g]65858 | BCL5: 3. Emissions - NOx - Dir12 [g]75959 | BCM5: 4. Emissions - NOx - Dir3 [g]86060 | BCN5: 5. Emissions - NOx - Dir4 [g]96161 | BCO5: 6. Emissions - NOx - Dir34 [g]106262 | BCP5: 7. Network Emissions - NOx - [g]116363 | BCQ5: 1. Pedestrian delay [s]56464 | BCR5: 1. Travel time Dir 1 [s]66565 | BCS5: 2. Travel time Dir 2 [s]76666 | BCT5: 3. Travel time Dir 12 [s]86767 | BCU5: 4. Travel time Dir 3 [s]96868 | BCV5: 5. Travel time Dir 4 [s]106969 | BCW5: 6. Travel time Dir 34 [s]117070 | BCX5: 7. Network Tt [s]127171 | BCY5: 1. Delay Dir 1 [s/v]67272 | BCZ5: 2. Delay Dir 2 [s/v]77373 | BDA5: 3. Delay Dir 12 [s/v]87474 | BDB5: 4. Delay Dir 3 [s/v]97575 | BDC5: 5. Delay Dir 4 [s/v]107676 | BDD5: 6. Delay Dir 34 [s/v]117777 | BDE5: 7. Network Delay [s/v]127878 | BDF5: 1. Number of stops Dir 1 [#]67979 | BDG5: 2. Number of stops Dir 2 [#]78080 | BDH5: 3. Number of stops Dir 12 [#]88181 | BDI5: 4. Number of stops Dir 3 [#]98282 | BDJ5: 5. Number of stops Dir 4 [#]108383 | BDK5: 6. Number of stops Dir 34 [#]118484 | BDL5: 7. Network Number of stops [#]128585 | BDM5: 1. Side Street Delay Dir 168686 | BDN5: 2. Side Street Delay Dir 278787 | BDO5: 3. Side Street Delay BothDir88888 | BDP5: 1. Queue lengths Dir 168989 | BDQ5: 2. Queue lengths Dir 279090 | BDR5: 3. Queue lenghts BothDir89191 | BDS5: 1. Number of crashes - Property damage69292 | BDT5: 1. Number of crashes - Injury79393 | BDU5: 1. Number of crashes - Total number89494 | BDV5: 2. Number of Crossing Confilcts99595 | BDW5: 2. Number of Rear-End Conflicts109696 | BDX5: 2. Number of Lane-Changing Confilcts119797 | BDY5: 3. Total number of conflicts129898 | BDZ5: 1. Fuel consumption Dir 1 [gal]69999 | BEA5: 2. Fuel consumption Dir 2 [gal]7100100 | BEB5: 3. Fuel consumption Dir12 [gal]8101101 | BEC5: 4. Fuel consumption Dir 3 [gal]9102102 | BED5: 5. Fuel consumption Dir 4 [gal]10103103 | BEE5: 6. Fuel consumption Dir34 [gal]11104104 | BEF5: 7. Network Fuel consumption [gal]12105105 | BEG5: 1. Emissions - HC - Dir1 [g]6106106 | BEH5: 2. Emissions - HC - Dir2 [g]7107107 | BEI5: 3. Emissions - HC - Dir12 [g]8108108 | BEJ5: 4. Emissions - HC - Dir3 [g]9109109 | BEK5: 5. Emissions - HC - Dir4 [g]10110110 | BEL5: 6. Emissions - HC - Dir34 [g]11111111 | BEM5: 7. Network Emissions - HC - [g]12112112 | BEN5: 1. Emissions - CO - Dir1 [g]6113113 | BEO5: 2. Emissions - CO - Dir2 [g]7114114 | BEP5: 3. Emissions - CO - Dir12 [g]8115115 | BEQ5: 4. Emissions - CO - Dir3 [g]9116116 | BER5: 5. Emissions - CO - Dir4 [g]10117117 | BES5: 6. Emissions - CO - Dir34 [g]11118118 | BET5: 7. Network Emissions - CO - [g]12119119 | BEU5: 1. Emissions - NOx - Dir1 [g]6120120 | BEV5: 2. Emissions - NOx - Dir2 [g]7121121 | BEW5: 3. Emissions - NOx - Dir12 [g]8122122 | BEX5: 4. Emissions - NOx - Dir3 [g]9123123 | BEY5: 5. Emissions - NOx - Dir4 [g]10124124 | BEZ5: 6. Emissions - NOx - Dir34 [g]11125125 | BFA5: 7. Network Emissions - NOx - [g]12126126 | BFB5: 1. Pedestrian delay [s]6127127 | BFC5: 1. Diff Travel time Dir 1 [s]3128128 | BFD5: 1. Diff Travel time Dir 1 [%]4129129 | BFE5: 2. Diff Travel time Dir 2 [s] 5130130 | BFF5: 2. Diff Travel time Dir 2 [%] 6131131 | BFG5: 3. Diff Travel time Dir 12 [s]7132132 | BFH5: 3. Diff Travel time Dir 12 [%]8133133 | BFI5: 4. Diff Travel time Dir 3 [s]9134134 | BFJ5: 4. Diff Travel time Dir 3 [%]10135135 | BFK5: 5. Diff Travel time Dir 4 [s] 11136136 | BFL5: 5. Diff Travel time Dir 4 [%] 12137137 | BFM5: 6. Diff Travel time 34 [s]13138138 | BFN5: 6. Diff Travel time 34 [%]14139139 | BFO5: 6.1 Difference Travel time 1234 [s]3140140 | BFP5: 6.1 Difference Travel time 1234 [%]3141141 | BFQ5: 7. Diff Network Tt [s]15142142 | BFR5: 7. Diff Network Tt [%]16143143 | BFS5: 1. Diff Delay Dir 1 [s/v]3144144 | BFT5: 1. Diff Delay Dir 1 [%]4145145 | BFU5: 2. Diff Delay Dir 2 [s/v]5146146 | BFV5: 2. Diff Delay Dir 2 [%]6147147 | BFW5: 3. Diff Delay Dir 12 [s/v]7148148 | BFX5: 3. Diff Delay Dir 12 [%]8149149 | BFY5: 4. Diff Delay Dir 3 [s/v]9150150 | BFZ5: 4. Diff Delay Dir 3 [%]10151151 | BGA5: 5. Diff Delay Dir 4 [s/v]11152152 | BGB5: 5. Diff Delay Dir 4 [%]12153153 | BGC5: 6. Diff Delay Dir 34 [s/v]13154154 | BGD5: 6. Diff Delay Dir 34 [%]14155155 | BGE5: 6.1 Difference Delay 1234 [s]3156156 | BGF5: 6.1 Difference Delay 1234 [%]3157157 | BGG5: 7. Diff Network delay [s/v]15158158 | BGH5: 7. Diff Network delay [%]16159159 | BGI5: 1. Diff Number of stops Dir 1 [#]3160160 | BGJ5: 1. Diff Number of Stops Dir 1 [%]4161161 | BGK5: 2. Diff Number of stops Dir 2 [#]5162162 | BGL5: 2. Diff Number of stops Dir 2 [%]6163163 | BGM5: 3. Diff Number of stops Dir 12 [#]7164164 | BGN5: 3. Diff Number of stops Dir 12 [%]8165165 | BGO5: 4. Diff Number of stops Dir 3 [#]9166166 | BGP5: 4. Diff Number of stops Dir 3 [%]10167167 | BGQ5: 5. Diff Number of stops Dir 4 [#]11168168 | BGR5: 5. Diff Number of stops Dir 4 [%]12169169 | BGS5: 6. Diff Number of stops Dir 34 [#]13170170 | BGT5: 6. Diff Number of stops Dir 34 [%]14171171 | BGU5: 6.1 Diff Number of stops Dir 1234 [#]4172172 | BGV5: 6.1 Diff Number of stops Dir 1234 [%]2173173 | BGW5: 7. Diff Network Numb of stops [#]15174174 | BGX5: 7. Diff Network Numb of stops [%]16175175 | BGY5: 1. Diff Side Street Delay Dir 1 [s]3176176 | BGZ5: 1. Diff Side Street Delay Dir 1 [%]4177177 | BHA5: 2. Diff Side Street Delay Dir 2 [s]5178178 | BHB5: 2. Diff Side Street Delay Dir 2 [%]6179179 | BHC5: 3. Diff Side Street Delay 12 [s]7180180 | BHD5: 3. Diff Side Street Delay 12 [%]8181181 | BHE5: 1. Diff Queue lengths Dir 1 [m]3182182 | BHF5: 1. Diff Queue lengths Dir 1 [%]4183183 | BHG5: 2. Diff Queue lengths Dir 2 [m]5184184 | BHH5: 2. Diff Queue lengths Dir 2 [%]6185185 | BHI5: 3. Diff Queue lenghts 12 [m]7186186 | BHJ5: 3. Diff Queue lenghts 12 [%]8187187 | BHK5: 1. Diff Number of crashes - Property damage [#]3188188 | BHL5: 1. Diff Number of crashes - Property damage [%]4189189 | BHM5: 1. Diff Number of crashes - Injury [#]5190190 | BHN5: 1. Diff Number of crashes - Injury [%]6191191 | BHO5: 1. Diff Number of crashes - Total number [#]7192192 | BHP5: 1. Diff Number of crashes - Total number [%]8193193 | BHQ5: 2. Diff Number of Crossing Confilcts [#]9194194 | BHR5: 2. Diff Number of Crossing Confilcts [%]10195195 | BHS5: 2. Diff Number of Rear-End Conflicts [#]11196196 | BHT5: 2. Diff Number of Rear-End Conflicts [%]12197197 | BHU5: 2. Diff Number of Lane-Changing Confilcts [#]13198198 | BHV5: 2. Diff Number of Lane-Changing Confilcts [%]14199199 | BHW5: 3. Diff Total number of conflicts [#]15200200 | BHX5: 3. Diff Total number of conflicts [%]16201201 | BHY5: 1. Diff Fuel consumption Dir 1 [gal]3202202 | BHZ5: 1. Diff Fuel consumption Dir 1 [%]4203203 | BIA5: 2. Diff Fuel consumption Dir 2 [gal]5204204 | BIB5: 2. Diff Fuel consumption Dir 2 [%]6205205 | BIC5: 3. Diff Fuel consumption Dir 12 [gal]7206206 | BID5: 3. Diff Fuel consumption Dir 12 [%]8207207 | BIE5: 4. Diff Fuel consumption Dir 3 [gal]9208208 | BIF5: 4. Diff Fuel consumption Dir 3 [%]10209209 | BIG5: 5. Diff Fuel consumption Dir 4 [gal]11210210 | BIH5: 5. Diff Fuel consumption Dir 4 [%]12211211 | BII5: 6. Diff Fuel consumption Dir 34 [gal]13212212 | BIJ5: 6. Diff Fuel consumption Dir 34 [%]14213213 | BIK5: 7. Diff Fuel consumption Network [gal]15214214 | BIL5: 7. Diff Fuel consumption Network [%]16215215 | BIM5: 1. Diff Emissions - HC - Dir1 [g]3216216 | BIN5: 1. Diff Emissions - HC - Dir1 [%]4217217 | BIO5: 2. Diff Emissions - HC - Dir2 [g]5218218 | BIP5: 2. Diff Emissions - HC - Dir2 [%]6219219 | BIQ5: 3. Diff Emissions - HC - Dir 12 [g]7220220 | BIR5: 3. Diff Emissions - HC - Dir 12 [%]8221221 | BIS5: 4. Diff Emissions - HC - Dir3 [g]9222222 | BIT5: 4. Diff Emissions - HC - Dir3 [%]10223223 | BIU5: 5. Diff Emissions - HC - Dir4 [g]11224224 | BIV5: 5. Diff Emissions - HC - Dir4 [%]12225225 | BIW5: 6. Diff Emissions - HC - Dir 34 [g]13226226 | BIX5: 6. Diff Emissions - HC - Dir 34 [%]14227227 | BIY5: 7. Diff Network Emissions - HC [g]15228228 | BIZ5: 7. Diff Network Emissions - HC [%]16229229 | BJA5: 1. Diff Emissions - CO - Dir1 [g]3230230 | BJB5: 1. Diff Emissions - CO - Dir1 [%]4231231 | BJC5: 2. Diff Emissions - CO - Dir2 [g]5232232 | BJD5: 2. Diff Emissions - CO - Dir2 [%]6233233 | BJE5: 3. Diff Emissions - CO - Dir 12 [g]7234234 | BJF5: 3. Diff Emissions - CO - Dir 12 [%]8235235 | BJG5: 4. Diff Emissions - CO - Dir3 [g]9236236 | BJH5: 4. Diff Emissions - CO - Dir3 [%]10237237 | BJI5: 5. Diff Emissions - CO - Dir4 [g]11238238 | BJJ5: 5. Diff Emissions - CO - Dir4 [%]12239239 | BJK5: 6. Diff Emissions - CO - Dir 34 [g]13240240 | BJL5: 6. Diff Emissions - CO - Dir 34 [%]14241241 | BJM5: 7. Diff Network Emissions - CO [g]15242242 | BJN5: 7. Diff Network Emissions - CO [%]16243243 | BJO5: 1. Diff Emissions - NOx - Dir1 [g]3244244 | BJP5: 1. Diff Emissions - NOx - Dir1 [%]4245245 | BJQ5: 2. Diff Emissions - NOx - Dir2 [g]5246246 | BJR5: 2. Diff Emissions - NOx - Dir2 [%]6247247 | BJS5: 3. Diff Emissions - NOx - Dir 12 [g]7248248 | BJT5: 3. Diff Emissions - NOx - Dir 12 [%]8249249 | BJU5: 4. Diff Emissions - NOx - Dir3 [g]9250250 | BJV5: 4. Diff Emissions - NOx - Dir3 [%]10251251 | BJW5: 5. Diff Emissions - NOx - Dir4 [g]11252252 | BJX5: 5. Diff Emissions - NOx - Dir4 [%]12253253 | BJY5: 6. Diff Emissions - NOx - Dir 34 [g]13254254 | BJZ5: 6. Diff Emissions - NOx - Dir 34 [%]14255255 | BKA5: 7. Diff Network Emissions - NOx [g]15256256 | BKB5: 7. Diff Network Emissions - NOx [%]16257257 | BKC5: 1. Diff Total Network Emissions [g]3258258 | BKD5: 1. Diff Total Network Emissions [%]4259259 | BKE5: 1. Diff Pedestrian Delay [s]3260260 | BKF5: 1. Diff Pedestrian Delay [%]4261261 | BKG5: 1. Travel time Dir 1 [s]5222 | BKH5: 2. Travel time Dir 2 [s]6333 | BKI5: 3. Travel time Dir 12 [s]7444 | BKJ5: 4. Travel time Dir 3 [s]8555 | BKK5: 5. Travel time Dir 4 [s]9666 | BKL5: 6. Travel time Dir 34 [s]10777 | BKM5: 7. Network Tt [s]11888 | BKN5: 1. Delay Dir 1 [s/v]5999 | BKO5: 2. Delay Dir 2 [s/v]6101010 | BKP5: 3. Delay Dir 12 [s/v]7111111 | BKQ5: 4. Delay Dir 3 [s/v]8121212 | BKR5: 5. Delay Dir 4 [s/v]9131313 | BKS5: 6. Delay Dir 34 [s/v]10141414 | BKT5: 7. Network Delay [s/v]11151515 | BKU5: 1. Number of stops Dir 1 [#]5161616 | BKV5: 2. Number of stops Dir 2 [#]6171717 | BKW5: 3. Number of stops Dir 12 [#]7181818 | BKX5: 4. Number of stops Dir 3 [#]8191919 | BKY5: 5. Number of stops Dir 4 [#]9202020 | BKZ5: 6. Number of stops Dir 34 [#]10212121 | BLA5: 7. Network Number of stops [#]11222222 | BLB5: 1. Side Street Delay Dir 15232323 | BLC5: 2. Side Street Delay Dir 26242424 | BLD5: 3. Side Street Delay BothDir7252525 | BLE5: 1. Queue lengths Dir 15262626 | BLF5: 2. Queue lengths Dir 26272727 | BLG5: 3. Queue lenghts BothDir7282828 | BLH5: 1. Number of crashes - Property damage5292929 | BLI5: 1. Number of crashes - Injury6303030 | BLJ5: 1. Number of crashes - Total number7313131 | BLK5: 2. Number of Crossing Confilcts8323232 | BLL5: 2. Number of Rear-End Conflicts9333333 | BLM5: 2. Number of Lane-Changing Confilcts10343434 | BLN5: 3. Total number of conflicts11353535 | BLO5: 1. Fuel consumption Dir 1 [gal]5363636 | BLP5: 2. Fuel consumption Dir 2 [gal]6373737 | BLQ5: 3. Fuel consumption Dir12 [gal]7383838 | BLR5: 4. Fuel consumption Dir 3 [gal]8393939 | BLS5: 5. Fuel consumption Dir 4 [gal]9404040 | BLT5: 6. Fuel consumption Dir34 [gal]10414141 | BLU5: 7. Network Fuel consumption [gal]11424242 | BLV5: 1. Emissions - HC - Dir1 [g]5434343 | BLW5: 2. Emissions - HC - Dir2 [g]6444444 | BLX5: 3. Emissions - HC - Dir12 [g]7454545 | BLY5: 4. Emissions - HC - Dir3 [g]8464646 | BLZ5: 5. Emissions - HC - Dir4 [g]9474747 | BMA5: 6. Emissions - HC - Dir34 [g]10484848 | BMB5: 7. Network Emissions - HC - [g]11494949 | BMC5: 1. Emissions - CO - Dir1 [g]5505050 | BMD5: 2. Emissions - CO - Dir2 [g]6515151 | BME5: 3. Emissions - CO - Dir12 [g]7525252 | BMF5: 4. Emissions - CO - Dir3 [g]8535353 | BMG5: 5. Emissions - CO - Dir4 [g]9545454 | BMH5: 6. Emissions - CO - Dir34 [g]10555555 | BMI5: 7. Network Emissions - CO - [g]11565656 | BMJ5: 1. Emissions - NOx - Dir1 [g]5575757 | BMK5: 2. Emissions - NOx - Dir2 [g]6585858 | BML5: 3. Emissions - NOx - Dir12 [g]7595959 | BMM5: 4. Emissions - NOx - Dir3 [g]8606060 | BMN5: 5. Emissions - NOx - Dir4 [g]9616161 | BMO5: 6. Emissions - NOx - Dir34 [g]10626262 | BMP5: 7. Network Emissions - NOx - [g]11636363 | BMQ5: Transit travel time Dir 1 [s] | BMR5: Transit travel time Dir 2 [s] | BMS5: Transit travel time Dir 12 [s] | BMT5: 1. Pedestrian delay [s]5646464 | BMU5: 1. Travel time Dir 1 [s]6656565 | BMV5: 2. Travel time Dir 2 [s]7666666 | BMW5: 3. Travel time Dir 12 [s]8676767 | BMX5: 4. Travel time Dir 3 [s]9686868 | BMY5: 5. Travel time Dir 4 [s]10696969 | BMZ5: 6. Travel time Dir 34 [s]11707070 | BNA5: 7. Network Tt [s]12717171 | BNB5: 1. Delay Dir 1 [s/v]6727272 | BNC5: 2. Delay Dir 2 [s/v]7737373 | BND5: 3. Delay Dir 12 [s/v]8747474 | BNE5: 4. Delay Dir 3 [s/v]9757575 | BNF5: 5. Delay Dir 4 [s/v]10767676 | BNG5: 6. Delay Dir 34 [s/v]11777777 | BNH5: 7. Network Delay [s/v]12787878 | BNI5: 1. Number of stops Dir 1 [#]6797979 | BNJ5: 2. Number of stops Dir 2 [#]7808080 | BNK5: 3. Number of stops Dir 12 [#]8818181 | BNL5: 4. Number of stops Dir 3 [#]9828282 | BNM5: 5. Number of stops Dir 4 [#]10838383 | BNN5: 6. Number of stops Dir 34 [#]11848484 | BNO5: 7. Network Number of stops [#]12858585 | BNP5: 1. Side Street Delay Dir 16868686 | BNQ5: 2. Side Street Delay Dir 27878787 | BNR5: 3. Side Street Delay BothDir8888888 | BNS5: 1. Queue lengths Dir 16898989 | BNT5: 2. Queue lengths Dir 27909090 | BNU5: 3. Queue lenghts BothDir8919191 | BNV5: 1. Number of crashes - Property damage6929292 | BNW5: 1. Number of crashes - Injury7939393 | BNX5: 1. Number of crashes - Total number8949494 | BNY5: 2. Number of Crossing Confilcts9959595 | BNZ5: 2. Number of Rear-End Conflicts10969696 | BOA5: 2. Number of Lane-Changing Confilcts11979797 | BOB5: 3. Total number of conflicts12989898 | BOC5: 1. Fuel consumption Dir 1 [gal]6999999 | BOD5: 2. Fuel consumption Dir 2 [gal]7100100100 | BOE5: 3. Fuel consumption Dir12 [gal]8101101101 | BOF5: 4. Fuel consumption Dir 3 [gal]9102102102 | BOG5: 5. Fuel consumption Dir 4 [gal]10103103103 | BOH5: 6. Fuel consumption Dir34 [gal]11104104104 | BOI5: 7. Network Fuel consumption [gal]12105105105 | BOJ5: 1. Emissions - HC - Dir1 [g]6106106106 | BOK5: 2. Emissions - HC - Dir2 [g]7107107107 | BOL5: 3. Emissions - HC - Dir12 [g]8108108108 | BOM5: 4. Emissions - HC - Dir3 [g]9109109109 | BON5: 5. Emissions - HC - Dir4 [g]10110110110 | BOO5: 6. Emissions - HC - Dir34 [g]11111111111 | BOP5: 7. Network Emissions - HC - [g]12112112112 | BOQ5: 1. Emissions - CO - Dir1 [g]6113113113 | BOR5: 2. Emissions - CO - Dir2 [g]7114114114 | BOS5: 3. Emissions - CO - Dir12 [g]8115115115 | BOT5: 4. Emissions - CO - Dir3 [g]9116116116 | BOU5: 5. Emissions - CO - Dir4 [g]10117117117 | BOV5: 6. Emissions - CO - Dir34 [g]11118118118 | BOW5: 7. Network Emissions - CO - [g]12119119119 | BOX5: 1. Emissions - NOx - Dir1 [g]6120120120 | BOY5: 2. Emissions - NOx - Dir2 [g]7121121121 | BOZ5: 3. Emissions - NOx - Dir12 [g]8122122122 | BPA5: 4. Emissions - NOx - Dir3 [g]9123123123 | BPB5: 5. Emissions - NOx - Dir4 [g]10124124124 | BPC5: 6. Emissions - NOx - Dir34 [g]11125125125 | BPD5: 7. Network Emissions - NOx - [g]12126126126 | BPE5: Transit travel time Dir 1 [s]2 | BPF5: Transit travel time Dir 2 [s]3 | BPG5: Transit travel time Dir 12 [s]4 | BPH5: 1. Pedestrian delay [s]6127127127 | BPI5: 1. Diff Travel time Dir 1 [s]3128128128 | BPJ5: 1. Diff Travel time Dir 1 [%]4129129129 | BPK5: 2. Diff Travel time Dir 2 [s] 5130130130 | BPL5: 2. Diff Travel time Dir 2 [%] 6131131131 | BPM5: 3. Diff Travel time Dir 12 [s]7132132132 | BPN5: 3. Diff Travel time Dir 12 [%]8133133133 | BPO5: 4. Diff Travel time Dir 3 [s]9134134134 | BPP5: 4. Diff Travel time Dir 3 [%]10135135135 | BPQ5: 5. Diff Travel time Dir 4 [s] 11136136136 | BPR5: 5. Diff Travel time Dir 4 [%] 12137137137 | BPS5: 6. Diff Travel time 34 [s]13138138138 | BPT5: 6. Diff Travel time 34 [%]14139139139 | BPU5: 6.1 Difference Travel time 1234 [s]3140140140 | BPV5: 6.1 Difference Travel time 1234 [%]3141141141 | BPW5: 7. Diff Network Tt [s]15142142142 | BPX5: 7. Diff Network Tt [%]16143143143 | BPY5: 1. Diff Delay Dir 1 [s/v]3144144144 | BPZ5: 1. Diff Delay Dir 1 [%]4145145145 | BQA5: 2. Diff Delay Dir 2 [s/v]5146146146 | BQB5: 2. Diff Delay Dir 2 [%]6147147147 | BQC5: 3. Diff Delay Dir 12 [s/v]7148148148 | BQD5: 3. Diff Delay Dir 12 [%]8149149149 | BQE5: 4. Diff Delay Dir 3 [s/v]9150150150 | BQF5: 4. Diff Delay Dir 3 [%]10151151151 | BQG5: 5. Diff Delay Dir 4 [s/v]11152152152 | BQH5: 5. Diff Delay Dir 4 [%]12153153153 | BQI5: 6. Diff Delay Dir 34 [s/v]13154154154 | BQJ5: 6. Diff Delay Dir 34 [%]14155155155 | BQK5: 6.1 Difference Delay 1234 [s]3156156156 | BQL5: 6.1 Difference Delay 1234 [%]3157157157 | BQM5: 7. Diff Network delay [s/v]15158158158 | BQN5: 7. Diff Network delay [%]16159159159 | BQO5: 1. Diff Number of stops Dir 1 [#]3160160160 | BQP5: 1. Diff Number of Stops Dir 1 [%]4161161161 | BQQ5: 2. Diff Number of stops Dir 2 [#]5162162162 | BQR5: 2. Diff Number of stops Dir 2 [%]6163163163 | BQS5: 3. Diff Number of stops Dir 12 [#]7164164164 | BQT5: 3. Diff Number of stops Dir 12 [%]8165165165 | BQU5: 4. Diff Number of stops Dir 3 [#]9166166166 | BQV5: 4. Diff Number of stops Dir 3 [%]10167167167 | BQW5: 5. Diff Number of stops Dir 4 [#]11168168168 | BQX5: 5. Diff Number of stops Dir 4 [%]12169169169 | BQY5: 6. Diff Number of stops Dir 34 [#]13170170170 | BQZ5: 6. Diff Number of stops Dir 34 [%]14171171171 | BRA5: 6.1 Diff Number of stops Dir 1234 [#]4172172172 | BRB5: 6.1 Diff Number of stops Dir 1234 [%]2173173173 | BRC5: 7. Diff Network Numb of stops [#]15174174174 | BRD5: 7. Diff Network Numb of stops [%]16175175175 | BRE5: 1. Diff Side Street Delay Dir 1 [s]3176176176 | BRF5: 1. Diff Side Street Delay Dir 1 [%]4177177177 | BRG5: 2. Diff Side Street Delay Dir 2 [s]5178178178 | BRH5: 2. Diff Side Street Delay Dir 2 [%]6179179179 | BRI5: 3. Diff Side Street Delay 12 [s]7180180180 | BRJ5: 3. Diff Side Street Delay 12 [%]8181181181 | BRK5: 1. Diff Queue lengths Dir 1 [m]3182182182 | BRL5: 1. Diff Queue lengths Dir 1 [%]4183183183 | BRM5: 2. Diff Queue lengths Dir 2 [m]5184184184 | BRN5: 2. Diff Queue lengths Dir 2 [%]6185185185 | BRO5: 3. Diff Queue lenghts 12 [m]7186186186 | BRP5: 3. Diff Queue lenghts 12 [%]8187187187 | BRQ5: 1. Diff Number of crashes - Property damage [#]3188188188 | BRR5: 1. Diff Number of crashes - Property damage [%]4189189189 | BRS5: 1. Diff Number of crashes - Injury [#]5190190190 | BRT5: 1. Diff Number of crashes - Injury [%]6191191191 | BRU5: 1. Diff Number of crashes - Total number [#]7192192192 | BRV5: 1. Diff Number of crashes - Total number [%]8193193193 | BRW5: 2. Diff Number of Crossing Confilcts [#]9194194194 | BRX5: 2. Diff Number of Crossing Confilcts [%]10195195195 | BRY5: 2. Diff Number of Rear-End Conflicts [#]11196196196 | BRZ5: 2. Diff Number of Rear-End Conflicts [%]12197197197 | BSA5: 2. Diff Number of Lane-Changing Confilcts [#]13198198198 | BSB5: 2. Diff Number of Lane-Changing Confilcts [%]14199199199 | BSC5: 3. Diff Total number of conflicts [#]15200200200 | BSD5: 3. Diff Total number of conflicts [%]16201201201 | BSE5: 1. Diff Fuel consumption Dir 1 [gal]3202202202 | BSF5: 1. Diff Fuel consumption Dir 1 [%]4203203203 | BSG5: 2. Diff Fuel consumption Dir 2 [gal]5204204204 | BSH5: 2. Diff Fuel consumption Dir 2 [%]6205205205 | BSI5: 3. Diff Fuel consumption Dir 12 [gal]7206206206 | BSJ5: 3. Diff Fuel consumption Dir 12 [%]8207207207 | BSK5: 4. Diff Fuel consumption Dir 3 [gal]9208208208 | BSL5: 4. Diff Fuel consumption Dir 3 [%]10209209209 | BSM5: 5. Diff Fuel consumption Dir 4 [gal]11210210210 | BSN5: 5. Diff Fuel consumption Dir 4 [%]12211211211 | BSO5: 6. Diff Fuel consumption Dir 34 [gal]13212212212 | BSP5: 6. Diff Fuel consumption Dir 34 [%]14213213213 | BSQ5: 7. Diff Fuel consumption Network [gal]15214214214 | BSR5: 7. Diff Fuel consumption Network [%]16215215215 | BSS5: 1. Diff Emissions - HC - Dir1 [g]3216216216 | BST5: 1. Diff Emissions - HC - Dir1 [%]4217217217 | BSU5: 2. Diff Emissions - HC - Dir2 [g]5218218218 | BSV5: 2. Diff Emissions - HC - Dir2 [%]6219219219 | BSW5: 3. Diff Emissions - HC - Dir 12 [g]7220220220 | BSX5: 3. Diff Emissions - HC - Dir 12 [%]8221221221 | BSY5: 4. Diff Emissions - HC - Dir3 [g]9222222222 | BSZ5: 4. Diff Emissions - HC - Dir3 [%]10223223223 | BTA5: 5. Diff Emissions - HC - Dir4 [g]11224224224 | BTB5: 5. Diff Emissions - HC - Dir4 [%]12225225225 | BTC5: 6. Diff Emissions - HC - Dir 34 [g]13226226226 | BTD5: 6. Diff Emissions - HC - Dir 34 [%]14227227227 | BTE5: 7. Diff Network Emissions - HC [g]15228228228 | BTF5: 7. Diff Network Emissions - HC [%]16229229229 | BTG5: 1. Diff Emissions - CO - Dir1 [g]3230230230 | BTH5: 1. Diff Emissions - CO - Dir1 [%]4231231231 | BTI5: 2. Diff Emissions - CO - Dir2 [g]5232232232 | BTJ5: 2. Diff Emissions - CO - Dir2 [%]6233233233 | BTK5: 3. Diff Emissions - CO - Dir 12 [g]7234234234 | BTL5: 3. Diff Emissions - CO - Dir 12 [%]8235235235 | BTM5: 4. Diff Emissions - CO - Dir3 [g]9236236236 | BTN5: 4. Diff Emissions - CO - Dir3 [%]10237237237 | BTO5: 5. Diff Emissions - CO - Dir4 [g]11238238238 | BTP5: 5. Diff Emissions - CO - Dir4 [%]12239239239 | BTQ5: 6. Diff Emissions - CO - Dir 34 [g]13240240240 | BTR5: 6. Diff Emissions - CO - Dir 34 [%]14241241241 | BTS5: 7. Diff Network Emissions - CO [g]15242242242 | BTT5: 7. Diff Network Emissions - CO [%]16243243243 | BTU5: 1. Diff Emissions - NOx - Dir1 [g]3244244244 | BTV5: 1. Diff Emissions - NOx - Dir1 [%]4245245245 | BTW5: 2. Diff Emissions - NOx - Dir2 [g]5246246246 | BTX5: 2. Diff Emissions - NOx - Dir2 [%]6247247247 | BTY5: 3. Diff Emissions - NOx - Dir 12 [g]7248248248 | BTZ5: 3. Diff Emissions - NOx - Dir 12 [%]8249249249 | BUA5: 4. Diff Emissions - NOx - Dir3 [g]9250250250 | BUB5: 4. Diff Emissions - NOx - Dir3 [%]10251251251 | BUC5: 5. Diff Emissions - NOx - Dir4 [g]11252252252 | BUD5: 5. Diff Emissions - NOx - Dir4 [%]12253253253 | BUE5: 6. Diff Emissions - NOx - Dir 34 [g]13254254254 | BUF5: 6. Diff Emissions - NOx - Dir 34 [%]14255255255 | BUG5: 7. Diff Network Emissions - NOx [g]15256256256 | BUH5: 7. Diff Network Emissions - NOx [%]16257257257 | BUI5: 1. Diff Total Network Emissions [g]3258258258 | BUJ5: 1. Diff Total Network Emissions [%]4259259259 | BUK5: 1. Diff Transit travel time Dir 1 [s]31281281282 | BUL5: 1. Diff Transit travel time Dir 1 [%]41291291293 | BUM5: 2. Diff Transit travel time Dir 2 [s] 51301301304 | BUN5: 2. Diff Transit travel time Dir 2 [%] 61311311315 | BUO5: 3. Diff Transit travel time Dir 12 [s]71321321326 | BUP5: 3. Diff Transit travel time Dir 12 [%]81331331337 | BUQ5: 1. Diff Pedestrian Delay [s]3260260260 | BUR5: 1. Diff Pedestrian Delay [%]4261261261 | BUS5: 1. Diff Split Failure Dir 12 (#) | BUT5: 1. Diff Split Failure Dir 12 (%) | BUU5: 1. Diff Split Failure SideStreet (#) | BUV5: 1. Diff Split Failure SideStreet (%)
B6: 1 | C6: Maryland DOT State Highway Administration - Hanover | D6: Hanover | E6: MD | F6: 21076 | G6: United States | H6: State government | I6: State government | J6: State government | K6: State government | L6: State government | M6: >2,400 miles | N6: >2,400 miles | O6: >2,400 miles | P6: 17178 | Q6: >500 | R6: 3500 | S6: >500 | T6: >500 | U6: >300 | V6: >300 | W6: 1571 | X6: 6 | Y6: 2.5 | Z6: 4 | AA6: 26 | AB6: 20 | AC6: 20 | AD6: 20 | AE6: 0 | AF6: Yes | AH6: >$2,000,000 | AJ6: >$2,000,000 | AK6: >$2,000,000 | AM6: >$2,000,000 | AN6: 8 | AP6: 8 | AQ6: No | AR6: Difficult | AS6: each brand requires separate ATMS and matching controller brand | AT6: Individually (each system has its own platform for monitoring) | AV6: Centracs Adaptive | AW6: Centracs Adaptive | AX6: Centracs Adaptive | AY6: Centracs Adaptive | AZ6: Sole source | BA6: Sole source | BC6: 43405 | BD6: 43405 | BE6: 43405 | BF6: 43405 | BG6: 43550 | BH6: 43550 | BI6: 43550 | BJ6: 43550 | BK6: =DATEDIF(Table1[[#This Row],[4. When did the ATCS installation start ]],Table1[[#This Row],[5. By what time was the ATCS fully operational]],"m") -> 4 | BL6: Yes | BM6: 5 | BN6: Poor coordination between installation vendor and the agency | BQ6: 1 | BR6: Fully operational | CA6: Nobody else | CG6: 1 | CH6: Not specified | CK6: Not specified | CL6: Not specified | CN6: Not specified | CO6: Not specified | CP6: Not specified | CQ6: Not specified | CR6: Not specified | CS6: Suburban area | CT6: Suburban area | CU6: Suburban area | CV6: Not specified | CW6: Not specified | CX6: Not specified | CY6: 10-15 | CZ6: 10-15 | DA6: 10-15 | DB6: 12 | DC6: 12 | DD6: 3-6 | DE6: 3-6 | DF6: 3-6 | DG6: 4.7 | DH6: >55,000 | DI6: >55,000 | DK6: Improving conditions of traffic flow | DM6: N/A | DN6: N/A | DO6: N/A | DP6: N/A | DQ6: N/A | DR6: N/A | DS6: N/A | DT6: N/A | DU6: N/A | DV6: N/A | DW6: N/A | DX6: N/A | DY6: N/A | DZ6: N/A | EA6: N/A | EB6: N/A | EC6: N/A | ED6: N/A | EE6: N/A | EF6: Partially integrated | EG6: Not integrated | EH6: Not integrated | EI6: N/A | EJ6: Twisted pair | EQ6: 1 | ER6: Stop-line detectors | ET6: Upstream (mid-block) detectors | EX6: 1 | EY6: Inductive loops | EZ6: Video detection | FE6: 1 | FF6: TOD - Fully actuated | FG6: TOD - Fully actuated | FH6: TOD - Fully actuated | FI6: TOD - Fully actuated | FJ6: Coordinated | FK6: Coordinated | FL6: Coordinated | FN6: 06/29/2018 | FO6: > 12 months | FP6: > 12 months | FU6: Not specified | FV6: Not specified | GA6: not known yet, but low (in-house programming) | GD6: similar to prior conditions | GE6: Almost the same | GG6: Very understandable | GH6: Offsets | GI6: Splits | GL6: 1 | GM6: 5 - 10 | GN6: 5 - 10 | GO6: 0 | GQ6: 1. Not evaluated
B7: 2 | C7: Maryland DOT State Highway Administration - Hanover | D7: Hanover | E7: MD | I7: State government | J7: State government | K7: State government | L7: State government | N7: >2,400 miles | O7: >2,400 miles | S7: >500 | T7: >500 | V7: >300 | AJ7: >$2,000,000 | AM7: >$2,000,000 | AN7: 8 | AV7: Centracs Adaptive | AW7: Centracs Adaptive | AX7: Centracs Adaptive | AY7: Centracs Adaptive | AZ7: Sole source | BA7: Sole source | BC7: 43466 | BD7: 43466 | BE7: 43466 | BF7: 43466 | BG7: 43524 | BH7: 43524 | BI7: 43524 | BJ7: 43524 | BK7: =DATEDIF(Table1[[#This Row],[4. When did the ATCS installation start ]],Table1[[#This Row],[5. By what time was the ATCS fully operational]],"m") -> 1 | BL7: No | BR7: Fully operational | CA7: Nobody else | CG7: 1 | CH7: Not specified | CK7: Not specified | CL7: Not specified | CN7: Not specified | CO7: Not specified | CP7: Not specified | CQ7: Not specified | CR7: Not specified | CS7: Urban area | CT7: Urban area | CU7: Urban area | CV7: Not specified | CW7: Not specified | CX7: Not specified | CY7: ≤5 | CZ7: ≤5 | DA7: ≤5 | DB7: 5 | DC7: 5 | DD7: ≤3 | DE7: ≤3 | DF7: ≤3 | DG7: 0.7 | DH7: 45,000-55,000 | DI7: 45,000-55,000 | DK7: Improving conditions of traffic flow | DM7: N/A | DN7: N/A | DO7: N/A | DP7: N/A | DQ7: N/A | DR7: N/A | DS7: N/A | DT7: N/A | DU7: N/A | DV7: N/A | DW7: N/A | DX7: N/A | DY7: N/A | DZ7: N/A | EA7: N/A | EB7: N/A | EC7: N/A | ED7: N/A | EE7: N/A | EF7: Partially integrated | EG7: Not integrated | EH7: Not integrated | EI7: N/A | EJ7: Twisted pair | EQ7: 1 | ER7: Stop-line detectors | ET7: Upstream (mid-block) detectors | EX7: 1 | EY7: Inductive loops | EZ7: Video detection | FE7: 1 | FF7: TOD - Fully actuated | FG7: TOD - Fully actuated | FH7: TOD - Fully actuated | FI7: TOD - Fully actuated | FJ7: Coordinated | FK7: Coordinated | FL7: Coordinated | FN7: 02/15/2019 | FO7: > 12 months | FP7: > 12 months | FU7: Not specified | FV7: Not specified | FX7: 17100 | FY7: 8300 | FZ7: =Table1[[#This Row],[2. What was the cost of installation of ATCS software (licensing and similar)? ]]/Table1[[#This Row],[8.1. Number of signals operating under ATCS '[exact']]] -> 1660 | GD7: similar to prior conditions | GE7: Almost the same | GG7: Very understandable | GH7: Offsets | GI7: Splits | GL7: 1 | GM7: 5 - 10 | GN7: 5 - 10 | GO7: 0 | GQ7: 2. Not evaluated
B8: 3 | C8: Maryland DOT State Highway Administration - Hanover | D8: Hanover | E8: MD | I8: State government | J8: State government | K8: State government | L8: State government | N8: >2,400 miles | O8: >2,400 miles | S8: >500 | T8: >500 | V8: >300 | AJ8: >$2,000,000 | AM8: >$2,000,000 | AN8: 8 | AV8: Centracs Adaptive | AW8: Centracs Adaptive | AX8: Centracs Adaptive | AY8: Centracs Adaptive | AZ8: Sole source | BA8: Sole source | BC8: 42917 | BD8: 42917 | BE8: 42917 | BF8: 42917 | BG8: 42998 | BH8: 42998 | BI8: 42998 | BJ8: 42998 | BK8: =DATEDIF(Table1[[#This Row],[4. When did the ATCS installation start ]],Table1[[#This Row],[5. By what time was the ATCS fully operational]],"m") -> 2 | BL8: Yes | BM8: 18 | BN8: Poor coordination between installation vendor and the agency | BO8: Technical problems (e.g., detection, communications, equipment) | BQ8: 1 | BR8: Partially operational (i.e., system is used with a limited scope or together with TOD plans) | CA8: Nobody else | CG8: 1 | CH8: Not specified | CK8: Not specified | CL8: Not specified | CN8: Not specified | CO8: Not specified | CP8: Not specified | CQ8: Not specified | CR8: Not specified | CS8: Suburban area | CT8: Suburban area | CU8: Suburban area | CV8: Not specified | CW8: Not specified | CX8: Not specified | CY8: 5-10 | CZ8: 5-10 | DA8: 5-10 | DB8: 6 | DC8: 6 | DD8: ≤3 | DE8: ≤3 | DF8: ≤3 | DG8: 2.8 | DH8: >55,000 | DI8: >55,000 | DK8: Improving conditions of traffic flow | EA8: N/A | EB8: N/A | EC8: N/A | ED8: N/A | EE8: N/A | EF8: Partially integrated | EG8: Not integrated | EH8: Not integrated | EI8: N/A | EJ8: Twisted pair | EQ8: 1 | ER8: Stop-line detectors | ET8: Upstream (mid-block) detectors | EX8: 1 | EY8: Inductive loops | EZ8: Video detection | FE8: 1 | FF8: TOD - Fully actuated | FG8: TOD - Fully actuated | FH8: TOD - Fully actuated | FI8: TOD - Fully actuated | FJ8: Coordinated | FK8: Coordinated | FL8: Coordinated | FN8: 05/18/2016 | FO8: > 12 months | FP8: > 12 months | FU8: Not specified | FV8: Not specified | FX8: 19000 | FY8: 44600 | FZ8: =Table1[[#This Row],[2. What was the cost of installation of ATCS software (licensing and similar)? ]]/Table1[[#This Row],[8.1. Number of signals operating under ATCS '[exact']]] -> 7433.333333 | GD8: similar to prior conditions | GE8: Almost the same | GG8: Very understandable | GH8: Offsets | GI8: Splits | GL8: 1 | GM8: 5 - 10 | GN8: 5 - 10 | GO8: 0 | GQ8: 3. Not evaluated
B9: 4 | C9: Maryland DOT State Highway Administration - Hanover | D9: Hanover | E9: MD | I9: State government | J9: State government | K9: State government | L9: State government | N9: >2,400 miles | O9: >2,400 miles | S9: >500 | T9: >500 | V9: >300 | AJ9: >$2,000,000 | AM9: >$2,000,000 | AN9: 8 | AV9: Centracs Adaptive | AW9: Centracs Adaptive | AX9: Centracs Adaptive | AY9: Centracs Adaptive | AZ9: Sole source | BA9: Sole source | BC9: 43102 | BD9: 43102 | BE9: 43102 | BF9: 43102 | BG9: 43192 | BH9: 43192 | BI9: 43192 | BJ9: 43192 | BK9: =DATEDIF(Table1[[#This Row],[4. When did the ATCS installation start ]],Table1[[#This Row],[5. By what time was the ATCS fully operational]],"m") -> 3 | BL9: No | BR9: Fully operational | CA9: Nobody else | CG9: 1 | CH9: Not specified | CK9: Not specified | CL9: Not specified | CN9: Not specified | CO9: Not specified | CP9: Not specified | CQ9: Not specified | CR9: Not specified | CS9: Suburban area | CT9: Suburban area | CU9: Suburban area | CV9: Single corridor | CW9: Single corridor | CX9: Single corridor | CY9: 10-15 | CZ9: 10-15 | DA9: 10-15 | DB9: 11 | DC9: 11 | DD9: ≤3 | DE9: ≤3 | DF9: ≤3 | DG9: 2.7 | DH9: 45,000-55,000 | DI9: 45,000-55,000 | DK9: Improving conditions of traffic flow | DM9: Agree | DN9: Neutral | DO9: Agree | DP9: N/A | DQ9: N/A | DR9: N/A | DS9: N/A | DT9: N/A | DU9: N/A | DV9: N/A | DW9: N/A | DX9: N/A | DY9: N/A | DZ9: N/A | EA9: N/A | EB9: N/A | EC9: N/A | ED9: N/A | EE9: N/A | EF9: Partially integrated | EG9: Not integrated | EH9: Not integrated | EI9: N/A | EJ9: Twisted pair | EQ9: 1 | ER9: Stop-line detectors | ET9: Upstream (mid-block) detectors | EX9: 1 | EY9: Inductive loops | EZ9: Video detection | FE9: 1 | FF9: TOD - Fully actuated | FG9: TOD - Fully actuated | FH9: TOD - Fully actuated | FI9: TOD - Fully actuated | FJ9: Coordinated | FK9: Coordinated | FL9: Coordinated | FN9: 12/20/2017 | FO9: > 12 months | FP9: > 12 months | FU9: =DATEDIF(Table1[[#This Row],[3. When was the last time that the signals under the ATCS were retimed before the ATCS was deployed?]],Table1[[#This Row],[7. When did the evaluation start (year/month)?]],"m") -> 5 | FV9: < 6 months | FX9: 15300 | FY9: 6993 | FZ9: =Table1[[#This Row],[2. What was the cost of installation of ATCS software (licensing and similar)? ]]/Table1[[#This Row],[8.1. Number of signals operating under ATCS '[exact']]] -> 635.7272727 | GD9: similar to prior conditions | GE9: Almost the same | GG9: Very understandable | GH9: Offsets | GI9: Splits | GL9: 1 | GM9: 5 - 10 | GN9: 5 - 10 | GO9: 1 | GP9: Yes | GQ9: 4. Not provided | GR9: Centracs Adaptive | GS9: Centracs Adaptive | GT9: Centracs Adaptive | GV9: Not specified | GX9: Deploying agency (In-house) | GY9: Deploying agency (In-house) | GZ9: Consulting firm | HA9: Consulting firm | HB9: Consulting firm | HD9: JMT | HE9: JMT | HF9: 43258 | HG9: 43258 | HH9: 43271 | HI9: 43271 | HK9: =DATEDIF(Table1[[#This Row],[7. When did the evaluation start (year/month)?]],Table1[[#This Row],[8. By what time was the evaluation completed (year/month)?]],"m") -> 0 | HL9: ≤ 1 month | HM9: Field evaluation | HN9: Field evaluation | HO9: Field evaluation | HP9: On-off | HQ9: On-off | HR9: On-off | IL9: Bluetooth sensors | KE9: 0 | KF9: 0 | KG9: 1 | KH9: 0 | KI9: 0 | KJ9: 0 | KK9: 1 | KL9: Yes | KX9: Other | KY9: Bluetooth readers | KZ9: 1 | LA9: Regular weekday | QT9: 17 | RB9: 17 | ABD9: -1.4 | ABL9: -1.4 | ALN9: -17.6 | ALV9: -17.6
B10: 5 | C10: Maryland DOT State Highway Administration - Hanover | D10: Hanover | E10: MD | I10: State government | J10: State government | K10: State government | L10: State government | N10: >2,400 miles | O10: >2,400 miles | S10: >500 | T10: >500 | V10: >300 | AJ10: >$2,000,000 | AM10: >$2,000,000 | AN10: 8 | AV10: Centracs Adaptive | AW10: Centracs Adaptive | AX10: Centracs Adaptive | AY10: Centracs Adaptive | AZ10: Sole source | BA10: Sole source | BC10: 42887 | BD10: 42887 | BE10: 42887 | BF10: 42887 | BG10: 42948 | BH10: 42948 | BI10: 42948 | BJ10: 42948 | BK10: =DATEDIF(Table1[[#This Row],[4. When did the ATCS installation start ]],Table1[[#This Row],[5. By what time was the ATCS fully operational]],"m") -> 2 | BL10: No | BR10: Fully operational | CA10: Nobody else | CG10: 1 | CH10: Towson, MD | CK10: 58766 | CL10: 50,000-100,000 | CM10: 2017 | CN10: Yes | CO10: Baltimore | CP10: 2798886 | CQ10: 2,000,000-5,000,000 | CR10: Not specified | CS10: Suburban area | CT10: Suburban area | CU10: Suburban area | CV10: Mixed (or Other) | CW10: Mixed (or Other) | CX10: Mixed (or Other) | CY10: ≤5 | CZ10: ≤5 | DA10: ≤5 | DB10: 3 | DC10: 3 | DD10: ≤3 | DE10: ≤3 | DF10: ≤3 | DG10: 0.3 | DH10: 45,000-55,000 | DI10: 45,000-55,000 | DK10: Improving conditions of traffic flow | DM10: Agree | DN10: Disagree | DO10: Agree | DP10: N/A | DQ10: N/A | DR10: N/A | DS10: N/A | DT10: N/A | DU10: N/A | DV10: N/A | DW10: N/A | DX10: N/A | DY10: N/A | DZ10: N/A | EA10: N/A | EB10: N/A | EC10: N/A | ED10: N/A | EE10: N/A | EF10: Partially integrated | EG10: Not integrated | EH10: Not integrated | EI10: N/A | EJ10: Twisted pair | EQ10: 1 | ER10: Stop-line detectors | ET10: Upstream (mid-block) detectors | EX10: 1 | EY10: Inductive loops | EZ10: Video detection | FE10: 1 | FF10: TOD - Fully actuated | FG10: TOD - Fully actuated | FH10: TOD - Fully actuated | FI10: TOD - Fully actuated | FJ10: Coordinated | FK10: Coordinated | FL10: Coordinated | FN10: 42907 | FO10: > 12 months | FP10: > 12 months | FU10: =DATEDIF(Table1[[#This Row],[3. When was the last time that the signals under the ATCS were retimed before the ATCS was deployed?]],Table1[[#This Row],[7. When did the evaluation start (year/month)?]],"m") -> 5 | FV10: < 6 months | FX10: 31900 | FY10: 3052 | FZ10: =Table1[[#This Row],[2. What was the cost of installation of ATCS software (licensing and similar)? ]]/Table1[[#This Row],[8.1. Number of signals operating under ATCS '[exact']]] -> 1017.333333 | GA10: (installation done by in-house staff) | GD10: similar to prior conditions | GE10: Almost the same | GG10: Very understandable | GH10: Offsets | GI10: Splits | GL10: 1 | GM10: 5 - 10 | GN10: 5 - 10 | GO10: 1 | GP10: Yes | GQ10: 5. In house evaluation | GR10: Centracs Adaptive | GS10: Centracs Adaptive | GT10: Centracs Adaptive | GV10: Not specified | GX10: Deploying agency (In-house) | GY10: Deploying agency (In-house) | GZ10: Deploying agency (In-house) | HA10: Deploying agency (In-house) | HB10: Deploying agency (In-house) | HD10: Maryland DOT | HE10: Maryland DOT | HF10: 43067 | HG10: 43067 | HH10: 43074 | HI10: 43074 | HK10: =DATEDIF(Table1[[#This Row],[7. When did the evaluation start (year/month)?]],Table1[[#This Row],[8. By what time was the evaluation completed (year/month)?]],"m") -> 0 | HL10: ≤ 1 month | HM10: Field evaluation | HN10: Field evaluation | HO10: Field evaluation | HP10: On-off | HQ10: On-off | HR10: On-off | IE10: 'Floating' car data | IQ10: 'Floating' car data | IW10: Video cameras | KE10: 0 | KF10: 0 | KG10: 1 | KH10: 0 | KI10: 0 | KJ10: 0 | KK10: 1 | KL10: Yes | KN10: PC Travel | KS10: 1 | KU10: Laptop with GPS device (or similar, e.g. tablet) | KX10: Other | KY10: Video turning movement volume counts | KZ10: 1 | LA10: Regular weekday | RD10: -5.5 | ABN10: -5.8 | ALX10: -2.5
B11: 6 | C11: Maryland DOT State Highway Administration - Hanover | D11: Hanover | E11: MD | I11: State government | J11: State government | K11: State government | L11: State government | N11: >2,400 miles | O11: >2,400 miles | S11: >500 | T11: >500 | V11: >300 | AJ11: >$2,000,000 | AM11: >$2,000,000 | AN11: 8 | AV11: SynchroGreen | AW11: SynchroGreen | AX11: SynchroGreen | AY11: SynchroGreen | AZ11: Other | BA11: Other | BB11: Experimental | BC11: 42737 | BD11: 42737 | BE11: 42737 | BF11: 42737 | BG11: 42809 | BH11: 42809 | BI11: 42809 | BJ11: 42809 | BK11: =DATEDIF(Table1[[#This Row],[4. When did the ATCS installation start ]],Table1[[#This Row],[5. By what time was the ATCS fully operational]],"m") -> 2 | BL11: No | BR11: Fully operational | CE11: Other | CF11: Vendor implementation | CG11: 1 | CH11: Brooklyn Park, MD | CK11: 14373 | CL11: <50,000 | CM11: 2017 | CN11: Yes | CO11: Baltimore | CP11: 2798886 | CQ11: 2,000,000-5,000,000 | CR11: Not specified | CS11: Urban area | CT11: Urban area | CU11: Urban area | CV11: Single corridor | CW11: Single corridor | CX11: Single corridor | CY11: ≤5 | CZ11: ≤5 | DA11: ≤5 | DB11: 4 | DC11: 4 | DD11: ≤3 | DE11: ≤3 | DF11: ≤3 | DG11: 0.6 | DH11: 35,000-45,000 | DI11: 35,000-45,000 | DK11: Improving conditions of traffic flow | DM11: Strongly Agree | DN11: Agree | DO11: Strongly Agree | DP11: Agree | DQ11: Agree | DR11: N/A | DS11: N/A | DT11: N/A | DU11: N/A | DV11: N/A | DW11: N/A | DX11: N/A | DY11: N/A | DZ11: N/A | EA11: N/A | EB11: N/A | EC11: N/A | ED11: N/A | EE11: N/A | EF11: Partially integrated | EG11: Not integrated | EH11: Not integrated | EJ11: Twisted pair | EQ11: 1 | ER11: Stop-line detectors | ET11: Upstream (mid-block) detectors | EX11: 1 | EY11: Inductive loops | EZ11: Video detection | FE11: 1 | FF11: TOD - Fully actuated | FG11: TOD - Fully actuated | FH11: TOD - Fully actuated | FI11: TOD - Fully actuated | FJ11: Coordinated | FK11: Coordinated | FL11: Coordinated | FN11: 12/16/2014 | FO11: > 12 months | FP11: > 12 months | FU11: =DATEDIF(Table1[[#This Row],[3. When was the last time that the signals under the ATCS were retimed before the ATCS was deployed?]],Table1[[#This Row],[7. When did the evaluation start (year/month)?]],"m") -> 30 | FV11: 24 - 36 months | FX11: 283000 | FY11: 224000 | FZ11: =Table1[[#This Row],[2. What was the cost of installation of ATCS software (licensing and similar)? ]]/Table1[[#This Row],[8.1. Number of signals operating under ATCS '[exact']]] -> 56000 | GD11: similar to prior conditions | GE11: Almost the same | GG11: Understandable | GH11: Offsets | GI11: Splits | GJ11: Cycle length | GK11: Phase sequence | GL11: 1 | GM11: 5 - 10 | GN11: 5 - 10 | GO11: 1 | GP11: Yes | GQ11: 6. In house evaluation | GR11: SynchroGreen | GS11: SynchroGreen | GT11: SynchroGreen | GV11: Not specified | GX11: Deploying agency (In-house) | GY11: Deploying agency (In-house) | GZ11: Deploying agency (In-house) | HA11: Deploying agency (In-house) | HB11: Deploying agency (In-house) | HD11: Maryland DOT | HE11: Maryland DOT | HF11: 42913 | HG11: 42913 | HH11: 42936 | HI11: 42936 | HK11: =DATEDIF(Table1[[#This Row],[7. When did the evaluation start (year/month)?]],Table1[[#This Row],[8. By what time was the evaluation completed (year/month)?]],"m") -> 0 | HL11: ≤ 1 month | HM11: Field evaluation | HN11: Field evaluation | HO11: Field evaluation | HP11: On-off | HQ11: On-off | HR11: On-off | IE11: 'Floating' car data | IQ11: 'Floating' car data | IZ11: Manual counts | KE11: 0 | KF11: 0 | KG11: 1 | KH11: 0 | KI11: 0 | KJ11: 0 | KK11: 1 | KL11: Yes | KN11: PC Travel | KS11: 1 | KU11: Laptop with GPS device (or similar, e.g. tablet) | KX11: Other | KY11: Video turning movement volume counts | KZ11: 1 | LA11: Regular weekday | QT11: 2.5 | RB11: 2.5 | RZ11: 6 | ABD11: -12.3 | ABL11: -12.3 | ACI11: -2.5 | ALN11: -12.4 | ALV11: -12.4 | AMS11: 3.5
B12: 7 | C12: Maryland DOT State Highway Administration - Hanover | D12: Hanover | E12: MD | I12: State government | J12: State government | K12: State government | L12: State government | N12: >2,400 miles | O12: >2,400 miles | S12: >500 | T12: >500 | V12: >300 | AJ12: >$2,000,000 | AM12: >$2,000,000 | AN12: 8 | AV12: Centracs Adaptive | AW12: Centracs Adaptive | AX12: Centracs Adaptive | AY12: Centracs Adaptive | AZ12: Sole source | BA12: Sole source | BC12: 42430 | BD12: 42430 | BE12: 42430 | BF12: 42430 | BG12: 42492 | BH12: 42492 | BI12: 42492 | BJ12: 42492 | BK12: =DATEDIF(Table1[[#This Row],[4. When did the ATCS installation start ]],Table1[[#This Row],[5. By what time was the ATCS fully operational]],"m") -> 2 | BL12: No | BR12: Fully operational | CE12: Other | CF12: Vendor implementation | CG12: 1 | CH12: Bel Air, MD | CK12: 10037 | CL12: <50,000 | CM12: 2016 | CN12: Yes | CO12: Baltimore | CP12: 2798886 | CQ12: 2,000,000-5,000,000 | CR12: Not specified | CS12: Suburban area | CT12: Suburban area | CU12: Suburban area | CV12: Two intersecting corridors | CW12: Two intersecting corridors | CX12: Two intersecting corridors | CY12: 10-15 | CZ12: 10-15 | DA12: 10-15 | DB12: 14 | DC12: 14 | DD12: 3-6 | DE12: 3-6 | DF12: 3-6 | DG12: 4.5 | DH12: 35,000-45,000 | DI12: 35,000-45,000 | DK12: Improving conditions of traffic flow | DO12: Strongly Agree | EA12: N/A | EB12: N/A | EC12: N/A | ED12: N/A | EE12: N/A | EF12: Partially integrated | EG12: Not integrated | EH12: Not integrated | EJ12: Twisted pair | EQ12: 1 | ER12: Stop-line detectors | ET12: Upstream (mid-block) detectors | EX12: 1 | EY12: Inductive loops | EZ12: Video detection | FE12: 1 | FF12: TOD - Fully actuated | FG12: TOD - Fully actuated | FH12: TOD - Fully actuated | FI12: TOD - Fully actuated | FJ12: Coordinated | FK12: Coordinated | FL12: Coordinated | FN12: 02/29/2016 | FO12: > 12 months | FP12: > 12 months | FU12: =DATEDIF(Table1[[#This Row],[3. When was the last time that the signals under the ATCS were retimed before the ATCS was deployed?]],Table1[[#This Row],[7. When did the evaluation start (year/month)?]],"m") -> 6 | FV12: 6 - 12 months | FX12: 39200 | FY12: 101000 | FZ12: =Table1[[#This Row],[2. What was the cost of installation of ATCS software (licensing and similar)? ]]/Table1[[#This Row],[8.1. Number of signals operating under ATCS '[exact']]] -> 7214.285714 | GA12: (vendor installation included) | GD12: similar to prior conditions | GE12: Almost the same | GG12: Understandable | GH12: Offsets | GI12: Splits | GL12: 1 | GM12: 5 - 10 | GN12: 5 - 10 | GO12: 1 | GP12: Yes | GQ12: 7. Not provided | GR12: Centracs Adaptive | GS12: Centracs Adaptive | GT12: Centracs Adaptive | GV12: Not specified | GX12: Deploying agency (In-house) | GY12: Deploying agency (In-house) | GZ12: Consulting firm | HA12: Consulting firm | HB12: Consulting firm | HD12: JMT | HE12: JMT | HF12: 42625 | HG12: 42625 | HH12: 42639 | HI12: 42639 | HK12: =DATEDIF(Table1[[#This Row],[7. When did the evaluation start (year/month)?]],Table1[[#This Row],[8. By what time was the evaluation completed (year/month)?]],"m") -> 0 | HL12: ≤ 1 month | HM12: Field evaluation | HN12: Field evaluation | HO12: Field evaluation | HP12: On-off | HQ12: On-off | HR12: On-off | IL12: Bluetooth sensors | JC12: N/A | JO12: N/A | JS12: N/A | JW12: N/A | JZ12: N/A | KA12: N/A | KE12: 0 | KF12: 0 | KG12: 0 | KH12: 0 | KI12: 0 | KJ12: 0 | KK12: 1 | KL12: Yes | KX12: Other | KY12: Bluetooth readers | KZ12: 1 | LA12: Regular weekday | PZ12: -8.2 | QB12: 4.3 | AAJ12: -12.2 | AAL12: 1.8 | AKT12: -8.1 | AKV12: 5.3
B13: 8 | C13: Maryland DOT State Highway Administration - Hanover | D13: Hanover | E13: MD | I13: State government | J13: State government | K13: State government | L13: State government | N13: >2,400 miles | O13: >2,400 miles | S13: >500 | T13: >500 | V13: >300 | AJ13: >$2,000,000 | AM13: >$2,000,000 | AN13: 8 | AV13: Centracs Adaptive | AW13: Centracs Adaptive | AX13: Centracs Adaptive | AY13: Centracs Adaptive | AZ13: Other | BA13: Other | BB13: Experimental | BC13: 42219 | BD13: 42219 | BE13: 42219 | BF13: 42219 | BG13: 42278 | BH13: 42278 | BI13: 42278 | BJ13: 42278 | BK13: =DATEDIF(Table1[[#This Row],[4. When did the ATCS installation start ]],Table1[[#This Row],[5. By what time was the ATCS fully operational]],"m") -> 1 | BL13: No | BR13: Partially operational (i.e., system is used with a limited scope or together with TOD plans) | CA13: Nobody else | CG13: 1 | CH13: Elkridge - Jessup, MD | CK13: 7137 | CL13: <50,000 | CM13: 2015 | CN13: Yes | CO13: Baltimore | CP13: 2798886 | CQ13: 2,000,000-5,000,000 | CR13: Not specified | CS13: Suburban area | CT13: Suburban area | CU13: Suburban area | CV13: Two intersecting corridors | CW13: Two intersecting corridors | CX13: Two intersecting corridors | CY13: 15-20 | CZ13: 15-20 | DA13: 15-20 | DB13: 16 | DC13: 16 | DD13: 3-6 | DE13: 3-6 | DF13: 3-6 | DG13: 5.5 | DH13: 45,000-55,000 | DI13: 45,000-55,000 | DK13: Improving conditions of traffic flow | DM13: Agree | DN13: Disagree | DO13: Agree | DP13: N/A | DQ13: N/A | DR13: N/A | DS13: N/A | DT13: N/A | DU13: N/A | DV13: N/A | DW13: N/A | DX13: N/A | DY13: N/A | DZ13: N/A | EA13: N/A | EB13: N/A | EC13: N/A | ED13: N/A | EE13: N/A | EF13: Partially integrated | EG13: Not integrated | EH13: Not integrated | EJ13: Twisted pair | EQ13: 1 | ER13: Stop-line detectors | ET13: Upstream (mid-block) detectors | EX13: 1 | EY13: Inductive loops | EZ13: Video detection | FE13: 1 | FF13: TOD - Fully actuated | FG13: TOD - Fully actuated | FH13: TOD - Fully actuated | FI13: TOD - Fully actuated | FJ13: Coordinated | FK13: Coordinated | FL13: Coordinated | FN13: 06/01/2015 | FO13: > 12 months | FP13: > 12 months | FU13: =DATEDIF(Table1[[#This Row],[3. When was the last time that the signals under the ATCS were retimed before the ATCS was deployed?]],Table1[[#This Row],[7. When did the evaluation start (year/month)?]],"m") -> 5 | FV13: < 6 months | FX13: 32000 | FY13: 38500 | FZ13: =Table1[[#This Row],[2. What was the cost of installation of ATCS software (licensing and similar)? ]]/Table1[[#This Row],[8.1. Number of signals operating under ATCS '[exact']]] -> 2406.25 | GD13: similar to previous conditions | GE13: Almost the same | GG13: Understandable | GH13: Offsets | GI13: Splits | GL13: 1 | GM13: 5 - 10 | GN13: 5 - 10 | GO13: 1 | GP13: Yes | GQ13: 8. Not provided | GR13: Centracs Adaptive | GS13: Centracs Adaptive | GT13: Centracs Adaptive | GV13: Not specified | GX13: Deploying agency (In-house) | GY13: Deploying agency (In-house) | GZ13: Consulting firm | HA13: Consulting firm | HB13: Consulting firm | HD13: RK&K | HE13: RK&K | HF13: 42311 | HG13: 42311 | HH13: 42325 | HI13: 42325 | HK13: =DATEDIF(Table1[[#This Row],[7. When did the evaluation start (year/month)?]],Table1[[#This Row],[8. By what time was the evaluation completed (year/month)?]],"m") -> 0 | HL13: ≤ 1 month | HM13: Field evaluation | HN13: Field evaluation | HO13: Field evaluation | HP13: On-off | HQ13: On-off | HR13: On-off | IL13: Bluetooth sensors | JC13: N/A | JO13: N/A | JS13: N/A | JW13: N/A | JZ13: N/A | KA13: N/A | KE13: 0 | KF13: 1 | KG13: 0 | KH13: 0 | KI13: 0 | KJ13: 0 | KK13: 1 | KL13: Yes | KX13: Other | KY13: Bluetooth readers | KZ13: 1 | LA13: Regular weekday | QN13: -4 | AAX13: -8 | ALH13: -4
B14: 9 | C14: Missouri Department of Transportation - Jefferson City | D14: Jefferson City | E14: MO | F14: 65102 | G14: United States | H14: State government | I14: State government | J14: State government | K14: State government | L14: State government | M14: >2,400 miles | N14: >2,400 miles | O14: >2,400 miles | P14: 33859 | Q14: >500 | R14: 2616 | S14: >500 | T14: >500 | U14: >300 | V14: >300 | W14: 1190 | X14: 13 | Y14: 36 | Z14: 41 | AA14: 18 | AB14: 6 | AC14: 6 | AD14: 6 | AE14: 0 | AF14: No | AG14: Several more people to devote specific time to these to make them run efficently. | AH14: >$2,000,000 | AI14: 4954000 | AJ14: >$2,000,000 | AK14: >$2,000,000 | AL14: 8340000 | AM14: >$2,000,000 | AN14: 10 | AP14: 10 | AQ14: No | AR14: Difficult | AS14: It is difficult keeping up with how multiple brands run and having time to make the system work efficiently. | AT14: Individually (each system has its own platform for monitoring) | AU14: each ATCS brand has their own central system that controls multiple adaptive field systems | AV14: InSync | AW14: InSync | AX14: InSync | AY14: InSync | AZ14: Other | BA14: Other | BB14: Some sole source and others competitive bid. | BC14: 40343 | BD14: 40343 | BE14: 40343 | BF14: 40343 | BG14: 40542 | BH14: 40542 | BI14: 40542 | BJ14: 40542 | BK14: =DATEDIF(Table1[[#This Row],[4. When did the ATCS installation start ]],Table1[[#This Row],[5. By what time was the ATCS fully operational]],"m") -> 6 | BL14: No | BR14: Partially decommissioned (technology still there but not used; can be easily switched ON in future) | BT14: Lack of required expertise and other institutional challenges | BV14: System not compatible with agency’s expectations and practice (e.g. too many complaint calls) | BW14: No operational benefits achieved | BX14: Other | BY14: quality of product, maintenance of system troublesome | BZ14: 1 | CB14: Other DOT/County/City authority | CG14: 1 | CH14: St. Charles City, MO | CI14: St. Charles County/City, Florissant, Columbia, Cape Girardeque, Republic, Joplin (all in Missouri) | CK14: 66300 | CL14: Not specified | CM14: 2010 | CN14: Yes | CO14: Greater St. Louis | CP14: 2807338 | CQ14: 2,000,000-5,000,000 | CR14: Not specified | CS14: Urban area | CT14: Urban area | CU14: Urban area | CV14: Not specified | CW14: Not specified | CX14: Not specified | CY14: >30 | CZ14: >30 | DA14: >30 | DB14: 31 | DC14: 31 | DD14: >15 | DE14: >15 | DF14: >15 | DG14: 27.22 | DH14: 35,000-45,000 | DI14: 35,000-45,000 | DK14: Improving conditions of traffic flow | DM14: Agree | DN14: Agree | DO14: Agree | DP14: Neutral | DQ14: Neutral | DR14: Agree | DS14: Neutral | DT14: Agree | DU14: Neutral | DV14: Neutral | DW14: Neutral | DX14: Disagree | DY14: Disagree | DZ14: Disagree | EA14: N/A | EB14: N/A | EC14: Fully utilized | ED14: Fully utilized | EF14: Partially integrated | EG14: Not integrated | EH14: N/A | EI14: 4 | EM14: Fiber optic | EO14: Wireless (application protocol or broadband systems) | EQ14: 1 | ER14: Stop-line detectors | ES14: Near-stop-line (upstream from stop line from 32ft to 200ft) | ET14: Upstream (mid-block) detectors | EU14: Upstream (far-side) detectors (located at the exit point of the upstream intersection) | EX14: 1 | EY14: Inductive loops | EZ14: Video detection | FB14: In-pavement detector pucks | FE14: 1 | FF14: TOD - Fully actuated | FG14: TOD - Fully actuated | FH14: TOD - Fully actuated | FI14: TOD - Fully actuated | FJ14: Mixed | FK14: Mixed | FL14: Mixed | FN14: 40558 | FO14: 6 - 9 months | FP14: 6 - 9 months | FU14: Not specified | FV14: Not specified | FX14: 47657 | FY14: 4125 | FZ14: =Table1[[#This Row],[2. What was the cost of installation of ATCS software (licensing and similar)? ]]/Table1[[#This Row],[8.1. Number of signals operating under ATCS '[exact']]] -> 133.0645161 | GD14: Don't typically have external costs for maintenance because we take care it in house. In house cost are just employee time which rates vary significantly. | GE14: N.A. | GG14: OK | GH14: Offsets | GI14: Splits | GJ14: Cycle length | GK14: Phase sequence | GL14: 1 | GM14: 5 - 10 | GN14: 5 - 10 | GO14: 0 | GQ14: 9. Not evaluated
B15: 10 | C15: Missouri Department of Transportation - Kansas | D15: Kansas | E15: MO | G15: United States | H15: State government | I15: State government | J15: State government | K15: State government | L15: State government | N15: Not specified | O15: Not specified | S15: Not specified | T15: Not specified | V15: Not specified | AJ15: Not specified | AM15: Not specified | AN15: Not specified | AV15: InSync | AW15: InSync | AX15: InSync | AY15: InSync | BA15: Not reported | BC15: 39783 | BD15: 39783 | BE15: 39783 | BF15: 39783 | BG15: 39904 | BH15: 39904 | BI15: 39904 | BJ15: 39904 | BK15: =DATEDIF(Table1[[#This Row],[4. When did the ATCS installation start ]],Table1[[#This Row],[5. By what time was the ATCS fully operational]],"m") -> 4 | CH15: Lee Summit, MO | CK15: 91364 | CL15: 50,000-100,000 | CM15: 2008 | CN15: Yes | CO15: Kansas City | CP15: 2009342 | CQ15: 2,000,000-5,000,000 | CR15: Route 291, Lee Summit, Missouri | CS15: Urban area | CT15: Urban area | CU15: Urban area | CV15: Single corridor | CW15: Single corridor | CX15: Single corridor | CY15: 10-15 | CZ15: 10-15 | DA15: 10-15 | DB15: 12 | DC15: 12 | DD15: ≤3 | DE15: ≤3 | DF15: ≤3 | DG15: 2.5 | DI15: Not specified | DK15: Improving conditions of traffic flow | DL15: To reduce travel time and delay along corridor | FF15: TOD - Fully actuated | FG15: TOD - Fully actuated | FH15: TOD - Fully actuated | FI15: TOD - Fully actuated | FJ15: Coordinated | FK15: Coordinated | FL15: Coordinated | FP15: Not specified | FU15: Not specified | FV15: Not specified | GN15: Not specified | GO15: 1 | GP15: Yes | GQ15: 10. Hutton, J.N., Bokenkroger, C.D. and Meyer, M.M., 2010. Evaluation of an adaptive traffic signal system: route 291 in Lee's Summit, Missouri (No. OR 10-020). | GR15: InSync | GS15: InSync | GT15: InSync | GV15: Not specified | GY15: Not specified | GZ15: Research Institute | HA15: Research Institute | HB15: Research Institute | HD15: Midwest Research Institute | HE15: Midwest Research Institute | HF15: 39753 | HG15: 39753 | HH15: 39934 | HI15: 39934 | HK15: =DATEDIF(Table1[[#This Row],[7. When did the evaluation start (year/month)?]],Table1[[#This Row],[8. By what time was the evaluation completed (year/month)?]],"m") -> 6 | HL15: 3 - 6 months | HM15: Field evaluation | HN15: Field evaluation | HO15: Field evaluation | HP15: Before-after | HQ15: Before-after | HR15: Before-after | IB15: Manual counts | IE15: 'Floating' car data | IQ15: 'Floating' car data | IZ15: Manual counts | JX15: 'Floating' car data | KE15: 1 | KF15: 1 | KG15: 0 | KH15: 1 | KI15: 0 | KJ15: 0 | KK15: 1 | KL15: Yes | KN15: PC Travel | KS15: 1 | KT15: Jamar counting/delay device | KU15: Laptop with GPS device (or similar, e.g. tablet) | KZ15: 1 | LA15: Regular weekday | LC15: 246 | LD15: 343 | LE15: 589 | NN15: 250 | NO15: 233 | NP15: 483 | PY15: 4 | PZ15: 1.62601626 | QA15: -110 | QB15: -32.06997085 | QC15: -106 | QD15: -17.99660441 | QL15: -17.99660441 | RF15: 17 | RH15: -95 | SV15: 4.5 | SX15: -19.2 | TL15: 6.2 | TN15: -40.7 | UB15: 4.3 | UD15: -28.9 | UR15: 8.8 | UT15: -49.9 | VM15: 306 | VN15: 392 | VO15: 698 | XX15: 251 | XY15: 245 | XZ15: 496 | AAI15: -55 | AAJ15: -17.97385621 | AAK15: -147 | AAL15: -37.5 | AAM15: -202 | AAN15: -28.93982808 | AAV15: -28.93982808 | ABP15: -69 | ABR15: -88 | ADF15: -4.2 | ADH15: -21.4 | ADV15: -14.6 | ADX15: -38.3 | AEL15: -10 | AEN15: -26 | AFB15: -14.3 | AFD15: -42.4 | AFW15: 292 | AFX15: 344 | AFY15: 636 | AIH15: 248 | AII15: 270 | AIJ15: 518 | AKS15: -44 | AKT15: -15.06849315 | AKU15: -74 | AKV15: -21.51162791 | AKW15: -118 | AKX15: -18.55345912 | ALF15: -18.55345912 | ALZ15: -57 | AMB15: -56 | AMX15: -4.2 | AMZ15: -15.4 | AND15: -10.8 | ANF15: -13.2 | ANJ15: -7.8 | ANL15: -6.2 | ANP15: -8.1 | ANR15: -9.6
B16: 11 | C16: Road Commission for Oakland County | D16: Waterford | E16: MI | F16: 48328 | G16: United States | H16: County government | I16: County government | J16: County government | K16: County government | L16: County government | M16: >2,400 miles | N16: >2,400 miles | O16: >2,400 miles | P16: 2700 | Q16: >500 | R16: 1422 | S16: >500 | T16: >500 | U16: >300 | V16: >300 | W16: 1422 | X16: 3 | Y16: 5 | Z16: 11 | AA16: 18 | AB16: 2080 | AC16: 2080 | AD16: 1040 | AE16: 1040 | AF16: No | AG16: Enigneers and Technicians | AH16: >$2,000,000 | AJ16: >$2,000,000 | AK16: $1,000,000-2,000,000 | AM16: $1,000,000-2,000,000 | AN16: 1 | AP16: 1 | AV16: SCATS | AW16: SCATS | AX16: SCATS | AY16: SCATS | AZ16: Sole source | BA16: Sole source | BC16: 33756 | BD16: 33756 | BE16: 33756 | BF16: 33756 | BG16: 33786 | BH16: 33786 | BI16: 33786 | BJ16: 33786 | BK16: =DATEDIF(Table1[[#This Row],[4. When did the ATCS installation start ]],Table1[[#This Row],[5. By what time was the ATCS fully operational]],"m") -> 1 | BL16: No | BR16: Fully operational | CA16: Nobody else | CG16: 1 | CH16: Oakland County, MI | CK16: 1170000 | CL16: >1,000,000 | CM16: 1997 | CN16: Yes | CO16: Detroit | CP16: 4441551 | CQ16: 2,000,000-5,000,000 | CR16: Not specified | CS16: Urban area | CT16: Urban area | CU16: Urban area | CV16: Mixed (or Other) | CW16: Mixed (or Other) | CX16: Mixed (or Other) | CY16: >30 | CZ16: >30 | DA16: >30 | DB16: 800 | DC16: 9 | DD16: >15 | DE16: >15 | DF16: >15 | DG16: 3.1 | DH16: 45,000-55,000 | DI16: 45,000-55,000 | DK16: Improving conditions of traffic flow | DM16: Agree | DN16: Agree | DO16: Agree | DP16: Agree | DQ16: Agree | DR16: Agree | DS16: Agree | DT16: Agree | DU16: Agree | DV16: Agree | DW16: Agree | DX16: Agree | DY16: N/A | DZ16: N/A | EA16: N/A | EB16: N/A | EC16: Partially utilized | ED16: Partially utilized | EF16: Not integrated | EG16: Not integrated | EH16: Not integrated | EO16: Wireless (application protocol or broadband systems) | EQ16: 1 | ER16: Stop-line detectors | EX16: 1 | EY16: Inductive loops | EZ16: Video detection | FB16: In-pavement detector pucks | FE16: 1 | FF16: TOD - Fixed | FG16: TOD - Fixed | FH16: TOD - Fixed | FI16: TOD - Fixed | FJ16: Mixed | FK16: Mixed | FL16: Mixed | FN16: 33756 | FO16: > 12 months | FP16: > 12 months | FU16: =DATEDIF(Table1[[#This Row],[3. When was the last time that the signals under the ATCS were retimed before the ATCS was deployed?]],Table1[[#This Row],[7. When did the evaluation start (year/month)?]],"m") -> 55 | FV16: 24 - 36 months | FX16: 50000 | FY16: 2000 | FZ16: =Table1[[#This Row],[2. What was the cost of installation of ATCS software (licensing and similar)? ]]/Table1[[#This Row],[8.1. Number of signals operating under ATCS '[exact']]] -> 2.5 | GB16: 5000 | GE16: ATCS costs are higher | GG16: Understandable | GH16: Offsets | GI16: Splits | GJ16: Cycle length | GL16: 1 | GM16: > 20 | GN16: > 20 | GO16: 1 | GP16: Yes | GQ16: 11. Taylor, W.C. and Abdel-Rahim, A.S., 1998. Analysis of corridor delay under SCATS control: FAST-TRAC Phase III deliverable(No. EECS-ITS LAB-FT-083). Michigan State University. | GR16: SCATS | GS16: SCATS | GT16: SCATS | GU16: No | GV16: No | GX16: University (Academia institution) | GY16: University (Academia institution) | GZ16: University (Academia institution) | HA16: University (Academia institution) | HB16: University (Academia institution) | HD16: Michigan State University | HE16: Michigan State University | HF16: 35446 | HG16: 35446 | HH16: 35516 | HI16: 35516 | HK16: =DATEDIF(Table1[[#This Row],[7. When did the evaluation start (year/month)?]],Table1[[#This Row],[8. By what time was the evaluation completed (year/month)?]],"m") -> 2 | HL16: 1 - 3 months | HM16: Field evaluation | HN16: Field evaluation | HO16: Field evaluation | HP16: Before-after | HQ16: Before-after | HR16: Before-after | HY16: Video cameras | IF16: ‘Average’ Car data | IR16: ‘Average’ Car data | KE16: 1 | KF16: 1 | KG16: 0 | KH16: 0 | KI16: 0 | KJ16: 0 | KK16: 1 | KL16: Yes | LA16: Regular weekday | LC16: 379 | LD16: 382 | LE16: 761 | NN16: 302 | NO16: 349 | NP16: 651 | PY16: =NN16-LC16 -> -77 | PZ16: =-(100-(NN16*100/LC16)) -> -20.31662269 | QA16: =NO16-LD16 -> -33 | QB16: =-(100-(NO16*100/LD16)) -> -8.638743455 | QC16: =NP16-LE16 -> -110 | QD16: =-(100-(NP16*100/LE16)) -> -14.45466491 | QL16: -14.45466491 | VM16: 434 | VN16: 376 | VO16: 810 | XX16: 296 | XY16: 319 | XZ16: 615 | AAI16: =XX16-VM16 -> -138 | AAJ16: =-(100-(XX16*100/VM16)) -> -31.79723502 | AAK16: =XY16-VN16 -> -57 | AAL16: =-(100-(XY16*100/VN16)) -> -15.15957447 | AAM16: =XZ16-VO16 -> -195 | AAN16: =-(100-(XZ16*100/VO16)) -> -24.07407407 | AAV16: -24.07407407 | AFW16: 441 | AFX16: 381 | AFY16: 822 | AIH16: 409 | AII16: 356 | AIJ16: 765 | AKS16: =AIH16-AFW16 -> -32 | AKT16: =-(100-(100*AIH16/AFW16)) -> -7.256235828 | AKU16: =AII16-AGI16 -> 356 | AKV16: =-(100-(100*AII16/AFX16)) -> -6.56167979 | AKW16: =AIJ16-AFY16 -> -57 | AKX16: =-(100-(100*AIJ16/AFY16)) -> -6.934306569 | ALF16: -6.934306569
A17: mp ev | B17: 11.1 | C17: Road Commission for Oakland County | D17: Waterford | E17: MI | I17: County government | J17: County government | K17: County government | L17: County government | N17: >2,400 miles | O17: >2,400 miles | S17: >500 | T17: >500 | V17: Not specified | AJ17: >$2,000,000 | AM17: Not specified | AN17: 1 | AX17: SCATS | AY17: SCATS | BA17: Sole source | CH17: Oakland County, MI | CK17: 1209000 | CL17: >1,000,000 | CM17: 2007 | CN17: Yes | CO17: Detroit | CP17: 4296250 | CQ17: 2,000,000-5,000,000 | CR17: Not specified | CT17: Urban area | CU17: Urban area | CW17: Mixed (or Other) | CX17: Mixed (or Other) | CZ17: >30 | DA17: >30 | DE17: >15 | DF17: >15 | DI17: 45,000-55,000 | FH17: TOD - Fixed | FI17: TOD - Fixed | FK17: Mixed | FL17: Mixed | FP17: Not specified | FU17: Not specified | FV17: Not specified | GN17: Not specified | GO17: 1 | GP17: Yes | GQ17: 11.1. a) Dutta, U., McAvoy, D., Lynch, J. and Vandeputte, L., 2008. Evaluation of the SCATS control system (No. Report No: MIOH UTC TS4 2008–Final TS 4, Project 2). Michigan Ohio University Transportation Center. b) Dutta, U. and McAvoy, D.S., 2010. Comparative Performance Evaluation of SCATS and Pre-timed Control Systems (No. 1430-2016-118677). c) Dutta, U., Lynch, J., Dara, B. and Bodke, S., 2010. Safety Evaluation of the SCATS Control System (No. RC-1545K). | GR17: SCATS | GS17: SCATS | GT17: SCATS | GU17: No | GV17: No | GY17: Not specified | GZ17: University (Academia institution) | HA17: University (Academia institution) | HB17: University (Academia institution) | HD17: Research team | HE17: Research team (Michigan Ohio University Transportation Center and University of Detroit Mercy) | HF17: 39203 | HG17: 39203 | HH17: 39234 | HI17: 39234 | HK17: =DATEDIF(Table1[[#This Row],[7. When did the evaluation start (year/month)?]],Table1[[#This Row],[8. By what time was the evaluation completed (year/month)?]],"m") -> 1 | HL17: ≤ 1 month | HM17: Field evaluation | HN17: Field evaluation | HO17: Field evaluation | HP17: On-off | HQ17: On-off | HR17: On-off | KE17: 0 | KF17: 1 | KG17: 1 | KH17: 0 | KI17: 0 | KJ17: 1 | KK17: 1 | LA17: Regular weekday & Friday & Saturday | VO17: 399 | VV17: 120.3 | WC17: 2.75 | WP17: 418 | WW17: 0.218 | XD17: 19.94 | XK17: 247.7 | XR17: 12.85 | XZ17: 392.4 | YG17: 106.6 | YN17: 2 | ZA17: 324.83 | ZH17: 0.212 | ZO17: 18.82 | ZV17: 242.3 | AAC17: 11.83 | AAM17: =XZ17-VO17 -> -6.6 | AAN17: =-(100-(XZ17*100/VO17)) -> -1.654135338 | AAV17: -1.654135338 | ABC17: =YG17-VV17 -> -13.7 | ABD17: =-(100-(YG17*100/VV17)) -> -11.38819618 | ABL17: -11.4 | ABS17: =YN17-WC17 -> -0.75 | ABT17: =-(100-(YN17*100/WC17)) -> -27.27272727 | ACB17: -27.27272727 | ACU17: =ZA17-WP17 -> -93.17 | ACV17: =-(100-(ZA17*100/WP17)) -> -22.28947368 | ADI17: =ZH17-WW17 -> -0.006 | ADJ17: =-(100-(ZH17*100/WW17)) -> -2.752293578 | ADR17: -2.752293578 | ADY17: =ZO17-XD17 -> -1.12 | ADZ17: =-(100-(ZO17*100/XD17)) -> -5.616850552 | AEH17: -5.6 | AEO17: =ZV17-XK17 -> -5.4 | AEP17: =-(100-(ZV17*100/XK17)) -> -2.18005652 | AEX17: -2.2 | AFE17: =AAC17-XR17 -> -1.02 | AFF17: =-(100-(AAC17*100/XR17)) -> -7.937743191 | AFN17: -7.9 | AFY17: 442.7 | AGF17: 158 | AGM17: 3.33 | AHG17: 0.23 | AHN17: 21 | AHU17: 262.9 | AIB17: 13.24 | AIJ17: 413.1 | AIQ17: 127.9 | AIX17: 2.45 | AJR17: 0.215 | AJY17: 19.4 | AKF17: 243.5 | AKM17: 12.16 | AKW17: =AIJ17-AFY17 -> -29.6 | AKX17: =-(100-(AIJ17*100/AFY17)) -> -6.686243506 | ALF17: -6.686243506 | ALM17: =AIQ17-AGF17 -> -30.1 | ALN17: =-(100-(AIQ17*100/AGF17)) -> -19.05063291 | ALV17: -19.05063291 | AMC17: =AIX17-AGM17 -> -0.88 | AMD17: =-(100-(AIX17*100/AGM17)) -> -26.42642643 | AML17: -26.42642643 | ANS17: =AJR17-AHG17 -> -0.015 | ANT17: =-(100-(AJR17*100/AHG17)) -> -6.52173913 | AOB17: -6.52173913 | AOI17: =AJY17-AHN17 -> -1.6 | AOJ17: =-(100-(AJY17*100/AHN17)) -> -7.619047619 | AOR17: -7.619047619 | AOY17: =AKF17-AHU17 -> -19.4 | AOZ17: =-(100-(AKF17*100/AHU17)) -> -7.379231647 | APH17: -7.379231647 | APO17: =AKM17-AIB17 -> -1.08 | APP17: =-(100-(AKM17*100/AIB17)) -> -8.157099698 | APX17: -8.157099698 | AQI17: 453.8 | AQP17: 174.73 | AQW17: 3.91 | ARQ17: 0.225 | ARX17: 20.77 | ASE17: 250.8 | ASL17: 12.97 | AST17: 438.66 | ATA17: 155.69 | ATH17: 3.03 | AUB17: 0.22 | AUI17: 20.54 | AUP17: 251.94 | AUW17: 12.88 | AVG17: =AST17-AQI17 -> -15.14 | AVH17: =-(100-(AST17*100/AQI17)) -> -3.336271485 | AVP17: -3.336271485 | AVW17: =ATA17-AQP17 -> -19.04 | AVX17: =-(100-(ATA17*100/AQP17)) -> -10.89681222 | AWF17: -10.89681222 | AWM17: =ATH17-AQW17 -> -0.88 | AWN17: =-(100-(ATH17*100/AQW17)) -> -22.50639386 | AWV17: -22.50639386 | AYC17: =AUB17-ARQ17 -> -0.005 | AYD17: =-(100-(AUB17*100/ARQ17)) -> -2.222222222 | AYI17: -0.005 | AYJ17: -2.222222222 | AYQ17: =AUI17-ARX17 -> -0.23 | AYR17: =-(100-(AUI17*100/ARX17)) -> -1.107366394 | AYW17: -0.23 | AYX17: -1.107366394 | AZE17: =AUP17-ASE17 -> 1.14 | AZF17: =-(100-(AUP17*100/ASE17)) -> 0.4545454545 | AZK17: 1.14 | AZL17: 0.4545454545 | AZS17: =AUW17-ASL17 -> -0.09 | AZT17: =-(100-(AUW17*100/ASL17)) -> -0.6939090208 | AZY17: -0.09 | AZZ17: -0.6939090208 | BAI17: 393.64 | BAP17: 107.09 | BAW17: 2.36 | BBQ17: 0.2131 | BBX17: 18.18 | BCE17: 229.66 | BCL17: 11.24 | BCT17: 376.05 | BDA17: 90.73 | BDH17: 1.68 | BEB17: 0.206 | BEI17: 17.33 | BEP17: 223.23 | BEW17: 10.63 | BFG17: =BCT17-BAI17 -> -17.59 | BFH17: =-(100-(BCT17*100/BAI17)) -> -4.468549944 | BFP17: -4.468549944 | BFW17: =BDA17-BAP17 -> -16.36 | BFX17: =-(100-(BDA17*100/BAP17)) -> -15.27686992 | BGF17: -15.27686992 | BGM17: =BDH17-BAW17 -> -0.68 | BGN17: =-(100-(BDH17*100/BAW17)) -> -28.81355932 | BGV17: -28.81355932 | BIC17: =BEB17-BBQ17 -> -0.0071 | BID17: =-(100-(BEB17*100/BBQ17)) -> -3.331769122 | BIJ17: -3.331769122 | BIQ17: =BEI17-BBX17 -> -0.85 | BIR17: =-(100-(BEI17*100/BBX17)) -> -4.675467547 | BIX17: -4.675467547 | BJE17: =BEP17-BCE17 -> -6.43 | BJF17: =-(100-(BEP17*100/BCE17)) -> -2.799790995 | BJL17: -2.799790995 | BJS17: =BEW17-BCL17 -> -0.61 | BJT17: =-(100-(BEW17*100/BCL17)) -> -5.427046263 | BJZ17: -5.427046263
B18: 12 | C18: West Goshen Township | D18: West Chester | E18: PA | F18: 19380 | G18: United States | H18: City government | I18: City government | J18: City government | K18: City government | L18: City government | M18: <200 miles | N18: <200 miles | O18: <200 miles | Q18: < 100 | S18: < 100 | T18: < 100 | U18: <50 | V18: <50 | X18: 1 | Y18: 1 | Z18: 1 | AA18: 1 | AB18: 4 | AC18: 4 | AF18: Yes | AH18: <$100,000 | AI18: $40,000 | AJ18: <$100,000 | AK18: <$100,000 | AL18: $15,000 | AM18: <$100,000 | AN18: 2 | AP18: 2 | AQ18: Yes | AT18: All from one central platform (e.g., ATMS) | AV18: InSync | AW18: InSync | AX18: InSync | AY18: InSync | AZ18: Sole source | BA18: Sole source | CH18: West Chester, PA | CK18: 18461 | CL18: <50,000 | CM18: 2010 | CN18: Yes | CO18: Philadelphia-Camden-Wilmington | CP18: 6096372 | CQ18: 5,000,000-10,000,000 | CR18: Not specified | CT18: Not specified | CU18: Not specified | CW18: Not specified | CX18: Not specified | CZ18: Not specified | DA18: Not specified | DE18: Not specified | DF18: Not specified | DI18: Not specified | FH18: Not specified | FI18: Not specified | FK18: Not specified | FL18: Not specified | FP18: Not specified | FU18: Not specified | FV18: Not specified | GN18: Not specified | GO18: 0 | GQ18: 13. Not evaluated | KK18: 1
B19: 13 | C19: Florida Department of Transportation - Miami | D19: Miami | E19: FL | F19: 33172 | G19: United States | H19: State government | I19: State government | J19: State government | K19: State government | L19: State government | M19: 200-800 miles | N19: 200-800 miles | O19: 200-800 miles | Q19: < 100 | R19: 47 | S19: < 100 | T19: < 100 | U19: <50 | V19: <50 | W19: 30 | X19: 1 | Y19: 4 | Z19: 2 | AA19: 2 | AB19: 8 | AC19: 8 | AD19: 8 | AE19: 8 | AF19: Yes | AH19: $1,000,000-2,000,000 | AJ19: $1,000,000-2,000,000 | AK19: >$2,000,000 | AM19: >$2,000,000 | AN19: 1 | AP19: 1 | AV19: InSync | AW19: InSync | AX19: InSync | AY19: InSync | AZ19: Sole source | BA19: Sole source | BC19: 42383 | BD19: 42383 | BE19: 42383 | BF19: 42383 | BG19: 42849 | BH19: 42849 | BI19: 42849 | BJ19: 42849 | BK19: =DATEDIF(Table1[[#This Row],[4. When did the ATCS installation start ]],Table1[[#This Row],[5. By what time was the ATCS fully operational]],"m") -> 15 | BL19: No | BR19: Fully operational | CB19: Other DOT/County/City authority | CG19: 1 | CH19: Miami, FL | CK19: 470914 | CL19: 100,000-500,000 | CM19: 2018 | CN19: Yes | CO19: Miami | CP19: 6100000 | CQ19: 5,000,000-10,000,000 | CR19: Not specified | CS19: Urban area | CT19: Urban area | CU19: Urban area | CV19: Single corridor | CW19: Single corridor | CX19: Single corridor | CY19: 20-30 | CZ19: 20-30 | DA19: 20-30 | DB19: 30 | DC19: 30 | DD19: 6-9 | DE19: 6-9 | DF19: 6-9 | DG19: 7.5 | DH19: >55,000 | DI19: >55,000 | DK19: Improving conditions of traffic flow | DM19: N/A | DN19: N/A | DO19: N/A | DP19: N/A | DQ19: N/A | DR19: N/A | DS19: N/A | DT19: N/A | DU19: N/A | DV19: N/A | DW19: N/A | DX19: N/A | DY19: N/A | DZ19: N/A | EA19: N/A | EB19: N/A | EC19: Fully utilized | ED19: Not utilized | EF19: Not integrated | EG19: Not integrated | EH19: Not integrated | EP19: Cellular | EQ19: 1 | ER19: Stop-line detectors | EX19: 1 | EY19: Inductive loops | EZ19: Video detection | FE19: 1 | FF19: TOD - Semi-actuated | FG19: TOD - Semi-actuated | FH19: TOD - Semi-actuated | FI19: TOD - Semi-actuated | FJ19: Coordinated | FK19: Coordinated | FL19: Coordinated | FN19: 09/30/2016 | FO19: < 3 months | FP19: < 3 months | FU19: =DATEDIF(Table1[[#This Row],[3. When was the last time that the signals under the ATCS were retimed before the ATCS was deployed?]],Table1[[#This Row],[7. When did the evaluation start (year/month)?]],"m") -> 19 | FV19: 12 - 24 months | FX19: 134000 | FY19: 30000 | FZ19: =Table1[[#This Row],[2. What was the cost of installation of ATCS software (licensing and similar)? ]]/Table1[[#This Row],[8.1. Number of signals operating under ATCS '[exact']]] -> 1000 | GB19: 300000 | GC19: =Table1[[#This Row],[3. What was the average maintenance cost of ATCS per year (provide your best estimate)? ]]/Table1[[#This Row],[8.1. Number of signals operating under ATCS '[exact']]] -> 10000 | GE19: ATCS costs are higher | GG19: Very understandable | GH19: Offsets | GI19: Splits | GJ19: Cycle length | GK19: Phase sequence | GL19: 1 | GM19: 10 - 15 | GN19: 10 - 15 | GO19: 1 | GP19: No | GQ19: 13. In preparation | GR19: InSync | GS19: InSync | GT19: InSync | GU19: Yes | GV19: Yes | GW19: HNTB | GX19: Deploying agency (In-house) | GY19: Deploying agency (In-house) | GZ19: University (Academia institution) | HA19: University (Academia institution) | HB19: University (Academia institution) | HD19: Florida International University | HE19: Florida International University | HF19: 43238 | HG19: 43238 | HH19: 43980 | HI19: 43980 | HK19: =DATEDIF(Table1[[#This Row],[7. When did the evaluation start (year/month)?]],Table1[[#This Row],[8. By what time was the evaluation completed (year/month)?]],"m") -> 24 | HL19: 12 - 24 months | HM19: Field evaluation | HN19: Field evaluation | HO19: Field evaluation | HP19: Before-after | HQ19: Before-after | HR19: Before-after | HZ19: Bluetooth sensors | IE19: 'Floating' car data | IR19: 'Average' car data | JD19: 'Average' car data | JO19: N/A | JS19: N/A | JW19: N/A | JZ19: N/A | KE19: 1 | KG19: 0 | KH19: 0 | KI19: 0 | KJ19: 0 | KK19: 1 | KL19: Yes | KN19: PC Travel | KS19: 1 | KT19: Jamar counting/delay device | KX19: Other | KY19: Laptop and cameras (no GPS) | KZ19: 1
B20: 14 | C20: Florida Department of Transportation - Tampa | D20: Tampa | E20: FL | F20: 33612 | G20: United States | H20: State government | I20: State government | J20: State government | K20: State government | L20: State government | M20: 800-1,200 miles | N20: 800-1,200 miles | O20: 800-1,200 miles | Q20: >500 | S20: >500 | T20: >500 | U20: >300 | V20: >300 | X20: 10 | Y20: 20 | Z20: 50 | AA20: 50 | AB20: 20 | AC20: 20 | AD20: 80 | AE20: 80 | AF20: No | AG20: 15-20 signal techs and 3-4 engineers | AH20: >$2,000,000 | AJ20: >$2,000,000 | AK20: $1,000,000-2,000,000 | AM20: $1,000,000-2,000,000 | AN20: 7 | AP20: 7 | AQ20: No | AR20: Normal | AT20: Individually (each system has its own platform for monitoring) | AV20: InSync | AW20: InSync | AX20: InSync | AY20: InSync | AZ20: Sole source | BA20: Sole source | BC20: 42614 | BD20: 42614 | BE20: 42614 | BF20: 42614 | BG20: 43435 | BH20: 43435 | BI20: 43435 | BJ20: 43435 | BK20: =DATEDIF(Table1[[#This Row],[4. When did the ATCS installation start ]],Table1[[#This Row],[5. By what time was the ATCS fully operational]],"m") -> 27 | BL20: Yes | BM20: 8 | BN20: Poor coordination between installation vendor and the agency | BO20: Technical problems (e.g., detection, communications, equipment) | BQ20: 1 | BR20: Partially decommissioned (technology still there but not used; can be easily switched ON in future) | BS20: Detection and communication problems | BZ20: 1 | CA20: Nobody else | CG20: 1 | CH20: Tampa, FL | CK20: 336766 | CL20: 100,000-500,000 | CM20: 2010 | CN20: Yes | CO20: Tampa Bay | CP20: 2783000 | CQ20: 2,000,000-5,000,000 | CR20: Not specified | CS20: Urban area | CT20: Urban area | CU20: Urban area | CV20: Not specified | CW20: Not specified | CX20: Not specified | CY20: 15-20 | CZ20: 15-20 | DA20: 15-20 | DD20: 3-6 | DE20: 3-6 | DF20: 3-6 | DH20: 45,000-55,000 | DI20: 45,000-55,000 | DK20: Serving as an early deplorer of innovative technology | DM20: N/A | DN20: N/A | DO20: N/A | DP20: N/A | DQ20: N/A | DR20: N/A | DS20: N/A | DT20: N/A | DU20: N/A | DV20: N/A | DW20: N/A | DX20: N/A | DY20: N/A | DZ20: N/A | EA20: Not utilized | EB20: Not utilized | EC20: Not utilized | ED20: Not utilized | EE20: Not utilized | EF20: Not integrated | EG20: Not integrated | EH20: Not integrated | EI20: Not integrated | EM20: Fiber optic | EQ20: 1 | ER20: Stop-line detectors | ES20: Near-stop-line (upstream from stop line from 32ft to 200ft) | ET20: Upstream (mid-block) detectors | EU20: Upstream (far-side) detectors (located at the exit point of the upstream intersection) | EX20: 1 | EY20: Inductive loops | EZ20: Video detection | FA20: Microwave radar detection | FE20: 1 | FF20: TOD - Fully actuated | FG20: TOD - Fully actuated | FH20: TOD - Fully actuated | FI20: TOD - Fully actuated | FJ20: Mixed | FK20: Mixed | FL20: Mixed | FN20: 09/01/2017 | FO20: > 12 months | FP20: > 12 months | FU20: Not specified | FV20: Not specified | FX20: 20000 | GE20: ATCS costs are higher | GG20: Understandable | GH20: Offsets | GI20: Splits | GJ20: Cycle length | GK20: Phase sequence | GL20: 1 | GM20: < 5 | GN20: < 5 | GO20: 0 | GQ20: 14. Not evaluated
B21: 15 | C21: Colorado Department of Transportation - Greeley | D21: Greeley | E21: CO | F21: 80634 | G21: United States | H21: State government | I21: State government | J21: State government | K21: State government | L21: State government | M21: 800-1,200 miles | N21: 800-1,200 miles | O21: 800-1,200 miles | Q21: 100-200 | S21: 100-200 | T21: 100-200 | U21: 50-80 | V21: 50-80 | X21: 1 | Y21: 2 | Z21: 8 | AB21: 8 | AC21: 24 | AD21: 120 | AE21: 120 | AF21: Yes | AH21: $500,000-1,000,000 | AJ21: $500,000-1,000,000 | AK21: $100,000-500,000 | AM21: $100,000-500,000 | AN21: 1 | AP21: 1 | AV21: InSync | AW21: InSync | AX21: InSync | AY21: InSync | AZ21: Sole source | BA21: Sole source | BC21: 40940 | BD21: 40940 | BE21: 40940 | BF21: 40940 | BG21: 41030 | BH21: 41030 | BI21: 41030 | BJ21: 41030 | BK21: =DATEDIF(Table1[[#This Row],[4. When did the ATCS installation start ]],Table1[[#This Row],[5. By what time was the ATCS fully operational]],"m") -> 3 | BR21: Fully operational | CB21: Other DOT/County/City authority | CG21: 1 | CH21: Greeley, CO | CK21: 92889 | CL21: 50,000-100,000 | CM21: 2012 | CN21: Yes | CO21: Greeley | CP21: 252825 | CQ21: 200,000-500,000 | CR21: 10th Street (US 34 Business), Greeley, Colorado | CS21: Urban area | CT21: Urban area | CU21: Urban area | CV21: Single corridor | CW21: Single corridor | CX21: Single corridor | CY21: 10-15 | CZ21: 10-15 | DA21: 10-15 | DB21: 11 | DD21: 3-6 | DE21: 3-6 | DF21: 3-6 | DH21: 25,000-35,000 | DI21: 25,000-35,000 | DK21: Improving conditions of traffic flow | DM21: Strongly Agree | DN21: Strongly Agree | DO21: Strongly Agree | DP21: Strongly Agree | DQ21: Strongly Agree | DR21: Strongly Agree | DS21: Strongly Agree | DT21: Neutral | DU21: Strongly Agree | DV21: Strongly Agree | DW21: Strongly Agree | DX21: Neutral | DY21: Neutral | DZ21: Neutral | EA21: Not utilized | EB21: Not utilized | EC21: Not utilized | ED21: Not utilized | EF21: N/A | EG21: Not integrated | EH21: Not integrated | EM21: Fiber optic | EQ21: 1 | ER21: Stop-line detectors | EX21: 1 | EZ21: Video detection | FA21: Microwave radar detection | FE21: 1 | FF21: TOD - Fully actuated | FG21: TOD - Fully actuated | FH21: TOD - Fully actuated | FI21: TOD - Fully actuated | FJ21: Coordinated | FK21: Coordinated | FL21: Coordinated | FN21: 06/01/2007 | FO21: > 12 months | FP21: > 12 months | FU21: Not specified | FV21: Not specified | FX21: 65000 | GB21: 5000 | GE21: ATCS costs are lower | GG21: Very understandable | GH21: Offsets | GI21: Splits | GK21: Phase sequence | GL21: 1 | GM21: 15 - 20 | GN21: 15 - 20 | GO21: 1 | GP21: Yes | GQ21: 15. Sprague, D., 2012. Adaptive Signal Timing Comparison Between the InSync and QuicTrac Adaptive Signal Systems Installed in Colorado (No. CDOT-2012-6). Colorado. DTD Applied Research and Innovation Branch. | GR21: InSync | GS21: InSync | GT21: InSync | GU21: Yes | GV21: Yes | GW21: Atkins | GX21: Consultant who performed SE | GY21: Consultant who performed SE | GZ21: Consulting firm | HA21: Consulting firm | HB21: Consulting firm | HD21: Atkins | HE21: Atkins | HL21: Not reported | HM21: Field evaluation | HN21: Field evaluation | HO21: Field evaluation | HP21: Before-after | HQ21: Before-after | HR21: Before-after | HY21: Video cameras | IK21: Video cameras | IW21: Video cameras | JF21: Video cameras | JN21: Survey | JP21: Video cameras | JS21: N/A | JV21: Survey | JZ21: N/A | KE21: 1 | KF21: 1 | KG21: 1 | KH21: 0 | KI21: 0 | KJ21: 1 | KK21: 1 | KL21: Yes | KU21: Laptop with GPS device (or similar, e.g. tablet) | KV21: Camera with GPS device | KW21: Cell phone | KZ21: 1 | LA21: Regular weekday | BFH21: -11 | BFP21: -11 | BFX21: -37 | BGF21: -37 | BID21: -4 | BIR21: -13 | BJF21: -4 | BJT21: -5 | BPN21: -9 | BPV21: -9 | BQD21: -13 | BQL21: -13 | BSJ21: -3 | BSX21: -9 | BTL21: -4 | BTZ21: -4
B22: 16 | C22: Colorado Department of Transportation - Woodland Park | D22: Woodland Park | E22: CO | G22: United States | H22: State government | I22: State government | J22: State government | K22: State government | L22: State government | N22: Not specified | O22: Not specified | S22: Not specified | T22: Not specified | V22: Not specified | AJ22: Not specified | AM22: Not specified | AN22: Not specified | AV22: QuicTrac | AW22: QuicTrac | AX22: QuicTrac | AY22: QuicTrac | BA22: Not reported | BG22: 40848 | BH22: 40848 | BI22: 40848 | BJ22: 40848 | BL22: Yes | BM22: 3 | BO22: Technical problems (e.g., detection, communications, equipment) | BQ22: 1 | CH22: Woodland Park, CO | CK22: 7200 | CL22: <50,000 | CM22: 2012 | CN22: Yes | CO22: Colorado Springs | CP22: 645613 | CQ22: 500,000-1,000,000 | CR22: US 24, Woodland Park, Clolorado | CS22: Urban area | CT22: Urban area | CU22: Urban area | CV22: Single corridor | CW22: Single corridor | CX22: Single corridor | CY22: 5-10 | CZ22: 5-10 | DA22: 5-10 | DB22: 8 | DD22: 3-6 | DE22: 3-6 | DF22: 3-6 | DG22: 3.7 | DH22: ≤25,000 | DI22: ≤25,000 | DJ22: 19.000-26.000 | DK22: Handling high day-to-day and within-a-day traffic variability | EM22: Fiber optic | EQ22: 1 | ET22: Upstream (mid-block) detectors | EX22: 1 | EZ22: Video detection | FA22: Microwave radar detection | FE22: 1 | FF22: TOD - Semi-actuated | FG22: TOD - Semi-actuated | FH22: TOD - Semi-actuated | FI22: TOD - Semi-actuated | FJ22: Coordinated | FK22: Coordinated | FL22: Coordinated | FM22: / | FN22: 39022 | FP22: Not specified | FU22: Not specified | FV22: Not specified | GB22: 4500 | GC22: =Table1[[#This Row],[3. What was the average maintenance cost of ATCS per year (provide your best estimate)? ]]/Table1[[#This Row],[8.1. Number of signals operating under ATCS '[exact']]] -> 562.5 | GN22: Not specified | GO22: 1 | GP22: Yes | GQ22: 16. Sprague, D., 2012. Adaptive Signal Timing Comparison Between the InSync and QuicTrac Adaptive Signal Systems Installed in Colorado (No. CDOT-2012-6). Colorado. DTD Applied Research and Innovation Branch. | GR22: QuicTrac | GS22: QuicTrac | GT22: QuicTrac | GV22: Not specified | GY22: Not specified | GZ22: Research institute | HA22: Research institute | HB22: Research institute | HD22: Atkins | HE22: Atkins | HL22: Not reported | HM22: Field evaluation | HN22: Field evaluation | HO22: Field evaluation | HP22: Before-after | HQ22: Before-after | HR22: Before-after | HY22: Video cameras | IE22: 'Floating' car data | IW22: Video cameras | KE22: 1 | KF22: 1 | KG22: 1 | KH22: 0 | KI22: 0 | KJ22: 1 | KK22: 1 | KL22: Yes | LA22: Regular weekday | BFH22: -19 | BFP22: -19 | BFX22: -54 | BGF22: -54 | BID22: -7 | BIR22: -17 | BJF22: -7 | BJT22: -10 | BPN22: -6 | BPV22: -6 | BQD22: -15 | BQL22: -15 | BSJ22: -2 | BSX22: 0 | BTL22: -2 | BTZ22: -1
B23: 17 | C23: City of Renton | D23: Renton | E23: WA | F23: 98057-3232 | G23: United States | H23: City government | I23: City government | J23: City government | K23: City government | L23: City government | N23: Not specified | O23: Not specified | Q23: 100-200 | S23: 100-200 | T23: 100-200 | V23: Not specified | X23: 3 | Y23: 2 | Z23: 1 | AA23: 2 | AB23: 16 | AC23: 32 | AD23: 16 | AE23: 32 | AF23: Yes | AH23: $1,000,000-2,000,000 | AJ23: $1,000,000-2,000,000 | AM23: Not specified | AN23: 2 | AP23: 2 | AQ23: Yes | AR23: Difficult | AS23: Knowledge of multiple systems is proving challenging. It is difficult to maintain proficiencies. | AT23: All from one central platform (e.g., ATMS) | AV23: SCOOT | AW23: SCOOT | AX23: SCOOT | AY23: SCOOT | AZ23: Competitive bidding | BA23: Competitive bidding | BR23: Fully operational | CA23: Nobody else | CG23: 1 | CH23: Renton, WA | CK23: 92295 | CL23: 50,000-100,000 | CM23: 2010 | CN23: Yes | CO23: Seattle | CP23: 3500000 | CQ23: 2,000,000-5,000,000 | CR23: Not specified | CS23: Urban area | CT23: Urban area | CU23: Urban area | CV23: Not specified | CW23: Not specified | CX23: Not specified | CY23: 10-15 | CZ23: 10-15 | DA23: 10-15 | DB23: 17 | DC23: 17 | DD23: ≤3 | DE23: ≤3 | DF23: ≤3 | DG23: 3 | DH23: 35,000-45,000 | DI23: 35,000-45,000 | DK23: Handling over-saturated traffic conditions | DM23: Strongly Agree | DN23: Neutral | DO23: Strongly Agree | DP23: Agree | DQ23: Neutral | DR23: Agree | DS23: Neutral | DT23: N/A | DU23: N/A | DV23: N/A | DW23: N/A | DX23: Neutral | DY23: N/A | DZ23: Agree | EA23: Not utilized | EB23: Not utilized | EC23: Not utilized | ED23: Not utilized | EE23: Not utilized | EF23: Not integrated | EG23: Not integrated | EH23: Not integrated | EI23: Not integrated | EM23: Fiber optic | EQ23: 1 | ER23: Stop-line detectors | ES23: Near-stop-line (upstream from stop line from 32ft to 200ft) | EU23: Upstream (far-side) detectors (located at the exit point of the upstream intersection) | EX23: 1 | EY23: Inductive loops | EZ23: Video detection | FE23: 1 | FF23: TOD - Semi-actuated | FG23: TOD - Semi-actuated | FH23: TOD - Semi-actuated | FI23: TOD - Semi-actuated | FJ23: Coordinated | FK23: Coordinated | FL23: Coordinated | FO23: > 12 months | FP23: > 12 months | FU23: Not specified | FV23: Not specified | FX23: 35500 | FY23: 75000 | FZ23: =Table1[[#This Row],[2. What was the cost of installation of ATCS software (licensing and similar)? ]]/Table1[[#This Row],[8.1. Number of signals operating under ATCS '[exact']]] -> 4411.764706 | GB23: 27000 | GC23: =Table1[[#This Row],[3. What was the average maintenance cost of ATCS per year (provide your best estimate)? ]]/Table1[[#This Row],[8.1. Number of signals operating under ATCS '[exact']]] -> 1588.235294 | GE23: ATCS costs are higher | GG23: Not very understandable | GH23: Offsets | GI23: Splits | GJ23: Cycle length | GK23: Phase sequence | GL23: 1 | GM23: 10 - 15 | GN23: 10 - 15 | GO23: 0 | GQ23: 17. Not evaluated
B24: 18 | C24: City of Austin | D24: Austin | E24: TX | F24: 78754 | G24: United States | H24: City government | I24: City government | J24: City government | K24: City government | L24: City government | M24: >2,400 miles | N24: >2,400 miles | O24: >2,400 miles | Q24: >500 | R24: 984 | S24: >500 | T24: >500 | U24: >300 | V24: >300 | X24: 7 | Y24: 9 | Z24: 21 | AF24: Yes | AH24: $1,000,000-2,000,000 | AI24: 1,200,000 | AJ24: $1,000,000-2,000,000 | AK24: >$2,000,000 | AL24: 3,200,000 | AM24: >$2,000,000 | AN24: 4 | AP24: 4 | AQ24: Yes | AR24: Difficult | AT24: All from one central platform (e.g., ATMS) | AV24: D4 | AW24: D4 | AX24: D4 | AY24: D4 | AZ24: Competitive bidding | BA24: Competitive bidding | BB24: Competitive bidding for signal firmware | BC24: 43016 | BD24: 43016 | BE24: 43016 | BF24: 43016 | BG24: 43080 | BH24: 43080 | BI24: 43080 | BJ24: 43080 | BK24: =DATEDIF(Table1[[#This Row],[4. When did the ATCS installation start ]],Table1[[#This Row],[5. By what time was the ATCS fully operational]],"m") -> 2 | BL24: No | BR24: Partially operational (i.e., system is used with a limited scope or together with TOD plans) | CD24: Public transit agency | CG24: 1 | CH24: Austin, TX | CK24: 806463 | CL24: 500,000-1,000,000 | CM24: 2010 | CN24: Yes | CO24: Greater Austin | CP24: 1716309 | CQ24: 1,000,000-2,000,000 | CR24: Not specified | CS24: Urban area | CT24: Urban area | CU24: Urban area | CV24: Not specified | CW24: Not specified | CX24: Not specified | CY24: 5-10 | CZ24: 5-10 | DA24: 5-10 | DB24: 7 | DC24: 7 | DD24: 3-6 | DE24: 3-6 | DF24: 3-6 | DH24: 35,000-45,000 | DI24: 35,000-45,000 | DK24: Improving conditions of traffic flow | DM24: Agree | DN24: Strongly Agree | DO24: Agree | DP24: Neutral | DQ24: Neutral | DR24: Agree | DS24: Neutral | DT24: Agree | DU24: Neutral | DV24: Agree | DW24: Agree | DX24: Disagree | DY24: Agree | DZ24: Neutral | EA24: N/A | EB24: N/A | EC24: 2 | ED24: N/A | EE24: N/A | EF24: Fully integrated | EG24: 2 | EH24: Not integrated | EM24: Fiber optic | EO24: Wireless (application protocol or broadband systems) | EQ24: 1 | ER24: Stop-line detectors | ET24: Upstream (mid-block) detectors | EX24: 1 | EZ24: Video detection | FE24: 1 | FF24: TOD - Fixed | FG24: TOD - Fixed | FH24: TOD - Fixed | FI24: TOD - Fixed | FJ24: Coordinated | FK24: Coordinated | FL24: Coordinated | FN24: 10/01/2018 | FO24: > 12 months | FP24: > 12 months | FU24: Not specified | FV24: Not specified | FX24: 12000 | FY24: 1500 | FZ24: =Table1[[#This Row],[2. What was the cost of installation of ATCS software (licensing and similar)? ]]/Table1[[#This Row],[8.1. Number of signals operating under ATCS '[exact']]] -> 214.2857143 | GB24: 300 | GE24: ATCS costs are lower | GF24: Installing new aerial detection adds cost but typically was part of maintenance to replace broken detection | GG24: Understandable | GH24: Offsets | GI24: Splits | GJ24: Cycle length | GK24: Phase sequence | GL24: 1 | GM24: 5 - 10 | GN24: 5 - 10 | GO24: 0 | GQ24: 18. Not evaluated
B25: 19 | C25: Virginia Department of Transportation - Richmond | D25: Richmond | E25: VA | F25: 23219 | G25: United States | H25: State government | I25: State government | J25: State government | K25: State government | L25: State government | M25: >2,400 miles | N25: >2,400 miles | O25: >2,400 miles | Q25: >500 | R25: 3068 | S25: >500 | T25: >500 | U25: >300 | V25: >300 | X25: 21 | Y25: 36 | Z25: 50 | AB25: 8 | AC25: 20 | AD25: 20 | AE25: 20 | AF25: No | AG25: 1 signal engineer | AH25: >$2,000,000 | AJ25: >$2,000,000 | AK25: >$2,000,000 | AM25: >$2,000,000 | AN25: >8 | AO25: 139 | AP25: 9 | AQ25: Yes | AR25: Normal | AT25: Individually (each system has its own platform for monitoring) | AV25: InSync | AW25: InSync | AX25: InSync | AY25: InSync | AZ25: Sole source | BA25: Sole source | BG25: 40680 | BH25: 40680 | BI25: 40680 | BJ25: 40680 | BL25: Yes | BM25: 6 | BO25: Technical problems (e.g., detection, communications, equipment) | BQ25: 1 | BR25: Fully operational | CB25: Other DOT/County/City authority | CG25: 1 | CH25: Fauquier County, VA | CI25: Charlottesville, Staunton, Lynchburg, Winchester, Bristol, Roanoke | CK25: 65,474 | CL25: 50,000-100,000 | CM25: 2010 | CN25: Yes | CO25: Washington DC | CP25: 5580000 | CQ25: 5,000,000-10,000,000 | CR25: Not specified | CS25: Not specified | CT25: Not specified | CU25: Not specified | CV25: Single corridor | CW25: Single corridor | CX25: Single corridor | CY25: 5-10 | CZ25: 5-10 | DA25: 5-10 | DB25: 6 | DC25: 6 | DD25: >15 | DE25: >15 | DF25: >15 | DG25: 9.4 | DH25: 35,000-45,000 | DI25: 35,000-45,000 | DJ25: 43932 | DK25: Expecting significant operational savings and a high benefit cost ratio | DM25: Agree | DN25: Agree | DO25: Strongly Agree | DP25: Strongly Agree | DQ25: Neutral | DR25: Neutral | DS25: Disagree | DT25: Strongly Agree | DU25: Neutral | DV25: Agree | DW25: Agree | DX25: Neutral | DY25: N/A | DZ25: N/A | EA25: N/A | EB25: N/A | EC25: N/A | ED25: N/A | EE25: N/A | EF25: Not integrated | EG25: Not integrated | EH25: Not integrated | EM25: Fiber optic | EO25: Wireless (application protocol or broadband systems) | EQ25: 1 | ER25: Stop-line detectors | ES25: Near-stop-line (upstream from stop line from 32ft to 200ft) | EX25: 1 | EY25: Inductive loops | EZ25: Video detection | FE25: 1 | FF25: TOD - Semi-actuated | FG25: TOD - Semi-actuated | FH25: TOD - Semi-actuated | FI25: TOD - Semi-actuated | FJ25: Coordinated | FK25: Coordinated | FL25: Coordinated | FN25: 39965 | FO25: > 12 months | FP25: > 12 months | FU25: =DATEDIF(Table1[[#This Row],[3. When was the last time that the signals under the ATCS were retimed before the ATCS was deployed?]],Table1[[#This Row],[7. When did the evaluation start (year/month)?]],"m") -> 20 | FV25: 12 - 24 months | FX25: 16000 | FY25: 32000 | FZ25: =Table1[[#This Row],[2. What was the cost of installation of ATCS software (licensing and similar)? ]]/Table1[[#This Row],[8.1. Number of signals operating under ATCS '[exact']]] -> 5333.333333 | GB25: 130000 | GC25: =Table1[[#This Row],[3. What was the average maintenance cost of ATCS per year (provide your best estimate)? ]]/Table1[[#This Row],[8.1. Number of signals operating under ATCS '[exact']]] -> 21666.66667 | GE25: Almost the same | GG25: OK | GH25: Offsets | GI25: Splits | GJ25: Cycle length | GK25: Phase sequence | GL25: 1 | GM25: 5 - 10 | GN25: 5 - 10 | GO25: 1 | GP25: Yes | GQ25: 19. Fontaine, M.D., Ma, J. and Hu, J., 2015. Evaluation of the Virginia Department of Transportation adaptive signal control technology pilot project (No. VCTIR 15-R24). Virginia Center for Transportation Innovation and Research. | GR25: InSync | GS25: InSync | GT25: InSync | GU25: Yes | GV25: Yes | GW25: VDOT | GX25: Research Institute | GY25: Research Institute | GZ25: Research Institute | HA25: Research Institute | HB25: Research Institute | HD25: Virginia Transportation Research Center | HE25: Virginia Transportation Research Center | HF25: 40575 | HG25: 40575 | HH25: 41517 | HI25: 41517 | HK25: =DATEDIF(Table1[[#This Row],[7. When did the evaluation start (year/month)?]],Table1[[#This Row],[8. By what time was the evaluation completed (year/month)?]],"m") -> 30 | HL25: > 24 months | HM25: Field evaluation | HN25: Field evaluation | HO25: Field evaluation | HP25: Before-after | HQ25: Before-after | HR25: Before-after | HY25: Video cameras | IB25: Manual counts | IE25: 'Floating' car data | IH25: INRIX | IL25: Bluetooth sensors | IZ25: Manual counts | JM25: Manual counts | JS25: N/A | JW25: N/A | JZ25: N/A | KB25: Manual counts | KE25: 1 | KF25: 1 | KG25: 0 | KH25: 0 | KI25: 0 | KJ25: 0 | KK25: 1 | KL25: Yes | KN25: PC Travel | KS25: 1 | KT25: Jamar counting/delay device | KU25: Laptop with GPS device (or similar, e.g. tablet) | KV25: Camera with GPS device | KZ25: 1 | LA25: Regular weekday | QC25: -35 | QD25: -4.6 | QL25: -4.6 | RI25: -0.8 | RJ25: -34.6 | RR25: -34.6 | AAM25: -23 | AAN25: -3.1 | AAV25: -3.1 | ABS25: -1.1 | ABT25: -51 | ACB25: -51 | AKW25: 19 | AKX25: 2.5 | ALF25: 2.5 | AMC25: 0 | AMD25: 0 | AML25: 0
B26: 20 | C26: Virginia Department of Transportation - Richmond | D26: Richmond | E26: VA | I26: State government | J26: State government | K26: State government | L26: State government | N26: >2,400 miles | O26: >2,400 miles | S26: >500 | T26: >500 | V26: >300 | AJ26: >$2,000,000 | AM26: >$2,000,000 | AN26: >8 | AV26: InSync | AW26: InSync | AX26: InSync | AY26: InSync | AZ26: Sole source | BA26: Sole source | BG26: 40754 | BH26: 40754 | BI26: 40754 | BJ26: 40754 | BR26: Fully decommisioned | CB26: Other DOT/County/City authority | CG26: 1 | CH26: Fairfax County, VA | CK26: 1087000 | CL26: >1,000,000 | CM26: 2010 | CN26: Yes | CO26: Washington DC | CP26: 5580000 | CQ26: 5,000,000-10,000,000 | CR26: Not specified | CS26: Not specified | CT26: Not specified | CU26: Not specified | CV26: Single corridor | CW26: Single corridor | CX26: Single corridor | CY26: ≤5 | CZ26: ≤5 | DA26: ≤5 | DB26: 5 | DC26: 5 | DD26: ≤3 | DE26: ≤3 | DF26: ≤3 | DG26: 1.6 | DH26: 35,000-45,000 | DI26: 35,000-45,000 | DJ26: 37844 | DK26: Expecting significant operational savings and a high benefit cost ratio | FH26: Not specified | FI26: Not specified | FK26: Not specified | FL26: Not specified | FP26: Not specified | FU26: Not specified | FV26: Not specified | GN26: 5 - 10 | GO26: 1 | GP26: Yes | GQ26: 20. Fontaine, M.D., Ma, J. and Hu, J., 2015. Evaluation of the Virginia Department of Transportation adaptive signal control technology pilot project (No. VCTIR 15-R24). Virginia Center for Transportation Innovation and Research. | GR26: InSync | GS26: InSync | GT26: InSync | GU26: Yes | GV26: Yes | GW26: VDOT | GX26: Research Institute | GY26: Research Institute | GZ26: Research Institute | HA26: Research Institute | HB26: Research Institute | HD26: Virginia Transportation Research Center | HE26: Virginia Transportation Research Center | HF26: 40575 | HG26: 40575 | HH26: 41517 | HI26: 41517 | HK26: =DATEDIF(Table1[[#This Row],[7. When did the evaluation start (year/month)?]],Table1[[#This Row],[8. By what time was the evaluation completed (year/month)?]],"m") -> 30 | HL26: > 24 months | HM26: Field evaluation | HN26: Field evaluation | HO26: Field evaluation | HP26: Before-after | HQ26: Before-after | HR26: Before-after | KE26: 0 | KF26: 1 | KG26: 0 | KH26: 0 | KI26: 0 | KJ26: 0 | KK26: 1 | LA26: Regular weekday | QC26: 54 | QD26: 10.3 | QL26: 10.3 | RI26: -0.6 | RJ26: -9.3 | RR26: -9.3 | AAM26: -29 | AAN26: -9.1 | AAV26: -9.1 | ABS26: -0.7 | ABT26: -30.3 | ACB26: -30.3 | AKW26: -48 | AKX26: -9.7 | ALF26: -9.7 | AMC26: -2.5 | AMD26: -40.6 | AML26: -40.6
B27: 21 | C27: Virginia Department of Transportation - Richmond | D27: Richmond | E27: VA | I27: State government | J27: State government | K27: State government | L27: State government | N27: >2,400 miles | O27: >2,400 miles | S27: >500 | T27: >500 | V27: >300 | AJ27: >$2,000,000 | AM27: >$2,000,000 | AN27: >8 | AV27: InSync | AW27: InSync | AX27: InSync | AY27: InSync | AZ27: Sole source | BA27: Sole source | BG27: 40770 | BH27: 40770 | BI27: 40770 | BJ27: 40770 | BR27: Fully operational | CB27: Other DOT/County/City authority | CG27: 1 | CH27: Frederick County, VA | CK27: 78305 | CL27: 50,000-100,000 | CM27: 2010 | CN27: Yes | CO27: Winchester, VA–WV | CP27: 128694 | CQ27: <200,000 | CR27: Not specified | CS27: Not specified | CT27: Not specified | CU27: Not specified | CV27: Single corridor | CW27: Single corridor | CX27: Single corridor | CY27: 5-10 | CZ27: 5-10 | DA27: 5-10 | DB27: 6 | DC27: 6 | DD27: ≤3 | DE27: ≤3 | DF27: ≤3 | DG27: 0.7 | DH27: ≤25,000 | DI27: ≤25,000 | DJ27: 23750 | DK27: Expecting significant operational savings and a high benefit cost ratio | FH27: Not specified | FI27: Not specified | FK27: Not specified | FL27: Not specified | FP27: Not specified | FU27: Not specified | FV27: Not specified | GN27: 5 - 10 | GO27: 1 | GP27: Yes | GQ27: 21. Fontaine, M.D., Ma, J. and Hu, J., 2015. Evaluation of the Virginia Department of Transportation adaptive signal control technology pilot project (No. VCTIR 15-R24). Virginia Center for Transportation Innovation and Research. | GR27: InSync | GS27: InSync | GT27: InSync | GU27: Yes | GV27: Yes | GW27: VDOT | GX27: Research Institute | GY27: Research Institute | GZ27: Research Institute | HA27: Research Institute | HB27: Research Institute | HD27: Virginia Transportation Research Center | HE27: Virginia Transportation Research Center | HF27: 40575 | HG27: 40575 | HH27: 41517 | HI27: 41517 | HK27: =DATEDIF(Table1[[#This Row],[7. When did the evaluation start (year/month)?]],Table1[[#This Row],[8. By what time was the evaluation completed (year/month)?]],"m") -> 30 | HL27: > 24 months | HM27: Field evaluation | HN27: Field evaluation | HO27: Field evaluation | HP27: Before-after | HQ27: Before-after | HR27: Before-after | KE27: 0 | KF27: 1 | KG27: 0 | KH27: 1 | KI27: 0 | KJ27: 0 | KK27: 1 | LA27: Regular weekday | QC27: 26 | QD27: 15.6 | QL27: 15.6 | RI27: 0.4 | RJ27: 28.3 | RR27: 28.3 | AAM27: 22 | AAN27: 13.2 | AAV27: 13.2 | ABS27: 0.3 | ABT27: 29 | ACB27: 29 | AKW27: 12 | AKX27: 6.4 | ALF27: 6.4 | AMC27: -0.1 | AMD27: -5.8 | AML27: -5.8
B28: 22 | C28: Virginia Department of Transportation - Richmond | D28: Richmond | E28: VA | I28: State government | J28: State government | K28: State government | L28: State government | N28: >2,400 miles | O28: >2,400 miles | S28: >500 | T28: >500 | V28: >300 | AJ28: >$2,000,000 | AM28: >$2,000,000 | AN28: >8 | AV28: InSync | AW28: InSync | AX28: InSync | AY28: InSync | AZ28: Sole source | BA28: Sole source | BG28: 40806 | BH28: 40806 | BI28: 40806 | BJ28: 40806 | BR28: Fully operational | CB28: Other DOT/County/City authority | CG28: 1 | CH28: Charlottesville, VA | CK28: 43475 | CL28: <50,000 | CM28: 2010 | CN28: Yes | CO28: Charlottesville | CP28: 231565 | CQ28: 200,000-500,000 | CR28: Not specified | CS28: Not specified | CT28: Not specified | CU28: Not specified | CV28: Single corridor | CW28: Single corridor | CX28: Single corridor | CY28: 5-10 | CZ28: 5-10 | DA28: 5-10 | DB28: 8 | DC28: 8 | DD28: ≤3 | DE28: ≤3 | DF28: ≤3 | DG28: 2 | DH28: 25,000-35,000 | DI28: 25,000-35,000 | DJ28: 34730 | DK28: Expecting significant operational savings and a high benefit cost ratio | FH28: Not specified | FI28: Not specified | FK28: Not specified | FL28: Not specified | FP28: Not specified | FU28: Not specified | FV28: Not specified | GN28: 5 - 10 | GO28: 1 | GP28: Yes | GQ28: 22. a) Fontaine, M.D., Ma, J. and Hu, J., 2015. Evaluation of the Virginia Department of Transportation adaptive signal control technology pilot project (No. VCTIR 15-R24). Virginia Center for Transportation Innovation and Research. b) Hu, J., Fontaine, M.D., Park, B.B. and Ma, J., 2015. Field evaluations of an adaptive traffic signal—using private-sector probe data. Journal of Transportation Engineering, 142(1), p.04015033. | GR28: InSync | GS28: InSync | GT28: InSync | GU28: Yes | GV28: Yes | GW28: VDOT | GX28: Research Institute | GY28: Research Institute | GZ28: Research Institute | HA28: Research Institute | HB28: Research Institute | HD28: Virginia Transportation Research Center | HE28: Virginia Transportation Research Center | HF28: 40575 | HG28: 40575 | HH28: 41517 | HI28: 41517 | HK28: =DATEDIF(Table1[[#This Row],[7. When did the evaluation start (year/month)?]],Table1[[#This Row],[8. By what time was the evaluation completed (year/month)?]],"m") -> 30 | HL28: > 24 months | HM28: Field evaluation | HN28: Field evaluation | HO28: Field evaluation | HP28: Before-after | HQ28: Before-after | HR28: Before-after | KE28: 0 | KF28: 1 | KG28: 0 | KH28: 0 | KI28: 0 | KJ28: 0 | KK28: 1 | LA28: Regular weekday | QC28: -207 | QD28: -36.6 | QL28: -36.6 | RI28: -3.8 | RJ28: -63 | RR28: -63 | AAM28: -95 | AAN28: -21.7 | AAV28: -21.7 | ABS28: -2.1 | ABT28: -54.3 | ACB28: -54.3 | AKW28: -172 | AKX28: -33.4 | ALF28: -33.4 | AMC28: -3.5 | AMD28: -67.9 | AML28: -67.9
B29: 23 | C29: Virginia Department of Transportation - Richmond | D29: Richmond | E29: VA | I29: State government | J29: State government | K29: State government | L29: State government | N29: >2,400 miles | O29: >2,400 miles | S29: >500 | T29: >500 | V29: >300 | AJ29: >$2,000,000 | AM29: >$2,000,000 | AN29: >8 | AV29: InSync | AW29: InSync | AX29: InSync | AY29: InSync | AZ29: Sole source | BA29: Sole source | BG29: 41002 | BH29: 41002 | BI29: 41002 | BJ29: 41002 | BR29: Fully operational | CB29: Other DOT/County/City authority | CG29: 1 | CH29: Winchester, VA | CK29: 26203 | CL29: <50,000 | CM29: 2010 | CN29: Yes | CO29: Winchester, VA–WV | CP29: 128694 | CQ29: <200,000 | CR29: Not specified | CS29: Not specified | CT29: Not specified | CU29: Not specified | CV29: Single corridor | CW29: Single corridor | CX29: Single corridor | CY29: ≤5 | CZ29: ≤5 | DA29: ≤5 | DB29: 5 | DC29: 5 | DD29: ≤3 | DE29: ≤3 | DF29: ≤3 | DG29: 0.9 | DH29: ≤25,000 | DI29: ≤25,000 | DJ29: 22911 | DK29: Expecting significant operational savings and a high benefit cost ratio | FH29: Not specified | FI29: Not specified | FK29: Not specified | FL29: Not specified | FP29: Not specified | FU29: Not specified | FV29: Not specified | GN29: 5 - 10 | GO29: 1 | GP29: Yes | GQ29: 23. a) Fontaine, M.D., Ma, J. and Hu, J., 2015. Evaluation of the Virginia Department of Transportation adaptive signal control technology pilot project (No. VCTIR 15-R24). Virginia Center for Transportation Innovation and Research. b) Hu, J., Fontaine, M.D., Park, B.B. and Ma, J., 2015. Field evaluations of an adaptive traffic signal—using private-sector probe data. Journal of Transportation Engineering, 142(1), p.04015033. | GR29: InSync | GS29: InSync | GT29: InSync | GU29: Yes | GV29: Yes | GW29: VDOT | GX29: Research Institute | GY29: Research Institute | GZ29: Research Institute | HA29: Research Institute | HB29: Research Institute | HD29: Virginia Transportation Research Center | HE29: Virginia Transportation Research Center | HF29: 40575 | HG29: 40575 | HH29: 41517 | HI29: 41517 | HK29: =DATEDIF(Table1[[#This Row],[7. When did the evaluation start (year/month)?]],Table1[[#This Row],[8. By what time was the evaluation completed (year/month)?]],"m") -> 30 | HL29: > 24 months | HM29: Field evaluation | HN29: Field evaluation | HO29: Field evaluation | HP29: Before-after | HQ29: Before-after | HR29: Before-after | KE29: 0 | KF29: 1 | KG29: 0 | KH29: 0 | KI29: 0 | KJ29: 0 | KK29: 1 | LA29: Regular weekday | QC29: -5 | QD29: -1.4 | QL29: -1.4 | RI29: -0.2 | RJ29: -14.3 | RR29: -14.3 | AAM29: -11 | AAN29: -1.1 | AAV29: -1.1 | ABS29: -0.5 | ABT29: -28.6 | ACB29: -28.6 | AKW29: -14 | AKX29: -3.5 | ALF29: -3.5 | AMC29: 0.1 | AMD29: 6.5 | AML29: 6.5
B30: 24 | C30: Virginia Department of Transportation - Richmond | D30: Richmond | E30: VA | I30: State government | J30: State government | K30: State government | L30: State government | N30: >2,400 miles | O30: >2,400 miles | S30: >500 | T30: >500 | V30: >300 | AJ30: >$2,000,000 | AM30: >$2,000,000 | AN30: >8 | AV30: InSync | AW30: InSync | AX30: InSync | AY30: InSync | AZ30: Sole source | BA30: Sole source | BG30: 41016 | BH30: 41016 | BI30: 41016 | BJ30: 41016 | BR30: Fully operational | CB30: Other DOT/County/City authority | CG30: 1 | CH30: Frederick County, VA | CK30: 78305 | CL30: 50,000-100,000 | CM30: 2010 | CN30: Yes | CO30: Winchester, VA–WV | CP30: 128694 | CQ30: <200,000 | CR30: Not specified | CS30: Not specified | CT30: Not specified | CU30: Not specified | CV30: Single corridor | CW30: Single corridor | CX30: Single corridor | CY30: 5-10 | CZ30: 5-10 | DA30: 5-10 | DB30: 7 | DC30: 7 | DD30: ≤3 | DE30: ≤3 | DF30: ≤3 | DG30: 1.4 | DH30: ≤25,000 | DI30: ≤25,000 | DJ30: 13147 | DK30: Expecting significant operational savings and a high benefit cost ratio | FH30: Not specified | FI30: Not specified | FK30: Not specified | FL30: Not specified | FP30: Not specified | FU30: Not specified | FV30: Not specified | GN30: 5 - 10 | GO30: 1 | GP30: Yes | GQ30: 24. Fontaine, M.D., Ma, J. and Hu, J., 2015. Evaluation of the Virginia Department of Transportation adaptive signal control technology pilot project (No. VCTIR 15-R24). Virginia Center for Transportation Innovation and Research. | GR30: InSync | GS30: InSync | GT30: InSync | GU30: Yes | GV30: Yes | GW30: VDOT | GX30: Research Institute | GY30: Research Institute | GZ30: Research Institute | HA30: Research Institute | HB30: Research Institute | HD30: Virginia Transportation Research Center | HE30: Virginia Transportation Research Center | HF30: 40575 | HG30: 40575 | HH30: 41517 | HI30: 41517 | HK30: =DATEDIF(Table1[[#This Row],[7. When did the evaluation start (year/month)?]],Table1[[#This Row],[8. By what time was the evaluation completed (year/month)?]],"m") -> 30 | HL30: > 24 months | HM30: Field evaluation | HN30: Field evaluation | HO30: Field evaluation | HP30: Before-after | HQ30: Before-after | HR30: Before-after | KE30: 0 | KF30: 1 | KG30: 0 | KH30: 0 | KI30: 0 | KJ30: 0 | KK30: 1 | LA30: Regular weekday | QC30: -40 | QD30: -13.1 | QL30: -13.1 | RI30: -1 | RJ30: -34.8 | RR30: -34.8 | AAM30: -38 | AAN30: -13 | AAV30: -13 | ABS30: -0.8 | ABT30: -32.3 | ACB30: -32.3 | AKW30: -73 | AKX30: -21.4 | ALF30: -21.4 | AMC30: -1.4 | AMD30: -43.2 | AML30: -43.2
B31: 25 | C31: Virginia Department of Transportation - Richmond | D31: Richmond | E31: VA | I31: State government | J31: State government | K31: State government | L31: State government | N31: >2,400 miles | O31: >2,400 miles | S31: >500 | T31: >500 | V31: >300 | AJ31: >$2,000,000 | AM31: >$2,000,000 | AN31: >8 | AV31: InSync | AW31: InSync | AX31: InSync | AY31: InSync | AZ31: Sole source | BA31: Sole source | BG31: 41036 | BH31: 41036 | BI31: 41036 | BJ31: 41036 | BR31: Fully operational | CB31: Other DOT/County/City authority | CG31: 1 | CH31: Winchester, VA | CK31: 26203 | CL31: <50,000 | CM31: 2010 | CN31: Yes | CO31: Winchester, VA–WV | CP31: 128694 | CQ31: <200,000 | CR31: Not specified | CS31: Not specified | CT31: Not specified | CU31: Not specified | CV31: Single corridor | CW31: Single corridor | CX31: Single corridor | CY31: 10-15 | CZ31: 10-15 | DA31: 10-15 | DB31: 12 | DC31: 12 | DD31: ≤3 | DE31: ≤3 | DF31: ≤3 | DG31: 2.3 | DH31: ≤25,000 | DI31: ≤25,000 | DJ31: 23834 | DK31: Expecting significant operational savings and a high benefit cost ratio | FH31: Not specified | FI31: Not specified | FK31: Not specified | FL31: Not specified | FP31: Not specified | FU31: Not specified | FV31: Not specified | GN31: 5 - 10 | GO31: 1 | GP31: Yes | GQ31: 25. Fontaine, M.D., Ma, J. and Hu, J., 2015. Evaluation of the Virginia Department of Transportation adaptive signal control technology pilot project (No. VCTIR 15-R24). Virginia Center for Transportation Innovation and Research. | GR31: InSync | GS31: InSync | GT31: InSync | GU31: Yes | GV31: Yes | GW31: VDOT | GX31: Research Institute | GY31: Research Institute | GZ31: Research Institute | HA31: Research Institute | HB31: Research Institute | HD31: Virginia Transportation Research Center | HE31: Virginia Transportation Research Center | HF31: 40575 | HG31: 40575 | HH31: 41517 | HI31: 41517 | HK31: =DATEDIF(Table1[[#This Row],[7. When did the evaluation start (year/month)?]],Table1[[#This Row],[8. By what time was the evaluation completed (year/month)?]],"m") -> 30 | HL31: > 24 months | HM31: Field evaluation | HN31: Field evaluation | HO31: Field evaluation | HP31: Before-after | HQ31: Before-after | HR31: Before-after | KE31: 0 | KF31: 1 | KG31: 0 | KH31: 0 | KI31: 0 | KJ31: 0 | KK31: 1 | LA31: Regular weekday | QC31: -70 | QD31: -16.1 | QL31: -16.1 | RI31: -1.9 | RJ31: -43.6 | RR31: -43.6 | AAM31: -48 | AAN31: -11.8 | AAV31: -11.8 | ABS31: -1 | ABT31: -27.2 | ACB31: -27.2 | AKW31: -73 | AKX31: -15.4 | ALF31: -15.4 | AMC31: -1.4 | AMD31: -31.2 | AML31: -31.2
... 38 more rows

Sheet PivotPG1 (hidden)
A2: Managers | B2: Engineers | C2: Controller technicians | D2: Other technicians
A3: 3.62962963 | B3: 5.796296296 | C3: 9.259259259 | D3: 8.904761905
A6: Managers | B6: Engineers | C6: Controller technicians | D6: Other technicians
A7: 125.1851852 | B7: 212.1923077 | C7: 144.2916667 | D7: 84.81818182
A10: Row Labels | B10: Count of 9. Number of coordinated signals under operation
A11: <50 | B11: 7
A12: 50-80 | B12: 2
A13: >300 | B13: 10
A14: 130-200 | B14: 5
A15: 80-130 | B15: 4
A16: 200-300 | B16: 1
A17: Grand Total | B17: 29
A21: Row Labels | B21: Count of 6.2. What where the main reasons for such delays? [Poor coordination]
A22: Poor coordination between installation vendor and the agency | B22: 6
A23: Grand Total | B23: 6
A25: Row Labels | B25: Count of 6.3. What where the main reasons for such delays? [Technical problems]
A26: Technical problems (e.g., detection, communications, equipment) | B26: 10
A27: Grand Total | B27: 10
A29: Row Labels | B29: Count of 6.4. What where the main reasons for such delays? [Other]
A30: Federal Funding Delays | B30: 1
A31: Weather Conditions | B31: 1
A32: Grand Total | B32: 2
A34: Row Labels | B34: Sum of 6.4. What where the main reasons for such delays? [Counter]
A35: 1 | B35: 14
A36: Grand Total | B36: 14
A40: Poor coord. bet. vendor & agency | B40: =GETPIVOTDATA("[Measures].[Count of 6.2. What where the main reasons for such delays? [Poor coordination]]]",$A$21,"[Table1].[6.2. What where the main reasons for such delays? [Poor coordination]]]","[Table1].[6.2. What where the main reasons for such delays? [Poor coordination]]].&[Poor coordination between installation vendor and the agency]") -> 6
A41: Technical problems | B41: =GETPIVOTDATA("[Measures].[Count of 6.3. What where the main reasons for such delays? [Technical problems]]]",$A$25,"[Table1].[6.3. What where the main reasons for such delays? [Technical problems]]]","[Table1].[6.3. What where the main reasons for such delays? [Technical problems]]].&[Technical problems (e.g., detection, communications, equipment)]") -> 10
A42: Federal funding delays | B42: =GETPIVOTDATA("[Measures].[Count of 6.4. What where the main reasons for such delays? [Other]]]",$A$29,"[Table1].[6.4. What where the main reasons for such delays? [Other]]]","[Table1].[6.4. What where the main reasons for such delays? [Other]]].&[Federal Funding Delays]") -> 1
A43: Weather Conditions | B43: =GETPIVOTDATA("[Measures].[Count of 6.4. What where the main reasons for such delays? [Other]]]",$A$29,"[Table1].[6.4. What where the main reasons for such delays? [Other]]]","[Table1].[6.4. What where the main reasons for such delays? [Other]]].&[Weather Conditions]") -> 1
A44: Total | B44: =GETPIVOTDATA("[Measures].[Sum of 6.4. What where the main reasons for such delays? [Counter]]]",$A$34,"[Table1].[6.4. What where the main reasons for such delays? [Counter]]]","[Table1].[6.4. What where the main reasons for such delays? [Counter]]].&[1]") -> 14
A50: Federal funding delays | B50: =IFERROR(B42,0) -> 1
A51: Technical problems | B51: =IFERROR(B41,0) -> 10
A52: Vendor-agency communication | B52: =IFERROR(B40,0) -> 6
A53: Weather conditions | B53: =IFERROR(B43,0) -> 1
A54: Total | B54: =IFERROR(B44,0) -> 14
A58: Row Labels | B58: Count of 7.1 What are the main reasons for decommissioning (partially or fully) the system? [Detection and co
A59: Detection and communication problems | B59: 2
A60: Grand Total | B60: 2
A62: Row Labels | B62: Count of 7.2 What are the main reasons for decommissioning (partially or fully) the system? [Lack of required
A63: Lack of required expertise and other institutional challenges | B63: 1
A64: Grand Total | B64: 1
A66: Row Labels | B66: Count of 7.3 What are the main reasons for decommissioning (partially or fully) the system? [Incompatibility
A69: Row Labels | B69: Count of 7.4 What are the main reasons for decommissioning (partially or fully) the system? [System not compa
A70: System not compatible with agency’s expectations and practice (e.g. too many complaint calls) | B70: 2
A71: Grand Total | B71: 2
A73: Row Labels | B73: Count of 7.5 What are the main reasons for decommissioning (partially or fully) the system? [No operational b
A74: No operational benefits achieved | B74: 1
A75: Grand Total | B75: 1
A77: Row Labels | B77: Count of 7.6 What are the main reasons for decommissioning (partially or fully) the system? [Other]
A78: Other | B78: 2
A79: Grand Total | B79: 2
A81: Row Labels | B81: Sum of 7.7 What are the main reasons for decommissioning (partially or fully) the system? [counter]
A82: 1 | B82: 4
A83: Grand Total | B83: 4
A87: Detection and communication problems | B87: =GETPIVOTDATA(A59,"Detection and communication problems") -> 2
A88: Lack of required expertise and other institutional challenges | B88: =GETPIVOTDATA(A63,"Lack of required expertise and other institutional challenges") -> 1
A89: System not compatible with agency’s expectations and practice (e.g. too many complaint calls) | B89: =GETPIVOTDATA(A70,"System not compatible with agency’s expectations and practice (e.g. too many complaint calls)") -> 2
A90: No operational benefits achieved | B90: =GETPIVOTDATA(A74,"No operational benefits achieved") -> 1
A91: Other | B91: =GETPIVOTDATA(A78,"Other") -> 2
A92: Total | B92: =GETPIVOTDATA("[Measures].[Sum of 7.7 What are the main reasons for decommissioning (partially or fully) the system? [counter]]]",$A$81,"[Table1].[7.7 What are the main reasons for decommissioning (partially or fully) the system? [counter]]]","[Table1].[7.7 What are the main reasons for decommissioning (partially or fully) the system? [counter]]].&[1]") -> 4
A94: Lack of expertise | B94: =IFERROR(B88,0) -> 1
A95: No comp. with agency’s goals | B95: =IFERROR(B89,0) -> 2
A96: No operational benefits | B96: =IFERROR(B90,0) -> 1
A97: Other | B97: =IFERROR(B91,0) -> 2
A98: Technical problems | B98: =IFERROR(B87,0) -> 2
A99: Total | B99: =IFERROR(B92,0) -> 4
A102: Row Labels | B102: Count of 8. Besides your own agency, was any other entity involved in the decision making and implementation
A103: Nobody else | B103: 14
A104: Grand Total | B104: 14
A106: Row Labels | B106: Count of 8.1 Besides your own agency, was any other entity involved in the decision making and implementation
A107: Not reported | B107: 1
A108: Other DOT/County/City authority | B108: 35
A109: Grand Total | B109: 36
A110: Row Labels | B110: Count of 8.2 Besides your own agency, was any other entity involved in the decision making and implementation
A111: Metropolitan planning agency | B111: 4
A112: Grand Total | B112: 4
A114: Row Labels | B114: Count of 8.3 Besides your own agency, was any other entity involved in the decision making and implementation
A115: Public transit agency | B115: 1
A116: Grand Total | B116: 1
A118: Row Labels | B118: Count of 8.4 Besides your own agency, was any other entity involved in the decision making and implementation
A119: Other | B119: 9
A120: Grand Total | B120: 9
A122: Row Labels | B122: Sum of 8.5 Besides your own agency, was any other entity involved in the decision making and implementati 2
A123: 1 | B123: 56
A124: Grand Total | B124: 56
A128: Nobody else | B128: =GETPIVOTDATA(A102,"Nobody else") -> 14
A129: Other DOT/County/City authority | B129: =GETPIVOTDATA(A106,"Other DOT/County/City authority") -> 35
A130: Metropolitan planning agency | B130: =GETPIVOTDATA(A112,"Metropolitan planning agency") -> 4
A131: Public transit agency | B131: =GETPIVOTDATA(A116,"Public transit agency") -> 1
A132: Other | B132: =GETPIVOTDATA(A120,"Other") -> 9
A133: Total | B133: =GETPIVOTDATA("[Measures].[Sum of 8.5 Besides your own agency, was any other entity involved in the decision making and impleme]",$A$122,"[Table1].[8.5 Besides your own agency, was any other entity involved in the decision making and implementati 2]","[Table1].[8.5 Besides your own agency, was any other entity involved in the decision making and implementati 2].&[1]") -> 56
A138: DOT/County/City authority | B138: =IFERROR(B129,0) -> 35
A139: Metropolitan planning agency | B139: =IFERROR(B130,0) -> 4
A140: Nobody else | B140: =IFERROR(B128,0) -> 14
A141: Other | B141: =IFERROR(B132,0) -> 9
A142: Public transit agency | B142: =IFERROR(B131,0) -> 1
A143: Total | B143: =IFERROR(GETPIVOTDATA("[Measures].[Sum of 8.5 Besides your own agency, was any other entity involved in the decision making and impleme]",$A$122),0) -> 56
A146: Count of 7. Cumulative length of the road network | B146: Column Labels
A147: Row Labels | B147: >500 | C147: 100-200 | D147: 200-300 | E147: < 100 | F147: 300-400 | G147: Grand Total
A148: >2,400 miles | B148: 8 | F148: 1 | G148: 9
A149: 800-1,200 miles | B149: 1 | C149: 4 | D149: 2 | G149: 7
A150: <200 miles | D150: 1 | E150: 4 | G150: 5
A151: 200-800 miles | C151: 2 | D151: 1 | E151: 2 | G151: 5
A152: Grand Total | B152: 9 | C152: 6 | D152: 4 | E152: 6 | F152: 1 | G152: 26
B156: <200 miles | C156: < 100 | D156: =GETPIVOTDATA("[Measures].[Count of 7. Cumulative length of the road network]",$A$146,"[Table1].[7. Cumulative length of the road network]","[Table1].[7. Cumulative length of the road network].&[<200 miles]","[Table1].[8. Number of signalized intersections under operation]","[Table1].[8. Number of signalized intersections under operation].&[< 100]") -> 4
C157: 100-200 | D157: =GETPIVOTDATA("[Measures].[Count of 7. Cumulative length of the road network]",$A$146,"[Table1].[7. Cumulative length of the road network]","[Table1].[7. Cumulative length of the road network].&[<200 miles]","[Table1].[8. Number of signalized intersections under operation]","[Table1].[8. Number of signalized intersections under operation].&[100-200]") -> 0
C158: 200-300 | D158: =GETPIVOTDATA("[Measures].[Count of 7. Cumulative length of the road network]",$A$146,"[Table1].[7. Cumulative length of the road network]","[Table1].[7. Cumulative length of the road network].&[<200 miles]","[Table1].[8. Number of signalized intersections under operation]","[Table1].[8. Number of signalized intersections under operation].&[200-300]") -> 1
C159: 300-400 | D159: =GETPIVOTDATA("[Measures].[Count of 7. Cumulative length of the road network]",$A$146,"[Table1].[7. Cumulative length of the road network]","[Table1].[7. Cumulative length of the road network].&[<200 miles]","[Table1].[8. Number of signalized intersections under operation]","[Table1].[8. Number of signalized intersections under operation].&[300-400]") -> 0
C160: >500 | D160: =GETPIVOTDATA("[Measures].[Count of 7. Cumulative length of the road network]",$A$146,"[Table1].[7. Cumulative length of the road network]","[Table1].[7. Cumulative length of the road network].&[<200 miles]","[Table1].[8. Number of signalized intersections under operation]","[Table1].[8. Number of signalized intersections under operation].&[>500]") -> 0
B161: 200-800 miles | C161: < 100 | D161: =GETPIVOTDATA("[Measures].[Count of 7. Cumulative length of the road network]",$A$146,"[Table1].[7. Cumulative length of the road network]","[Table1].[7. Cumulative length of the road network].&[200-800 miles]","[Table1].[8. Number of signalized intersections under operation]","[Table1].[8. Number of signalized intersections under operation].&[< 100]") -> 2
C162: 100-200 | D162: =GETPIVOTDATA("[Measures].[Count of 7. Cumulative length of the road network]",$A$146,"[Table1].[7. Cumulative length of the road network]","[Table1].[7. Cumulative length of the road network].&[200-800 miles]","[Table1].[8. Number of signalized intersections under operation]","[Table1].[8. Number of signalized intersections under operation].&[100-200]") -> 2
C163: 200-300 | D163: =GETPIVOTDATA("[Measures].[Count of 7. Cumulative length of the road network]",$A$146,"[Table1].[7. Cumulative length of the road network]","[Table1].[7. Cumulative length of the road network].&[200-800 miles]","[Table1].[8. Number of signalized intersections under operation]","[Table1].[8. Number of signalized intersections under operation].&[200-300]") -> 1
C164: 300-400 | D164: =GETPIVOTDATA("[Measures].[Count of 7. Cumulative length of the road network]",$A$146,"[Table1].[7. Cumulative length of the road network]","[Table1].[7. Cumulative length of the road network].&[200-800 miles]","[Table1].[8. Number of signalized intersections under operation]","[Table1].[8. Number of signalized intersections under operation].&[300-400]") -> 0
C165: >500 | D165: =GETPIVOTDATA("[Measures].[Count of 7. Cumulative length of the road network]",$A$146,"[Table1].[7. Cumulative length of the road network]","[Table1].[7. Cumulative length of the road network].&[200-800 miles]","[Table1].[8. Number of signalized intersections under operation]","[Table1].[8. Number of signalized intersections under operation].&[>500]") -> 0
B166: 800-1,200 miles | C166: < 100 | D166: =GETPIVOTDATA("[Measures].[Count of 7. Cumulative length of the road network]",$A$146,"[Table1].[7. Cumulative length of the road network]","[Table1].[7. Cumulative length of the road network].&[800-1,200 miles]","[Table1].[8. Number of signalized intersections under operation]","[Table1].[8. Number of signalized intersections under operation].&[< 100]") -> 0
C167: 100-200 | D167: =GETPIVOTDATA("[Measures].[Count of 7. Cumulative length of the road network]",$A$146,"[Table1].[7. Cumulative length of the road network]","[Table1].[7. Cumulative length of the road network].&[800-1,200 miles]","[Table1].[8. Number of signalized intersections under operation]","[Table1].[8. Number of signalized intersections under operation].&[100-200]") -> 4
C168: 200-300 | D168: =GETPIVOTDATA("[Measures].[Count of 7. Cumulative length of the road network]",$A$146,"[Table1].[7. Cumulative length of the road network]","[Table1].[7. Cumulative length of the road network].&[800-1,200 miles]","[Table1].[8. Number of signalized intersections under operation]","[Table1].[8. Number of signalized intersections under operation].&[200-300]") -> 2
C169: 300-400 | D169: =GETPIVOTDATA("[Measures].[Count of 7. Cumulative length of the road network]",$A$146,"[Table1].[7. Cumulative length of the road network]","[Table1].[7. Cumulative length of the road network].&[800-1,200 miles]","[Table1].[8. Number of signalized intersections under operation]","[Table1].[8. Number of signalized intersections under operation].&[300-400]") -> 0
